{"text_format":"2","workbook":"xlsx","n_sheets":8,"sheets":["Resumo do Orçamento","Orçamento Sintético","Cronograma","BDI","Encacrgos Sociais","Curva ABC de Serviços","CPUs","Memória de cálculo"],"not_rendered":{"charts":0,"images":2,"macros":0,"external_links":2,"defined_names":340,"comments":0,"pivot_tables":0},"unopened":[],"bounds":{"document_bytes":16777216,"sheet_cells":100000,"run_cost":"one","rows_first":2000,"rows_last":500,"rows_between":2000,"halvings":0,"cell_chars":16384,"cell_head_chars":4096},"cells_cut":0,"cells_raw":0,"read":"whole","date_system":"1900"}

{"sheet":"Resumo do Orçamento","index":0,"n_rows":17,"n_cols":12,"rows_kept":17,"cut":false,"hidden":false,"merged":[[16,0,16,2],[16,6,16,7],[16,8,16,10],[12,0,12,2],[12,3,12,8],[13,0,13,2],[13,3,13,8],[14,0,14,2],[14,3,14,8],[9,0,9,10],[10,0,10,2],[10,3,10,8],[11,0,11,2],[11,3,11,8],[4,5,4,7],[4,8,4,10],[0,0,3,10],[5,5,5,7],[5,8,5,10]]}
["LOGO DA EMPRESA"]
[]
[]
[]
[null,null,null,"Obra","Bancos","B.D.I.",null,null,"Encargos Sociais"]
[null,null,null,"Espaço Multiuso - Tipo 02","SINAPI - 08/2024 - Sergipe\nORSE - 06/2024 - Sergipe\n","23,54%",null,null,"Não Desonerado: \nHorista: 112,54%\nMensalista: 70,11%"]
[]
[{"$nulls":10},"Desconto"]
[{"$nulls":10},0,"Inserir o desconto aqui"]
["Planilha Orçamentária Resumida"]
["Item",null,null,"Descrição",{"$nulls":5},"Total","Peso (%)"]
[" 1 ",null,null,"SERVIÇOS PRELIMINARES",{"$nulls":5},{"$f":"SUM('Orçamento Sintético'!I13:I21)","v":27272.07},{"$f":"J12/$I$17","v":9.6367237951096169E-2}]
[" 2 ",null,null,"ESPAÇO MULTIEVENTOS",{"$nulls":5},{"$f":"SUM('Orçamento Sintético'!I24:I58)","v":224664.33},{"$f":"J13/$I$17","v":0.79386276686124635}]
[" 3 ",null,null,"INSTALAÇÕES ELÉTRICA (GERAL)",{"$nulls":5},{"$f":"SUM('Orçamento Sintético'!I61:I85)","v":27095.590000000004},{"$f":"J14/$I$17","v":9.5743636950013034E-2}]
[" 4 ",null,null,"DIVERSOS",{"$nulls":5},{"$f":"SUM('Orçamento Sintético'!I87:I88)","v":3969.4900000000002},{"$f":"J15/$I$17","v":1.4026393573149993E-2}]
[]
[{"$nulls":6},"Total Geral",null,{"$f":"TRUNC(283001.47*(1-$K$9),2)","v":283001.46999999997}]

{"sheet":"Orçamento Sintético","index":1,"n_rows":88,"n_cols":10,"rows_kept":88,"cut":false,"hidden":false,"merged":[[0,0,2,8],[4,4,4,5],[4,6,4,7],[8,0,8,8],[3,4,3,5],[3,6,3,7]]}
["LOGO DA EMPRESA"]
[]
[]
[null,null,null,"Obra","Bancos",null,"B.D.I.",null,"Encargos Sociais"]
[null,null,null,"Espaço Multiuso - Tipo 02","SINAPI - 08/2024 - Sergipe\nORSE - 06/2024 - Sergipe\n",null,"23,54%",null,"Não Desonerado: \nHorista: 112,54%\nMensalista: 70,11%"]
[]
[{"$nulls":8},"Desconto"]
[{"$nulls":8},{"$f":"'Resumo do Orçamento'!K9","v":0},"Inserir o desconto na aba Resumo, não aqui!"]
["Orçamento Sintético"]
["Item","Código","Banco","Descrição","Und","Quant.","Valor Unit","Valor Unit com BDI","Total"]
[" 1 ",null,null,"SERVIÇOS PRELIMINARES"]
[" 1.1 ",null,null,"MOBILIZAÇÃO/DESMOBILIZAÇÃO"]
[" 1.1.1 "," 00000003 ","Próprio","Mobilização de equipamentos e pessoal (pequenas obras)","un",1,1309.8,{"$f":"TRUNC(G13*(1+$G$5)*(1-$I$8),2)","v":1618.12},{"$f":"TRUNC(F13*H13,2)","v":1618.12}]
[" 1.1.2 "," 00000004 ","Próprio","Desmobilização de equipamentos e pessoal (pequenas obras)","un",1,746.34,{"$f":"TRUNC(G14*(1+$G$5)*(1-$I$8),2)","v":922.02},{"$f":"TRUNC(F14*H14,2)","v":922.02}]
[" 1.2 ",null,null,"CANTEIRO DE OBRA"]
[" 1.2.1 "," 51 ","ORSE","Placa de obra em chapa aço galvanizado, instalada - Rev 02_01/2022","m²",6.4,375.59,{"$f":"TRUNC(G16*(1+$G$5)*(1-$I$8),2)","v":464},{"$f":"TRUNC(F16*H16,2)","v":2969.6}]
[" 1.2.2 "," 10528 ","ORSE","Aluguel mensal de área","mês",4,604.79,{"$f":"TRUNC(G17*(1+$G$5)*(1-$I$8),2)","v":747.15},{"$f":"TRUNC(F17*H17,2)","v":2988.6}]
[" 1.3 ",null,null,"ADMINISTRAÇÃO LOCAL"]
[" 1.3.1 "," CODEVASF  122 ","Próprio","Administração local de pequenas obras","und",1,{"$f":"TRUNC(4*3399.12,2)","v":13596.48},{"$f":"TRUNC(G19*(1+$G$5)*(1-$I$8),2)","v":16797.09},{"$f":"TRUNC(F19*H19,2)","v":16797.09}]
[" 1.4",null,null,"PROJETO EXECUTIVO"]
[" 1.4.1 "," CODEVASF 331 ","Próprio","Projeto Executivo (Multiuso 02)","und",1,1600,{"$f":"TRUNC(G21*(1+$G$5)*(1-$I$8),2)","v":1976.64},{"$f":"TRUNC(F21*H21,2)","v":1976.64}]
[" 2 ",null,null,"ESPAÇO MULTIEVENTOS"]
[" 2.1 ",null,null,"SERVIÇOS PRELIMINARES"]
[" 2.1.1 "," 98524 ","SINAPI","LIMPEZA MANUAL DE VEGETAÇÃO EM TERRENO COM ENXADA. AF_03/2024","m²",967.95,4.3499999999999996,{"$f":"TRUNC(G24*(1+$G$5)*(1-$I$8),2)","v":5.37},{"$f":"TRUNC(F24*H24,2)","v":5197.8900000000003}]
[" 2.2 ",null,null,"MOVIMENTAÇÃO DE TERRA"]
[" 2.2.1 "," 00006079 ","SINAPI","ARGILA, ARGILA VERMELHA OU ARGILA ARENOSA (RETIRADA NA JAZIDA, SEM TRANSPORTE)","m³",106.47,37.35,{"$f":"TRUNC(G26*(1+$G$5)*(1-$I$8),2)","v":46.14},{"$f":"TRUNC(F26*H26,2)","v":4912.5200000000004}]
[" 2.2.2 "," 3426 ","ORSE","Escavação e carga com escavadeira hidráulica de material de 1ª categoria ou de jazida","m³",96.8,0.99,{"$f":"TRUNC(G27*(1+$G$5)*(1-$I$8),2)","v":1.22},{"$f":"TRUNC(F27*H27,2)","v":118.09}]
[" 2.2.3 "," 4986 ","ORSE","Carga mecânica de material de 1ª categoria","m³",106.47,0.77,{"$f":"TRUNC(G28*(1+$G$5)*(1-$I$8),2)","v":0.95},{"$f":"TRUNC(F28*H28,2)","v":101.14}]
[" 2.2.4 "," 97914 ","SINAPI","TRANSPORTE COM CAMINHÃO BASCULANTE DE 6 M³, EM VIA URBANA PAVIMENTADA, DMT ATÉ 30 KM (UNIDADE: M3XKM). AF_07/2020","M3XKM",1916.54,2.79,{"$f":"TRUNC(G29*(1+$G$5)*(1-$I$8),2)","v":3.44},{"$f":"TRUNC(F29*H29,2)","v":6592.89}]
[" 2.2.5 "," 71 ","ORSE","Aterro manual de áreas, sem aquisição de material, com espalhamento e compactação","m³",107.35,52.32,{"$f":"TRUNC(G30*(1+$G$5)*(1-$I$8),2)","v":64.63},{"$f":"TRUNC(F30*H30,2)","v":6938.03}]
[" 2.3 ",null,null,"INFRAESTRUTURAS (MURETA E ARQUIBANCADA)"]
[" 2.3.1 "," 4177 ","ORSE","Locação de construção de edificação acima de 1000 m2,  inclusive execução de gabarito de madeira","m²",134.4,5.47,{"$f":"TRUNC(G32*(1+$G$5)*(1-$I$8),2)","v":6.75},{"$f":"TRUNC(F32*H32,2)","v":907.2}]
[" 2.3.2 "," 93358 ","SINAPI","ESCAVAÇÃO MANUAL DE VALA COM PROFUNDIDADE MENOR OU IGUAL A 1,30 M. AF_02/2021","m³",29.63,80.78,99.79,2956.77]
[" 2.3.3 "," 94962 ","SINAPI","CONCRETO MAGRO PARA LASTRO, TRAÇO 1:4,5:4,5 (EM MASSA SECA DE CIMENTO/ AREIA MÉDIA/ BRITA 1) - PREPARO MECÂNICO COM BETONEIRA 400 L. AF_05/2021","m³",0.68,406.18,501.79,341.21]
[" 2.3.4 "," 97086 ","SINAPI","FABRICAÇÃO, MONTAGEM E DESMONTAGEM DE FORMA PARA RADIER, PISO DE CONCRETO OU LAJE SOBRE SOLO, EM MADEIRA SERRADA, 4 UTILIZAÇÕES. AF_09/2021","m²",233.75,121.46,150.05000000000001,35074.18]
[" 2.3.5 "," 96543 ","SINAPI","ARMAÇÃO DE BLOCO UTILIZANDO AÇO CA-60 DE 5 MM - MONTAGEM. AF_01/2024","KG",135.24,20.68,25.54,3454.02]
[" 2.3.6 "," 96544 ","SINAPI","ARMAÇÃO DE BLOCO UTILIZANDO AÇO CA-50 DE 6,3 MM - MONTAGEM. AF_01/2024","KG",155.82,19.03,23.5,3661.77]
[" 2.3.7 "," 96546 ","SINAPI","ARMAÇÃO DE BLOCO UTILIZANDO AÇO CA-50 DE 10 MM - MONTAGEM. AF_01/2024","KG",29.62,15.39,19.010000000000002,563.07000000000005]
[" 2.3.8 "," 9399 ","ORSE","Concreto simples fabricado na obra, fck=25 mpa, lançado e adensado","m³",21.25,626.77,774.31,16454.080000000002]
[" 2.3.9 "," 93382 ","SINAPI","REATERRO MANUAL DE VALAS, COM COMPACTADOR DE SOLOS DE PERCUSSÃO. AF_08/2023","m³",8.77,25.09,30.99,271.77999999999997]
[" 2.4 ",null,null,"ALVENARIA (MURETA E ARQUIBANCADA)"]
[" 2.4.1 "," 103330 ","SINAPI","ALVENARIA DE VEDAÇÃO DE BLOCOS CERÂMICOS FURADOS NA HORIZONTAL DE 11,5X19X19 CM (ESPESSURA 11,5 CM) E ARGAMASSA DE ASSENTAMENTO COM PREPARO EM BETONEIRA. AF_12/2021","m²",63.48,69.540000000000006,{"$f":"TRUNC(G42*(1+$G$5)*(1-$I$8),2)","v":85.9},{"$f":"TRUNC(F42*H42,2)","v":5452.93}]
[" 2.4.2 "," 89799 ","SINAPI","TUBO PVC, SERIE NORMAL, ESGOTO PREDIAL, DN 75 MM, FORNECIDO E INSTALADO EM PRUMADA DE ESGOTO SANITÁRIO OU VENTILAÇÃO. AF_08/2022","M",1.35,18.61,{"$f":"TRUNC(G43*(1+$G$5)*(1-$I$8),2)","v":22.99},{"$f":"TRUNC(F43*H43,2)","v":31.03}]
[" 2.4.3 "," 87894 ","SINAPI","CHAPISCO APLICADO EM ALVENARIA (SEM PRESENÇA DE VÃOS) E ESTRUTURAS DE CONCRETO DE FACHADA, COM COLHER DE PEDREIRO.  ARGAMASSA TRAÇO 1:3 COM PREPARO EM BETONEIRA 400L. AF_10/2022","m²",142.83000000000001,6.56,{"$f":"TRUNC(G44*(1+$G$5)*(1-$I$8),2)","v":8.1},{"$f":"TRUNC(F44*H44,2)","v":1156.92}]
[" 2.4.4 "," 87529 ","SINAPI","MASSA ÚNICA, EM ARGAMASSA TRAÇO 1:2:8, PREPARO MECÂNICO, APLICADA MANUALMENTE EM PAREDES INTERNAS DE AMBIENTES COM ÁREA ENTRE 5M² E 10M², E = 17,5MM, COM TALISCAS. AF_03/2024","m²",142.83000000000001,35.450000000000003,{"$f":"TRUNC(G45*(1+$G$5)*(1-$I$8),2)","v":43.79},{"$f":"TRUNC(F45*H45,2)","v":6254.52}]
[" 2.5 ",null,null,"PISO"]
[" 2.5.1 "," 96622 ","SINAPI","LASTRO COM MATERIAL GRANULAR, APLICADO EM PISOS OU LAJES SOBRE SOLO, ESPESSURA DE *5 CM*. AF_01/2024","m³",32.4,232.84,{"$f":"TRUNC(G47*(1+$G$5)*(1-$I$8),2)","v":287.64999999999998},{"$f":"TRUNC(F47*H47,2)","v":9319.86}]
[" 2.5.2 "," 94994 ","SINAPI","EXECUÇÃO DE PASSEIO (CALÇADA) OU PISO DE CONCRETO COM CONCRETO MOLDADO IN LOCO, FEITO EM OBRA, ACABAMENTO CONVENCIONAL, ESPESSURA 8 CM, ARMADO. AF_08/2022","m²",648.05999999999995,92.7,{"$f":"TRUNC(G48*(1+$G$5)*(1-$I$8),2)","v":114.52},{"$f":"TRUNC(F48*H48,2)","v":74215.83}]
[" 2.5.3 "," 3641 ","ORSE","Acabamento de superfície de piso de concreto com polimento mecânico com acabadora simples - Rev 02","m²",648.05999999999995,3.93,{"$f":"TRUNC(G49*(1+$G$5)*(1-$I$8),2)","v":4.8499999999999996},{"$f":"TRUNC(F49*H49,2)","v":3143.09}]
[" 2.6 ",null,null,"CALÇADA"]
[" 2.6.1 "," 4555 ","ORSE","Meio-fio pré moldado de concreto simples (0,12 x 0,30 x 1,00m), rejuntado comargamassa de cimento e areia no traço 1:3","m",126.38,44.35,{"$f":"TRUNC(G51*(1+$G$5)*(1-$I$8),2)","v":54.78},{"$f":"TRUNC(F51*H51,2)","v":6923.09}]
[" 2.6.2 "," 94991 ","SINAPI","EXECUÇÃO DE PASSEIO (CALÇADA) OU PISO DE CONCRETO COM CONCRETO MOLDADO IN LOCO, USINADO C20, ACABAMENTO CONVENCIONAL, NÃO ARMADO. AF_08/2022","m³",15.56,693.61,{"$f":"TRUNC(G52*(1+$G$5)*(1-$I$8),2)","v":856.88},{"$f":"TRUNC(F52*H52,2)","v":13333.05}]
[" 2.7 ",null,null,"EQUIPAMENTOS"]
[" 2.7.1 "," CODEVASF  234 ","Próprio","BICICLETÁRIO EM TUBO DE AÇO GALVANIZADO DN 50mm","UND",10,591.76,{"$f":"TRUNC(G54*(1+$G$5)*(1-$I$8),2)","v":731.06},{"$f":"TRUNC(F54*H54,2)","v":7310.6}]
[" 2.7.2 "," 9222 ","ORSE","Guarda-corpo em tubos de aço galvanizado (altura = 0,90), com barras verticais a cada 2,00m (2\"), barra horizontal intermediária (2\") e barra horizontal superior (2\")","m",20.68,283.68,{"$f":"TRUNC(G55*(1+$G$5)*(1-$I$8),2)","v":350.45},{"$f":"TRUNC(F55*H55,2)","v":7247.3}]
[" 2.8 ",null,null,"PINTURA"]
[" 2.8.1 "," 88489 ","SINAPI","PINTURA LÁTEX ACRÍLICA PREMIUM, APLICAÇÃO MANUAL EM PAREDES, DUAS DEMÃOS. AF_04/2023","m²",138.82,13.12,{"$f":"TRUNC(G57*(1+$G$5)*(1-$I$8),2)","v":16.2},{"$f":"TRUNC(F57*H57,2)","v":2248.88}]
[" 2.8.2 "," 100758 ","SINAPI","PINTURA COM TINTA ALQUÍDICA DE ACABAMENTO (ESMALTE SINTÉTICO ACETINADO) APLICADA A ROLO OU PINCEL SOBRE SUPERFÍCIES METÁLICAS (EXCETO PERFIL) EXECUTADO EM OBRA (02 DEMÃOS). AF_01/2020","m²",8.1,48.23,{"$f":"TRUNC(G58*(1+$G$5)*(1-$I$8),2)","v":59.58},{"$f":"TRUNC(F58*H58,2)","v":482.59}]
[" 3 ",null,null,"INSTALAÇÕES ELÉTRICA (GERAL)"]
[" 3.1 ",null,null,"ENTRADA DE SERVIÇO MONOFÁSICA 220V"]
[" 3.1.1 "," 101496 ","SINAPI","ENTRADA DE ENERGIA ELÉTRICA, AÉREA, MONOFÁSICA, COM CAIXA DE EMBUTIR, CABO DE 35 MM2 E DISJUNTOR DIN 50A (NÃO INCLUSO O POSTE DE CONCRETO). AF_07/2020_PS","UN",1,1612.67,{"$f":"TRUNC(G61*(1+$G$5)*(1-$I$8),2)","v":1992.29},{"$f":"TRUNC(F61*H61,2)","v":1992.29}]
[" 3.1.2 "," 83446 ","SINAPI","CAIXA DE PASSAGEM 30X30X40 COM TAMPA E DRENO BRITA","UN",1,212.59,{"$f":"TRUNC(G62*(1+$G$5)*(1-$I$8),2)","v":262.63},{"$f":"TRUNC(F62*H62,2)","v":262.63}]
[" 3.2 ",null,null,"INSTALAÇÃO DA ILUMINAÇÃO DO ESPAÇO MULTIEVENTOS"]
[" 3.2.1 "," 331 ","ORSE","Poste de concreto duplo T (DT)  9/200 - fornecimento e assentamento","un",4,874.5,{"$f":"TRUNC(G64*(1+$G$5)*(1-$I$8),2)","v":1080.3499999999999},{"$f":"TRUNC(F64*H64,2)","v":4321.3999999999996}]
[" 3.2.2 "," 91863 ","SINAPI","ELETRODUTO RÍGIDO ROSCÁVEL, PVC, DN 25 MM (3/4\"), PARA CIRCUITOS TERMINAIS, INSTALADO EM FORRO - FORNECIMENTO E INSTALAÇÃO. AF_03/2023","M",27,9.82,12.13,327.51]
[" 3.2.3 "," 91879 ","SINAPI","LUVA PARA ELETRODUTO, PVC, ROSCÁVEL, DN 25 MM (3/4\"), PARA CIRCUITOS TERMINAIS, INSTALADA EM LAJE - FORNECIMENTO E INSTALAÇÃO. AF_03/2023","UN",14,5.79,7.15,100.1]
[" 3.2.4 "," 91890 ","SINAPI","CURVA 90 GRAUS PARA ELETRODUTO, PVC, ROSCÁVEL, DN 25 MM (3/4\"), PARA CIRCUITOS TERMINAIS, INSTALADA EM FORRO - FORNECIMENTO E INSTALAÇÃO. AF_03/2023","UN",7,11.31,13.97,97.79]
[" 3.2.5 "," 91892 ","SINAPI","CURVA 180 GRAUS PARA ELETRODUTO, PVC, ROSCÁVEL, DN 25 MM (3/4\"), PARA CIRCUITOS TERMINAIS, INSTALADA EM FORRO - FORNECIMENTO E INSTALAÇÃO. AF_03/2023","UN",4,12.39,15.3,61.2]
[" 3.2.6 "," 96985 ","SINAPI","HASTE DE ATERRAMENTO, DIÂMETRO 5/8\", COM 3 METROS - FORNECIMENTO E INSTALAÇÃO. AF_08/2023","UN",4,88.94,109.87,439.48]
[" 3.2.7 "," 83446 ","SINAPI","CAIXA DE PASSAGEM 30X30X40 COM TAMPA E DRENO BRITA","UN",6,212.59,262.63,1575.78]
[" 3.2.8 "," CODEVASF  235 ","Próprio","ENTRADA DE ENERGIA ELÉTRICA AÉREA MONOFÁSICA 40A COM POSTE DE CONCRETO, INCLUSIVE CABEAMENTO, CAIXA DE PROTEÇÃO PARA MEDIDOR E ATERRAMENTO.","und",1,1565.53,1934.05,1934.05]
[" 3.2.9 "," 8349 ","ORSE","Refletor para lampada vapor de sódio 400w, Olivo ou similar, inclusive lâmpada e reator","un",12,259.83999999999997,321,3852]
[" 3.2.10 "," 4232 ","ORSE","Lâmpada vapor metálico 400w, fornecimento. Rev 01_06/2024","un",12,33.99,41.99,503.88]
[" 3.2.11 "," 103782 ","SINAPI","LUMINÁRIA TIPO PLAFON CIRCULAR, DE SOBREPOR, COM LED DE 12/13 W - FORNECIMENTO E INSTALAÇÃO. AF_03/2022","UN",12,26.76,33.049999999999997,396.6]
[" 3.2.12 "," 642 ","ORSE","Ponto de luz em teto ou parede, com eletroduto pvc rígido embutido Ø 3/4\"","un",12,278.37,343.89,4126.68]
[" 3.2.13 "," 91859 ","SINAPI","ELETRODUTO FLEXÍVEL LISO, PEAD, DN 32 MM (1\"), PARA CIRCUITOS TERMINAIS, INSTALADO EM PAREDE - FORNECIMENTO E INSTALAÇÃO. AF_03/2023","M",80,9.7799999999999994,12.08,966.4]
[" 3.2.14 "," 91871 ","SINAPI","ELETRODUTO RÍGIDO ROSCÁVEL, PVC, DN 25 MM (3/4\"), PARA CIRCUITOS TERMINAIS, INSTALADO EM PAREDE - FORNECIMENTO E INSTALAÇÃO. AF_03/2023","M",80,12.59,15.55,1244]
[" 3.2.15 "," 91931 ","SINAPI","CABO DE COBRE FLEXÍVEL ISOLADO, 6 MM², ANTI-CHAMA 0,6/1,0 KV, PARA CIRCUITOS TERMINAIS - FORNECIMENTO E INSTALAÇÃO. AF_03/2023","M",200,9.8699999999999992,12.19,2438]
[" 3.2.16 "," 91926 ","SINAPI","CABO DE COBRE FLEXÍVEL ISOLADO, 2,5 MM², ANTI-CHAMA 450/750 V, PARA CIRCUITOS TERMINAIS - FORNECIMENTO E INSTALAÇÃO. AF_03/2023","M",250,4.2,5.18,1295]
[" 3.2.17 "," 101878 ","SINAPI","QUADRO DE DISTRIBUIÇÃO DE ENERGIA EM CHAPA DE AÇO GALVANIZADO, DE SOBREPOR, COM BARRAMENTO TRIFÁSICO, PARA 18 DISJUNTORES DIN 100A - FORNECIMENTO E INSTALAÇÃO. AF_10/2020","UN",1,492.63,608.59,608.59]
[" 3.2.18 "," 93672 ","SINAPI","DISJUNTOR TRIPOLAR TIPO DIN, CORRENTE NOMINAL DE 40A - FORNECIMENTO E INSTALAÇÃO. AF_10/2020","UN",1,78.11,96.49,96.49]
[" 3.2.19 "," 93654 ","SINAPI","DISJUNTOR MONOPOLAR TIPO DIN, CORRENTE NOMINAL DE 16A - FORNECIMENTO E INSTALAÇÃO. AF_10/2020","UN",4,10.89,13.45,53.8]
[" 3.2.20 "," 93660 ","SINAPI","DISJUNTOR BIPOLAR TIPO DIN, CORRENTE NOMINAL DE 10A - FORNECIMENTO E INSTALAÇÃO. AF_10/2020","UN",4,49.42,61.05,244.2]
[" 3.2.21 "," 93653 ","SINAPI","DISJUNTOR MONOPOLAR TIPO DIN, CORRENTE NOMINAL DE 10A - FORNECIMENTO E INSTALAÇÃO. AF_10/2020","UN",1,10.3,12.72,12.72]
[" 3.2.22 "," 92001 ","SINAPI","TOMADA BAIXA DE EMBUTIR (1 MÓDULO), 2P+T 20 A, INCLUINDO SUPORTE E PLACA - FORNECIMENTO E INSTALAÇÃO. AF_03/2023","UN",4,29.35,36.25,145]
[" 4 ",null,null,"DIVERSOS"]
[" 4.1 "," CODEVASF  240 ","Próprio","LOGOMARCA EM ALTO RELEVO","und",3,375.11,{"$f":"TRUNC(G87*(1+$G$5)*(1-$I$8),2)","v":463.41},{"$f":"TRUNC(F87*H87,2)","v":1390.23}]
[" 4.2 "," 5 ","ORSE","Placa de inauguração de obra em alumínio 0,50 x 0,70 m","un",1,2087.8000000000002,{"$f":"TRUNC(G88*(1+$G$5)*(1-$I$8),2)","v":2579.2600000000002},{"$f":"TRUNC(F88*H88,2)","v":2579.2600000000002}]

{"sheet":"Cronograma","index":2,"n_rows":25,"n_cols":10,"rows_kept":25,"cut":false,"hidden":false,"merged":[[4,0,4,8],[5,0,5,8],[6,0,6,8],[8,0,9,0],[8,1,9,1],[8,2,9,2],[8,4,8,8],[11,0,12,0],[11,1,12,1],[11,2,12,2],[13,0,14,0],[13,1,14,1],[13,2,14,2],[15,0,16,0],[15,1,16,1],[15,2,16,2],[17,0,18,0],[17,1,18,1],[17,2,18,2]]}
[null,"                                               Ministério da Integração e do Desenvolvimento Regional - MIDR "]
[null,"                                               Companhia de Desenvolvimento dos Vales do São Francisco e do Parnaíba "]
[null,"                                               Gerência Regional de Infraestrutura "]
[]
[{"$f":"'Resumo do Orçamento'!D6","v":"Espaço Multiuso - Tipo 02"}]
[]
["CRONOGRAMA FÍSICO E FINANCEIRO"]
[]
["ITEM","DESCRIÇÃO DOS SERVIÇOS","R$",null,"PRAZO (DIAS)"]
[null,null,null,30,60,90,120,150,180]
[]
[1,{"$f":"'Resumo do Orçamento'!D12","v":"SERVIÇOS PRELIMINARES"},{"$f":"'Resumo do Orçamento'!J12","v":27272.07},0.4,0.12,0.12,0.12,0.12,0.12,{"$f":"SUM(D12:I12)","v":1}]
[null,null,null,{"$f":"ROUND(D12*$C$12,2)","v":10908.83},3272.65,3272.65,3272.65,3272.65,3272.65]
[2,{"$f":"'Resumo do Orçamento'!D13","v":"ESPAÇO MULTIEVENTOS"},{"$f":"'Resumo do Orçamento'!J13","v":224664.33},0,0,0.3,0.5,0.2,0,{"$f":"SUM(D14:I14)","v":1}]
[null,null,null,{"$f":"ROUND(D14*$C$14,2)","v":0},0,67399.3,112332.17,44932.87,0]
[3,{"$f":"'Resumo do Orçamento'!D14","v":"INSTALAÇÕES ELÉTRICA (GERAL)"},{"$f":"'Resumo do Orçamento'!J14","v":27095.590000000004},0,0,0,0,0.5,0.5,{"$f":"SUM(D16:I16)","v":1}]
[null,null,null,{"$f":"ROUND(D16*$C$16,2)","v":0},0,0,0,13547.8,13547.8]
[4,{"$f":"'Resumo do Orçamento'!D15","v":"DIVERSOS"},{"$f":"'Resumo do Orçamento'!J15","v":3969.4900000000002},0,0,0,0,0.5,0.5,{"$f":"SUM(D18:I18)","v":1}]
[null,null,null,{"$f":"ROUND(D18*$C$18,2)","v":0},0,0,0,1984.75,1984.75]
[]
[]
[null,"Total Geral",{"$f":"C12+C14+C16+C18","v":283001.48},{"$f":"D13+D15+D17+D19","v":10908.83},3272.65,70671.95,115604.81999999999,63738.070000000007,18805.2]
[]
[null,null,null,{"$f":"D22/$C$22","v":3.8546900885465335E-2},1.1564073799190026E-2,0.249722898975652,0.40849546087179472,0.22522168435302886,6.6449122456886098E-2]
[null,"Total Geral Acumulado",null,{"$f":"D22+C25","v":10908.83},14181.48,84853.43,200458.25,264196.32,283001.52]

{"sheet":"BDI","index":3,"n_rows":31,"n_cols":4,"rows_kept":31,"cut":false,"hidden":false,"merged":[[28,0,29,0],[28,2,29,2],[28,3,29,3],[30,0,34,3],[0,1,0,3],[1,1,1,3],[2,1,2,3],[26,1,26,2],[5,0,5,3],[6,0,6,3],[8,0,9,0],[8,1,9,2],[8,3,9,3],[0,0,2,0]]}
[null,"Ministério da Integração e do Desenvolvimento Regional - MIDR"]
[null,"Companhia de Desenvolvimento dos Vales do São Francisco e do Parnaíba "]
[null,"4ª Gerência Regional de Infraestrutura "]
[]
[null,null,null,"Sem Desoneração"]
[]
["DETALHAMENTO DO BDI"]
[]
["ITEM","DESCRIÇÕES DOS ITENS",null,"%"]
[]
[]
[1,"ADMINISTRAÇÃO CENTRAL ( AC )",null,4]
[null,null,null," "]
[2,"TRIBUTOS ( I )",null,{"$f":"SUM(D15:D18)","v":6.65}]
["2.1","ISS",null,3]
["2.2","PIS",null,0.65]
["2.3","Cofins",null,3]
["2.4","CPRB (Contribuição Previdenciária sobre a Receita Bruta)",null,0]
[]
[3,"TAXA DE RISCO ( R )",null,1.27]
[]
[4,"SEGURO E GARANTIAS (S + G)",null,0.8]
[]
[5,"DESPESAS FINANCEIRAS ( F )",null,1.23]
[]
[6,"LUCRO ( L )",null,7.4]
[" "," ",null,{"$f":"ROUND((((1+(D12+D20)/100)*(1+(D24/100))*(1+(D26/100)))/((1-(D14/100)))-1),4)","v":0.22600000000000001}]
[]
["BDI =","  (1+AC+R+S+G)*(1+DF)*(1+L)","-1             ====================>",{"$f":"ROUND((((1+(D12+D20+D22)/100)*(1+(D24/100))*(1+(D26/100)))/((1-(D14/100)))-1),4)","v":0.2354}]
[null,"                    (1-I)"]
["Lei n°7.983/13 - Estabelace regras e critérios para eleboração dp orçamento de referência de obras e serviços de engenharia, contratados e executados com recusros dos orçamentos da União; Acordão n°2622/2013 - Estabelece os parâmetros de referência para as taxas de BDI por tipo de obra; Lei n° 13.161/15 - Desoneração Fiscal"]

{"sheet":"Encacrgos Sociais","index":4,"n_rows":44,"n_cols":4,"rows_kept":44,"cut":false,"hidden":false,"merged":[[42,0,42,1],[43,0,43,1],[4,0,4,3],[7,0,8,1],[9,1,9,3],[19,0,19,1],[20,1,20,3],[31,0,31,1],[32,1,32,3],[0,1,0,3],[1,1,1,3],[2,1,2,3],[38,0,38,1],[39,1,39,3]]}
[null,"Ministério da Integração e do Desenvolvimento Regional - MIDR"]
[null,"Companhia de Desenvovimento dos Vales do São Francisco e do Parnaíba"]
[null,"4ª Gerência Regional de Infraestrutura "]
[]
["Detalhamento dos Encargos Sociais – Horista e Mensalista – Não Desonerado"]
[]
[]
["DISCRIMINAÇÃO",null,"HORISTA","MENSALISTA"]
[null,null,"%","%"]
["A","ENCARGOS SOCIAIS BÁSICOS"]
["A1","INSS",0.2,0.2]
["A2","SESI",1.4999999999999999E-2,1.4999999999999999E-2]
["A3","SENAI",0.01,0.01]
["A4","INCRA",2E-3,2E-3]
["A5","SEBRAE",6.0000000000000001E-3,6.0000000000000001E-3]
["A6","Salário Educação",2.5000000000000001E-2,2.5000000000000001E-2]
["A7","Seguro Contra Acidente de Trabalho",0.03,0.03]
["A8","FGTS",0.08,0.08]
["A9","SECONCI",0,0]
["SUBTOTAL DE “A”:",null,0.36799999999999999,36.799999999999997]
["B","ENCARGOS SOCIAIS QUE RECEBEM INCIDÊNCIA DE “A”"]
["B1","Repouso Semanal Remunerado",0.1787,0]
["B2","Feriados",3.9300000000000002E-2,0]
["B3","Auxílio-Enfermidade",8.5000000000000006E-3,6.4000000000000003E-3]
["B4","13º Salário",0.10979999999999999,8.3299999999999999E-2]
["B5","Licença Paternidade",5.9999999999999995E-4,4.0000000000000002E-4]
["B6","Faltas Justificadas",7.3000000000000001E-3,5.5999999999999999E-3]
["B7","Dias de Chuva",1.5100000000000001E-2,0]
["B8","Auxílio Acidente de Trabalho",1E-3,8.0000000000000004E-4]
["B9","Férias Gozadas",0.1137,8.6400000000000005E-2]
["B10","Salário Maternidade",4.0000000000000002E-4,2.9999999999999997E-4]
["SUBTOTAL DE “B”:",null,0.47439999999999999,0.1832]
["C","ENCARGOS SOCIAIS QUE NÃO RECEBEM INCIDÊNCIA DE “A”"]
["C1","Aviso Prévio Indenizado",4.8300000000000003E-2,3.6700000000000003E-2]
["C2","Aviso Prévio Trabalhado",1.1000000000000001E-3,8.9999999999999998E-4]
["C3","Férias Indenizadas",2.35E-2,1.7899999999999999E-2]
["C4","Depósito Rescisão Sem Justa Causa",2.7099999999999999E-2,2.06E-2]
["C5","Indenização Adicional",4.1000000000000003E-3,3.0999999999999999E-3]
["SUBTOTAL DE “C”:",null,0.1041,7.9200000000000007E-2]
["D","REINCIDÊNCIAS DE UM GRUPO SOBRE O OUTRO"]
["D1","Reincidência de “A” sobre “B”",0.17460000000000001,6.7400000000000002E-2]
["D2","Reincidência de Grupo A sobre Aviso Prévio Trabalhado e Reincidência do FGTS sobre Aviso Prévio Indenizado",4.3E-3,3.3E-3]
["SUBTOTAL DE “D”:",null,0.1789,7.0699999999999999E-2]
["TOTAIS DE ENCARGOS SOCIAIS:",null,1.1254,0.70109999999999995]

{"sheet":"Curva ABC de Serviços","index":5,"n_rows":64,"n_cols":10,"rows_kept":64,"cut":false,"hidden":false,"merged":[[0,4,0,6],[0,7,0,9],[1,4,1,6],[1,7,1,9],[2,0,2,9]]}
[null,null,"Obra","Bancos","B.D.I.",null,null,"Encargos Sociais"]
[null,null,"Espaço Multiuso - Tipo 02","SINAPI - 08/2024 - Sergipe\nORSE - 06/2024 - Sergipe\n","23,54%",null,null,"Não Desonerado: \nHorista: 112,54%\nMensalista: 70,11%"]
["Curva ABC de Serviços"]
["Código","Banco","Descrição","Tipo","Und","Quant.","Valor  Unit","Total","Peso (%)","Peso Acumulado (%)"]
[" 94994 ","SINAPI","EXECUÇÃO DE PASSEIO (CALÇADA) OU PISO DE CONCRETO COM CONCRETO MOLDADO IN LOCO, FEITO EM OBRA, ACABAMENTO CONVENCIONAL, ESPESSURA 8 CM, ARMADO. AF_08/2022","PISO - PISOS","m²","648,06",{"$f":"VLOOKUP(A5,'Orçamento Sintético'!$B$13:$H$88,7,FALSE)","v":114.52},{"$f":"TRUNC(F5*G5,2)","v":74215.83},{"$f":"H5/$H$64","v":0.26224537765668227},{"$f":"I5","v":0.26224537765668227}]
[" 97086 ","SINAPI","FABRICAÇÃO, MONTAGEM E DESMONTAGEM DE FORMA PARA RADIER, PISO DE CONCRETO OU LAJE SOBRE SOLO, EM MADEIRA SERRADA, 4 UTILIZAÇÕES. AF_09/2021","FUES - FUNDAÇÕES E ESTRUTURAS","m²","233,75",{"$f":"VLOOKUP(A6,'Orçamento Sintético'!$B$13:$H$88,7,FALSE)","v":150.05000000000001},35074.18,0.12393638365424804,{"$f":"I6+J5","v":0.38618176131093029}]
[" CODEVASF  122 ","Próprio","Administração local de pequenas obras","CANT - CANTEIRO DE OBRAS","und",1,{"$f":"VLOOKUP(A7,'Orçamento Sintético'!$B$13:$H$88,7,FALSE)","v":16797.09},16797.09,5.9353364512440013E-2,0.44553512582337029]
[" 9399 ","ORSE","Concreto simples fabricado na obra, fck=25 mpa, lançado e adensado","Concreto Simples","m³","21,25",{"$f":"VLOOKUP(A8,'Orçamento Sintético'!$B$13:$H$88,7,FALSE)","v":774.31},16454.080000000002,5.8141321381075473E-2,0.50367644720444571]
[" 94991 ","SINAPI","EXECUÇÃO DE PASSEIO (CALÇADA) OU PISO DE CONCRETO COM CONCRETO MOLDADO IN LOCO, USINADO C20, ACABAMENTO CONVENCIONAL, NÃO ARMADO. AF_08/2022","PISO - PISOS","m³","15,56",{"$f":"VLOOKUP(A9,'Orçamento Sintético'!$B$13:$H$88,7,FALSE)","v":856.88},13333.05,4.7113004497361638E-2,0.55078945170180738]
[" 96622 ","SINAPI","LASTRO COM MATERIAL GRANULAR, APLICADO EM PISOS OU LAJES SOBRE SOLO, ESPESSURA DE *5 CM*. AF_01/2024","FUES - FUNDAÇÕES E ESTRUTURAS","m³","32,4",{"$f":"VLOOKUP(A10,'Orçamento Sintético'!$B$13:$H$88,7,FALSE)","v":287.64999999999998},9319.86,3.2932195266257978E-2,0.58372164696806539]
[" CODEVASF  234 ","Próprio","BICICLETÁRIO EM TUBO DE AÇO GALVANIZADO DN 50mm","SEDI - SERVIÇOS DIVERSOS","UND","10,0",{"$f":"VLOOKUP(A11,'Orçamento Sintético'!$B$13:$H$88,7,FALSE)","v":731.06},7310.6,2.5832373738822852E-2,0.60955402070688824]
[" 9222 ","ORSE","Guarda-corpo em tubos de aço galvanizado (altura = 0,90), com barras verticais a cada 2,00m (2\"), barra horizontal intermediária (2\") e barra horizontal superior (2\")","Esquadrias de Ferro","m","20,68",{"$f":"VLOOKUP(A12,'Orçamento Sintético'!$B$13:$H$88,7,FALSE)","v":350.45},7247.3,2.5608699996904613E-2,0.63516272070379287]
[" 71 ","ORSE","Aterro manual de áreas, sem aquisição de material, com espalhamento e compactação","Aterros / Reaterros / Compactações","m³","107,35",{"$f":"VLOOKUP(A13,'Orçamento Sintético'!$B$13:$H$88,7,FALSE)","v":64.63},6938.03,2.4515878856887958E-2,0.65967859956068087]
[" 4555 ","ORSE","Meio-fio pré moldado de concreto simples (0,12 x 0,30 x 1,00m), rejuntado comargamassa de cimento e areia no traço 1:3","Meios-Fios e Guias","m","126,38",{"$f":"VLOOKUP(A14,'Orçamento Sintético'!$B$13:$H$88,7,FALSE)","v":54.78},6923.09,2.4463087613534745E-2,0.68414168717421564]
[" 97914 ","SINAPI","TRANSPORTE COM CAMINHÃO BASCULANTE DE 6 M³, EM VIA URBANA PAVIMENTADA, DMT ATÉ 30 KM (UNIDADE: M3XKM). AF_07/2020","TRAN - TRANSPORTES, CARGAS E DESCARGAS","M3XKM","1.916,54",{"$f":"VLOOKUP(A15,'Orçamento Sintético'!$B$13:$H$88,7,FALSE)","v":3.44},6592.89,2.3296309263117636E-2,0.70743799643733329]
[" 87529 ","SINAPI","MASSA ÚNICA, EM ARGAMASSA TRAÇO 1:2:8, PREPARO MECÂNICO, APLICADA MANUALMENTE EM PAREDES INTERNAS DE AMBIENTES COM ÁREA ENTRE 5M² E 10M², E = 17,5MM, COM TALISCAS. AF_03/2024","REVE - REVESTIMENTO E TRATAMENTO DE SUPERFÍCIES","m²","142,83",{"$f":"VLOOKUP(A16,'Orçamento Sintético'!$B$13:$H$88,7,FALSE)","v":43.79},6254.52,2.210066180572625E-2,0.72953865824305952]
[" 103330 ","SINAPI","ALVENARIA DE VEDAÇÃO DE BLOCOS CERÂMICOS FURADOS NA HORIZONTAL DE 11,5X19X19 CM (ESPESSURA 11,5 CM) E ARGAMASSA DE ASSENTAMENTO COM PREPARO EM BETONEIRA. AF_12/2021","PARE - PAREDES/PAINEIS","m²","63,48",{"$f":"VLOOKUP(A17,'Orçamento Sintético'!$B$13:$H$88,7,FALSE)","v":85.9},5452.93,1.9268203120351175E-2,0.74880686136341068]
[" 98524 ","SINAPI","LIMPEZA MANUAL DE VEGETAÇÃO EM TERRENO COM ENXADA. AF_03/2024","URBA - URBANIZAÇÃO","m²","967,95",{"$f":"VLOOKUP(A18,'Orçamento Sintético'!$B$13:$H$88,7,FALSE)","v":5.37},5197.8900000000003,1.8367006419895755E-2,0.76717386778330643]
[" 00006079 ","SINAPI","ARGILA, ARGILA VERMELHA OU ARGILA ARENOSA (RETIRADA NA JAZIDA, SEM TRANSPORTE)","Material","m³","106,47",{"$f":"VLOOKUP(A19,'Orçamento Sintético'!$B$13:$H$88,7,FALSE)","v":46.14},4912.5200000000004,1.7358637135042546E-2,0.78453250491834903]
[" 331 ","ORSE","Poste de concreto duplo T (DT)  9/200 - fornecimento e assentamento","Entrada em Baixa Tensão","un","4,0",{"$f":"VLOOKUP(A20,'Orçamento Sintético'!$B$13:$H$88,7,FALSE)","v":1080.3499999999999},4321.3999999999996,1.5269884807669557E-2,0.79980238972601858]
[" 642 ","ORSE","Ponto de luz em teto ou parede, com eletroduto pvc rígido embutido Ø 3/4\"","Pontos de Suprimento de Energia Convencionais","un","12,0",{"$f":"VLOOKUP(A21,'Orçamento Sintético'!$B$13:$H$88,7,FALSE)","v":343.89},4126.68,1.458183186886514E-2,0.81438422159488377]
[" 8349 ","ORSE","Refletor para lampada vapor de sódio 400w, Olivo ou similar, inclusive lâmpada e reator","Luminárias Externas","un","12,0",{"$f":"VLOOKUP(A22,'Orçamento Sintético'!$B$13:$H$88,7,FALSE)","v":321},3852,1.3611236238057838E-2,0.82799545783294159]
[" 96544 ","SINAPI","ARMAÇÃO DE BLOCO UTILIZANDO AÇO CA-50 DE 6,3 MM - MONTAGEM. AF_01/2024","FUES - FUNDAÇÕES E ESTRUTURAS","KG","155,82",{"$f":"VLOOKUP(A23,'Orçamento Sintético'!$B$13:$H$88,7,FALSE)","v":23.5},3661.77,1.2939048940662785E-2,0.84093450677360437]
[" 96543 ","SINAPI","ARMAÇÃO DE BLOCO UTILIZANDO AÇO CA-60 DE 5 MM - MONTAGEM. AF_01/2024","FUES - FUNDAÇÕES E ESTRUTURAS","KG","135,24",{"$f":"VLOOKUP(A24,'Orçamento Sintético'!$B$13:$H$88,7,FALSE)","v":25.54},3454.02,1.2204953839817376E-2,0.85313946061342172]
[" 3641 ","ORSE","Acabamento de superfície de piso de concreto com polimento mecânico com acabadora simples - Rev 02","Pavimentações Externas","m²","648,06",{"$f":"VLOOKUP(A25,'Orçamento Sintético'!$B$13:$H$88,7,FALSE)","v":4.8499999999999996},3143.09,1.110626700609481E-2,0.86424572761951657]
[" 10528 ","ORSE","Aluguel mensal de área","Serviços","mês","4,0",{"$f":"VLOOKUP(A26,'Orçamento Sintético'!$B$13:$H$88,7,FALSE)","v":747.15},2988.6,1.0560368800898143E-2,0.87480609642041474]
[" 51 ","ORSE","Placa de obra em chapa aço galvanizado, instalada - Rev 02_01/2022","Mobilização / Instalações Provisórias / Desmobilização","m²","6,4",{"$f":"VLOOKUP(A27,'Orçamento Sintético'!$B$13:$H$88,7,FALSE)","v":464},2969.6,1.049323134281842E-2,0.88529932776323317]
[" 93358 ","SINAPI","ESCAVAÇÃO MANUAL DE VALA COM PROFUNDIDADE MENOR OU IGUAL A 1,30 M. AF_02/2021","MOVT - MOVIMENTO DE TERRA","m³","29,63",{"$f":"VLOOKUP(A28,'Orçamento Sintético'!$B$13:$H$88,7,FALSE)","v":99.79},2956.77,1.044789589086248E-2,0.89574722365409565]
[" 5 ","ORSE","Placa de inauguração de obra em alumínio 0,50 x 0,70 m","Serviços Iniciais de Obras Civis","un","1,0",{"$f":"VLOOKUP(A29,'Orçamento Sintético'!$B$13:$H$88,7,FALSE)","v":2579.2600000000002},2579.2600000000002,9.1139452698268588E-3,0.90486116892392254]
[" 91931 ","SINAPI","CABO DE COBRE FLEXÍVEL ISOLADO, 6 MM², ANTI-CHAMA 0,6/1,0 KV, PARA CIRCUITOS TERMINAIS - FORNECIMENTO E INSTALAÇÃO. AF_03/2023","INEL - INSTALAÇÃO ELÉTRICA/ELETRIFICAÇÃO E ILUMINAÇÃO EXTERNA","M","200,0",{"$f":"VLOOKUP(A30,'Orçamento Sintético'!$B$13:$H$88,7,FALSE)","v":12.19},2438,8.6147959367562331E-3,0.91347596486067872]
[" 88489 ","SINAPI","PINTURA LÁTEX ACRÍLICA PREMIUM, APLICAÇÃO MANUAL EM PAREDES, DUAS DEMÃOS. AF_04/2023","PINT - PINTURAS","m²","138,82",{"$f":"VLOOKUP(A31,'Orçamento Sintético'!$B$13:$H$88,7,FALSE)","v":16.2},2248.88,7.9465308803332059E-3,0.92142249574101198]
[" 101496 ","SINAPI","ENTRADA DE ENERGIA ELÉTRICA, AÉREA, MONOFÁSICA, COM CAIXA DE EMBUTIR, CABO DE 35 MM2 E DISJUNTOR DIN 50A (NÃO INCLUSO O POSTE DE CONCRETO). AF_07/2020_PS","INEL - INSTALAÇÃO ELÉTRICA/ELETRIFICAÇÃO E ILUMINAÇÃO EXTERNA","UN","1,0",{"$f":"VLOOKUP(A32,'Orçamento Sintético'!$B$13:$H$88,7,FALSE)","v":1992.29},1992.29,7.0398571767186519E-3,0.9284623529177306]
[" CODEVASF 331 ","Próprio","Projeto Executivo (Multiuso 02)","SERT - SERVIÇOS TÉCNICOS","und","1,0",{"$f":"VLOOKUP(A33,'Orçamento Sintético'!$B$13:$H$88,7,FALSE)","v":1976.64},1976.64,6.9845571125635112E-3,0.93544691003029412]
[" CODEVASF  235 ","Próprio","ENTRADA DE ENERGIA ELÉTRICA AÉREA MONOFÁSICA 40A COM POSTE DE CONCRETO, INCLUSIVE CABEAMENTO, CAIXA DE PROTEÇÃO PARA MEDIDOR E ATERRAMENTO.","INEL - INSTALAÇÃO ELÉTRICA/ELETRIFICAÇÃO E ILUMINAÇÃO EXTERNA","und","1,0",{"$f":"VLOOKUP(A34,'Orçamento Sintético'!$B$13:$H$88,7,FALSE)","v":1934.05},1934.05,6.8340631999521699E-3,0.94228097323024629]
[" 83446 ","SINAPI","CAIXA DE PASSAGEM 30X30X40 COM TAMPA E DRENO BRITA","INEL - INSTALAÇÃO ELÉTRICA/ELETRIFICAÇÃO E ILUMINAÇÃO EXTERNA","UN","7,0",{"$f":"VLOOKUP(A35,'Orçamento Sintético'!$B$13:$H$88,7,FALSE)","v":262.63},1838.41,6.4961144372813889E-3,0.94877708766752766]
[" 00000003 ","Próprio","Mobilização de equipamentos e pessoal (pequenas obras)","CANT - CANTEIRO DE OBRAS","un","1,0",{"$f":"VLOOKUP(A36,'Orçamento Sintético'!$B$13:$H$88,7,FALSE)","v":1618.12},1618.12,5.7177086141033612E-3,0.95449479628163103]
[" CODEVASF  240 ","Próprio","LOGOMARCA EM ALTO RELEVO","ASTU - ASSENTAMENTO DE TUBOS E PECAS","und","3,0",{"$f":"VLOOKUP(A37,'Orçamento Sintético'!$B$13:$H$88,7,FALSE)","v":463.41},{"$f":"TRUNC(F37*G37,2)","v":1390.23},{"$f":"H37/$H$64","v":4.9124478076934446E-3},0.95940724408932443]
[" 91926 ","SINAPI","CABO DE COBRE FLEXÍVEL ISOLADO, 2,5 MM², ANTI-CHAMA 450/750 V, PARA CIRCUITOS TERMINAIS - FORNECIMENTO E INSTALAÇÃO. AF_03/2023","INEL - INSTALAÇÃO ELÉTRICA/ELETRIFICAÇÃO E ILUMINAÇÃO EXTERNA","M","250,0",{"$f":"VLOOKUP(A38,'Orçamento Sintético'!$B$13:$H$88,7,FALSE)","v":5.18},1295,4.5759478006970142E-3,{"$f":"I38+J37","v":0.96398319189002146}]
[" 91871 ","SINAPI","ELETRODUTO RÍGIDO ROSCÁVEL, PVC, DN 25 MM (3/4\"), PARA CIRCUITOS TERMINAIS, INSTALADO EM PAREDE - FORNECIMENTO E INSTALAÇÃO. AF_03/2023","INEL - INSTALAÇÃO ELÉTRICA/ELETRIFICAÇÃO E ILUMINAÇÃO EXTERNA","M","80,0",{"$f":"VLOOKUP(A39,'Orçamento Sintético'!$B$13:$H$88,7,FALSE)","v":15.55},1244,4.3957367290093328E-3,0.96837892861903074]
[" 87894 ","SINAPI","CHAPISCO APLICADO EM ALVENARIA (SEM PRESENÇA DE VÃOS) E ESTRUTURAS DE CONCRETO DE FACHADA, COM COLHER DE PEDREIRO.  ARGAMASSA TRAÇO 1:3 COM PREPARO EM BETONEIRA 400L. AF_10/2022","REVE - REVESTIMENTO E TRATAMENTO DE SUPERFÍCIES","m²","142,83",{"$f":"VLOOKUP(A40,'Orçamento Sintético'!$B$13:$H$88,7,FALSE)","v":8.1},1156.92,4.0880351579786799E-3,0.97246696377700947]
[" 91859 ","SINAPI","ELETRODUTO FLEXÍVEL LISO, PEAD, DN 32 MM (1\"), PARA CIRCUITOS TERMINAIS, INSTALADO EM PAREDE - FORNECIMENTO E INSTALAÇÃO. AF_03/2023","INEL - INSTALAÇÃO ELÉTRICA/ELETRIFICAÇÃO E ILUMINAÇÃO EXTERNA","M","80,0",{"$f":"VLOOKUP(A41,'Orçamento Sintético'!$B$13:$H$88,7,FALSE)","v":12.08},966.4,3.4148231309603047E-3,0.97588178690796978]
[" 00000004 ","Próprio","Desmobilização de equipamentos e pessoal (pequenas obras)","CANT - CANTEIRO DE OBRAS","un","1,0",{"$f":"VLOOKUP(A42,'Orçamento Sintético'!$B$13:$H$88,7,FALSE)","v":922.02},922.02,3.2580041630877691E-3,0.97913979107105753]
[" 4177 ","ORSE","Locação de construção de edificação acima de 1000 m2,  inclusive execução de gabarito de madeira","Locação de Edificações","m²","134,4",{"$f":"VLOOKUP(A43,'Orçamento Sintético'!$B$13:$H$88,7,FALSE)","v":6.75},907.2,3.2056369457855844E-3,0.9823454280168431]
[" 101878 ","SINAPI","QUADRO DE DISTRIBUIÇÃO DE ENERGIA EM CHAPA DE AÇO GALVANIZADO, DE SOBREPOR, COM BARRAMENTO TRIFÁSICO, PARA 18 DISJUNTORES DIN 100A - FORNECIMENTO E INSTALAÇÃO. AF_10/2020","INEL - INSTALAÇÃO ELÉTRICA/ELETRIFICAÇÃO E ILUMINAÇÃO EXTERNA","UN","1,0",{"$f":"VLOOKUP(A44,'Orçamento Sintético'!$B$13:$H$88,7,FALSE)","v":608.59},608.59,2.150483453302082E-3,0.98449591147014515]
[" 96546 ","SINAPI","ARMAÇÃO DE BLOCO UTILIZANDO AÇO CA-50 DE 10 MM - MONTAGEM. AF_01/2024","FUES - FUNDAÇÕES E ESTRUTURAS","KG","29,62",{"$f":"VLOOKUP(A45,'Orçamento Sintético'!$B$13:$H$88,7,FALSE)","v":19.010000000000002},563.07000000000005,1.9896362379447632E-3,0.98648554770808994]
[" 4232 ","ORSE","Lâmpada vapor metálico 400w, fornecimento. Rev 01_06/2024","Subestação Transformadora em Poste","un","12,0",{"$f":"VLOOKUP(A46,'Orçamento Sintético'!$B$13:$H$88,7,FALSE)","v":41.99},503.88,1.7804853882742947E-3,0.98826603309636418]
[" 100758 ","SINAPI","PINTURA COM TINTA ALQUÍDICA DE ACABAMENTO (ESMALTE SINTÉTICO ACETINADO) APLICADA A ROLO OU PINCEL SOBRE SUPERFÍCIES METÁLICAS (EXCETO PERFIL) EXECUTADO EM OBRA (02 DEMÃOS). AF_01/2020","PINT - PINTURAS","m²","8,1",{"$f":"VLOOKUP(A47,'Orçamento Sintético'!$B$13:$H$88,7,FALSE)","v":59.58},482.59,1.7052560997207506E-3,0.9899712891960849]
[" 96985 ","SINAPI","HASTE DE ATERRAMENTO, DIÂMETRO 5/8\", COM 3 METROS - FORNECIMENTO E INSTALAÇÃO. AF_08/2023","INEL - INSTALAÇÃO ELÉTRICA/ELETRIFICAÇÃO E ILUMINAÇÃO EXTERNA","UN","4,0",{"$f":"VLOOKUP(A48,'Orçamento Sintético'!$B$13:$H$88,7,FALSE)","v":109.87},439.48,1.5529247408882811E-3,0.99152421393697321]
[" 103782 ","SINAPI","LUMINÁRIA TIPO PLAFON CIRCULAR, DE SOBREPOR, COM LED DE 12/13 W - FORNECIMENTO E INSTALAÇÃO. AF_03/2022","INEL - INSTALAÇÃO ELÉTRICA/ELETRIFICAÇÃO E ILUMINAÇÃO EXTERNA","UN","12,0",{"$f":"VLOOKUP(A49,'Orçamento Sintético'!$B$13:$H$88,7,FALSE)","v":33.049999999999997},396.6,1.4014060986536185E-3,0.99292562003562679]
[" 94962 ","SINAPI","CONCRETO MAGRO PARA LASTRO, TRAÇO 1:4,5:4,5 (EM MASSA SECA DE CIMENTO/ AREIA MÉDIA/ BRITA 1) - PREPARO MECÂNICO COM BETONEIRA 400 L. AF_05/2021","FUES - FUNDAÇÕES E ESTRUTURAS","m³","0,68",{"$f":"VLOOKUP(A50,'Orçamento Sintético'!$B$13:$H$88,7,FALSE)","v":501.79},341.21,1.2056827405990951E-3,0.99413130277622586]
[" 91863 ","SINAPI","ELETRODUTO RÍGIDO ROSCÁVEL, PVC, DN 25 MM (3/4\"), PARA CIRCUITOS TERMINAIS, INSTALADO EM FORRO - FORNECIMENTO E INSTALAÇÃO. AF_03/2023","INEL - INSTALAÇÃO ELÉTRICA/ELETRIFICAÇÃO E ILUMINAÇÃO EXTERNA","M","27,0",{"$f":"VLOOKUP(A51,'Orçamento Sintético'!$B$13:$H$88,7,FALSE)","v":12.13},327.51,1.1572730997731885E-3,0.99528857587599906]
[" 93382 ","SINAPI","REATERRO MANUAL DE VALAS, COM COMPACTADOR DE SOLOS DE PERCUSSÃO. AF_08/2023","MOVT - MOVIMENTO DE TERRA","m³","8,77",{"$f":"VLOOKUP(A52,'Orçamento Sintético'!$B$13:$H$88,7,FALSE)","v":30.99},271.77999999999997,9.6034833457408065E-4,0.99624892421057309]
[" 93660 ","SINAPI","DISJUNTOR BIPOLAR TIPO DIN, CORRENTE NOMINAL DE 10A - FORNECIMENTO E INSTALAÇÃO. AF_10/2020","INEL - INSTALAÇÃO ELÉTRICA/ELETRIFICAÇÃO E ILUMINAÇÃO EXTERNA","UN","4,0",{"$f":"VLOOKUP(A53,'Orçamento Sintético'!$B$13:$H$88,7,FALSE)","v":61.05},244.2,8.6289301384572263E-4,0.99711181722441877]
[" 92001 ","SINAPI","TOMADA BAIXA DE EMBUTIR (1 MÓDULO), 2P+T 20 A, INCLUINDO SUPORTE E PLACA - FORNECIMENTO E INSTALAÇÃO. AF_03/2023","INEL - INSTALAÇÃO ELÉTRICA/ELETRIFICAÇÃO E ILUMINAÇÃO EXTERNA","UN","4,0",{"$f":"VLOOKUP(A54,'Orçamento Sintético'!$B$13:$H$88,7,FALSE)","v":36.25},145,5.1236481166105571E-4,0.99762418203607983]
[" 3426 ","ORSE","Escavação e carga com escavadeira hidráulica de material de 1ª categoria ou de jazida","Conversão InfoWOrca","m³","96,8",{"$f":"VLOOKUP(A55,'Orçamento Sintético'!$B$13:$H$88,7,FALSE)","v":1.22},118.09,4.1727696971761421E-4,0.99804145900579744]
[" 4986 ","ORSE","Carga mecânica de material de 1ª categoria","Carga de Material","m³","106,47",{"$f":"VLOOKUP(A56,'Orçamento Sintético'!$B$13:$H$88,7,FALSE)","v":0.95},101.14,3.5738329000964945E-4,0.99839884229580711]
[" 91879 ","SINAPI","LUVA PARA ELETRODUTO, PVC, ROSCÁVEL, DN 25 MM (3/4\"), PARA CIRCUITOS TERMINAIS, INSTALADA EM LAJE - FORNECIMENTO E INSTALAÇÃO. AF_03/2023","INEL - INSTALAÇÃO ELÉTRICA/ELETRIFICAÇÃO E ILUMINAÇÃO EXTERNA","UN","14,0",{"$f":"VLOOKUP(A57,'Orçamento Sintético'!$B$13:$H$88,7,FALSE)","v":7.15},100.1,3.5370839756739084E-4,0.99875255069337454]
[" 91890 ","SINAPI","CURVA 90 GRAUS PARA ELETRODUTO, PVC, ROSCÁVEL, DN 25 MM (3/4\"), PARA CIRCUITOS TERMINAIS, INSTALADA EM FORRO - FORNECIMENTO E INSTALAÇÃO. AF_03/2023","INEL - INSTALAÇÃO ELÉTRICA/ELETRIFICAÇÃO E ILUMINAÇÃO EXTERNA","UN","7,0",{"$f":"VLOOKUP(A58,'Orçamento Sintético'!$B$13:$H$88,7,FALSE)","v":13.97},97.79,3.4554589608506645E-4,0.99909809658945958]
[" 93672 ","SINAPI","DISJUNTOR TRIPOLAR TIPO DIN, CORRENTE NOMINAL DE 40A - FORNECIMENTO E INSTALAÇÃO. AF_10/2020","INEL - INSTALAÇÃO ELÉTRICA/ELETRIFICAÇÃO E ILUMINAÇÃO EXTERNA","UN","1,0",{"$f":"VLOOKUP(A59,'Orçamento Sintético'!$B$13:$H$88,7,FALSE)","v":96.49},96.49,3.4095228053224316E-4,0.9994390488699918]
[" 91892 ","SINAPI","CURVA 180 GRAUS PARA ELETRODUTO, PVC, ROSCÁVEL, DN 25 MM (3/4\"), PARA CIRCUITOS TERMINAIS, INSTALADA EM FORRO - FORNECIMENTO E INSTALAÇÃO. AF_03/2023","INEL - INSTALAÇÃO ELÉTRICA/ELETRIFICAÇÃO E ILUMINAÇÃO EXTERNA","UN","4,0",{"$f":"VLOOKUP(A60,'Orçamento Sintético'!$B$13:$H$88,7,FALSE)","v":15.3},61.2,2.1625328602521799E-4,0.99965530215601706]
[" 93654 ","SINAPI","DISJUNTOR MONOPOLAR TIPO DIN, CORRENTE NOMINAL DE 16A - FORNECIMENTO E INSTALAÇÃO. AF_10/2020","INEL - INSTALAÇÃO ELÉTRICA/ELETRIFICAÇÃO E ILUMINAÇÃO EXTERNA","UN","4,0",{"$f":"VLOOKUP(A61,'Orçamento Sintético'!$B$13:$H$88,7,FALSE)","v":13.45},53.8,1.9010501287837787E-4,0.99984540716889547]
[" 89799 ","SINAPI","TUBO PVC, SERIE NORMAL, ESGOTO PREDIAL, DN 75 MM, FORNECIDO E INSTALADO EM PRUMADA DE ESGOTO SANITÁRIO OU VENTILAÇÃO. AF_08/2022","INHI - INSTALAÇÕES HIDROS SANITÁRIAS","M","1,35",{"$f":"VLOOKUP(A62,'Orçamento Sintético'!$B$13:$H$88,7,FALSE)","v":22.99},31.03,1.0964606969546591E-4,0.99995505323859091]
[" 93653 ","SINAPI","DISJUNTOR MONOPOLAR TIPO DIN, CORRENTE NOMINAL DE 10A - FORNECIMENTO E INSTALAÇÃO. AF_10/2020","INEL - INSTALAÇÃO ELÉTRICA/ELETRIFICAÇÃO E ILUMINAÇÃO EXTERNA","UN","1,0",{"$f":"VLOOKUP(A63,'Orçamento Sintético'!$B$13:$H$88,7,FALSE)","v":12.72},12.72,4.4946761409162953E-5,1]
[{"$nulls":7},{"$f":"SUM(H5:H63)","v":283001.48}]

{"sheet":"CPUs","index":6,"n_rows":1751,"n_cols":10,"rows_kept":1751,"cut":false,"hidden":false,"merged":[[1746,4,1746,5],[1747,4,1747,5],[1748,4,1748,5],[1749,4,1749,5],[1750,4,1750,5],[1752,7,1752,8],[1704,4,1704,5],[1705,4,1705,5],[1706,4,1706,5],[1707,4,1707,5],[1708,4,1708,5],[1731,4,1731,5],[1732,4,1732,5],[1733,4,1733,5],[1735,7,1735,8],[1737,4,1737,5],[1738,4,1738,5],[1725,4,1725,5],[1726,4,1726,5],[1727,4,1727,5],[1728,4,1728,5],[1729,4,1729,5],[1730,4,1730,5],[1717,4,1717,5],[1718,4,1718,5],[1719,4,1719,5],[1720,4,1720,5],[1722,7,1722,8],[1724,4,1724,5],[1709,4,1709,5],[1710,4,1710,5],[1711,4,1711,5],[1712,4,1712,5],[1713,4,1713,5],[1715,7,1715,8],[1739,4,1739,5],[1740,4,1740,5],[1741,4,1741,5],[1742,4,1742,5],[1744,7,1744,8],[1656,4,1656,5],[1657,4,1657,5],[1658,4,1658,5],[1659,4,1659,5],[1660,4,1660,5],[1687,4,1687,5],[1688,4,1688,5],[1690,7,1690,8],[1692,4,1692,5],[1693,4,1693,5],[1694,4,1694,5],[1678,7,1678,8],[1680,4,1680,5],[1681,4,1681,5],[1682,4,1682,5],[1684,7,1684,8],[1686,4,1686,5],[1671,4,1671,5],[1672,4,1672,5],[1673,4,1673,5],[1674,4,1674,5],[1675,4,1675,5],[1676,4,1676,5],[1662,7,1662,8],[1664,4,1664,5],[1665,4,1665,5],[1666,4,1666,5],[1667,4,1667,5],[1669,7,1669,8],[1696,7,1696,8],[1698,4,1698,5],[1699,4,1699,5],[1700,4,1700,5],[1702,7,1702,8],[1616,4,1616,5],[1617,4,1617,5],[1618,4,1618,5],[1619,4,1619,5],[1620,4,1620,5],[1643,4,1643,5],[1644,4,1644,5],[1645,4,1645,5],[1646,4,1646,5],[1647,4,1647,5],[1649,7,1649,8],[1636,7,1636,8],[1638,4,1638,5],[1639,4,1639,5],[1640,4,1640,5],[1641,4,1641,5],[1642,4,1642,5],[1629,4,1629,5],[1630,4,1630,5],[1631,4,1631,5],[1632,4,1632,5],[1633,4,1633,5],[1634,4,1634,5],[1621,4,1621,5],[1623,7,1623,8],[1625,4,1625,5],[1626,4,1626,5],[1627,4,1627,5],[1628,4,1628,5],[1651,4,1651,5],[1652,4,1652,5],[1653,4,1653,5],[1654,4,1654,5],[1655,4,1655,5],[1576,4,1576,5],[1577,4,1577,5],[1578,4,1578,5],[1579,4,1579,5],[1580,4,1580,5],[1603,4,1603,5],[1604,4,1604,5],[1605,4,1605,5],[1606,4,1606,5],[1607,4,1607,5],[1608,4,1608,5],[1595,4,1595,5],[1597,7,1597,8],[1599,4,1599,5],[1600,4,1600,5],[1601,4,1601,5],[1602,4,1602,5],[1589,4,1589,5],[1590,4,1590,5],[1591,4,1591,5],[1592,4,1592,5],[1593,4,1593,5],[1594,4,1594,5],[1581,4,1581,5],[1582,4,1582,5],[1584,7,1584,8],[1586,4,1586,5],[1587,4,1587,5],[1588,4,1588,5],[1610,7,1610,8],[1612,4,1612,5],[1613,4,1613,5],[1614,4,1614,5],[1615,4,1615,5],[1534,4,1534,5],[1535,4,1535,5],[1537,7,1537,8],[1539,4,1539,5],[1540,4,1540,5],[1563,4,1563,5],[1564,4,1564,5],[1565,4,1565,5],[1566,4,1566,5],[1567,4,1567,5],[1568,4,1568,5],[1555,4,1555,5],[1556,4,1556,5],[1558,7,1558,8],[1560,4,1560,5],[1561,4,1561,5],[1562,4,1562,5],[1549,4,1549,5],[1550,4,1550,5],[1551,4,1551,5],[1552,4,1552,5],[1553,4,1553,5],[1554,4,1554,5],[1541,4,1541,5],[1542,4,1542,5],[1543,4,1543,5],[1545,7,1545,8],[1547,4,1547,5],[1548,4,1548,5],[1569,4,1569,5],[1571,7,1571,8],[1573,4,1573,5],[1574,4,1574,5],[1575,4,1575,5],[1488,4,1488,5],[1489,4,1489,5],[1490,4,1490,5],[1491,4,1491,5],[1492,4,1492,5],[1519,4,1519,5],[1520,4,1520,5],[1521,4,1521,5],[1523,7,1523,8],[1525,4,1525,5],[1526,4,1526,5],[1511,4,1511,5],[1512,4,1512,5],[1513,4,1513,5],[1514,4,1514,5],[1516,7,1516,8],[1518,4,1518,5],[1502,7,1502,8],[1504,4,1504,5],[1505,4,1505,5],[1506,4,1506,5],[1507,4,1507,5],[1509,7,1509,8],[1493,4,1493,5],[1495,7,1495,8],[1497,4,1497,5],[1498,4,1498,5],[1499,4,1499,5],[1500,4,1500,5],[1527,4,1527,5],[1529,7,1529,8],[1531,4,1531,5],[1532,4,1532,5],[1533,4,1533,5],[1452,4,1452,5],[1453,4,1453,5],[1454,4,1454,5],[1455,4,1455,5],[1456,4,1456,5],[1475,4,1475,5],[1476,4,1476,5],[1477,4,1477,5],[1478,4,1478,5],[1479,4,1479,5],[1480,4,1480,5],[1469,4,1469,5],[1470,4,1470,5],[1471,4,1471,5],[1472,4,1472,5],[1473,4,1473,5],[1474,4,1474,5],[1463,4,1463,5],[1464,4,1464,5],[1465,4,1465,5],[1466,4,1466,5],[1467,4,1467,5],[1468,4,1468,5],[1457,4,1457,5],[1458,4,1458,5],[1459,4,1459,5],[1460,4,1460,5],[1461,4,1461,5],[1462,4,1462,5],[1481,4,1481,5],[1482,4,1482,5],[1484,7,1484,8],[1486,4,1486,5],[1487,4,1487,5],[1414,4,1414,5],[1415,4,1415,5],[1416,4,1416,5],[1417,4,1417,5],[1418,4,1418,5],[1439,4,1439,5],[1440,4,1440,5],[1441,4,1441,5],[1442,4,1442,5],[1443,4,1443,5],[1444,4,1444,5],[1433,4,1433,5],[1434,4,1434,5],[1435,4,1435,5],[1436,4,1436,5],[1437,4,1437,5],[1438,4,1438,5],[1427,4,1427,5],[1428,4,1428,5],[1429,4,1429,5],[1430,4,1430,5],[1431,4,1431,5],[1432,4,1432,5],[1419,4,1419,5],[1420,4,1420,5],[1421,4,1421,5],[1422,4,1422,5],[1423,4,1423,5],[1425,7,1425,8],[1445,4,1445,5],[1446,4,1446,5],[1448,7,1448,8],[1450,4,1450,5],[1451,4,1451,5],[1378,4,1378,5],[1379,4,1379,5],[1380,4,1380,5],[1381,4,1381,5],[1382,4,1382,5],[1401,4,1401,5],[1402,4,1402,5],[1404,7,1404,8],[1406,4,1406,5],[1407,4,1407,5],[1408,4,1408,5],[1395,4,1395,5],[1396,4,1396,5],[1397,4,1397,5],[1398,4,1398,5],[1399,4,1399,5],[1400,4,1400,5],[1389,4,1389,5],[1390,4,1390,5],[1391,4,1391,5],[1392,4,1392,5],[1393,4,1393,5],[1394,4,1394,5],[1383,4,1383,5],[1384,4,1384,5],[1385,4,1385,5],[1386,4,1386,5],[1387,4,1387,5],[1388,4,1388,5],[1409,4,1409,5],[1410,4,1410,5],[1411,4,1411,5],[1412,4,1412,5],[1413,4,1413,5],[1340,4,1340,5],[1341,4,1341,5],[1342,4,1342,5],[1343,4,1343,5],[1344,4,1344,5],[1365,4,1365,5],[1366,4,1366,5],[1367,4,1367,5],[1368,4,1368,5],[1369,4,1369,5],[1370,4,1370,5],[1359,4,1359,5],[1360,4,1360,5],[1361,4,1361,5],[1362,4,1362,5],[1363,4,1363,5],[1364,4,1364,5],[1353,4,1353,5],[1354,4,1354,5],[1355,4,1355,5],[1356,4,1356,5],[1357,4,1357,5],[1358,4,1358,5],[1345,4,1345,5],[1346,4,1346,5],[1347,4,1347,5],[1348,4,1348,5],[1349,4,1349,5],[1351,7,1351,8],[1371,4,1371,5],[1372,4,1372,5],[1374,7,1374,8],[1376,4,1376,5],[1377,4,1377,5],[1302,4,1302,5],[1303,4,1303,5],[1312,4,1312,5],[1313,4,1313,5],[1314,4,1314,5],[1329,4,1329,5],[1330,4,1330,5],[1331,4,1331,5],[1332,4,1332,5],[1333,4,1333,5],[1334,4,1334,5],[1321,4,1321,5],[1322,4,1322,5],[1323,4,1323,5],[1324,4,1324,5],[1326,7,1326,8],[1328,4,1328,5],[1315,4,1315,5],[1316,4,1316,5],[1317,4,1317,5],[1318,4,1318,5],[1319,4,1319,5],[1320,4,1320,5],[1305,7,1305,8],[1307,4,1307,5],[1308,4,1308,5],[1309,4,1309,5],[1310,4,1310,5],[1311,4,1311,5],[1335,4,1335,5],[1336,4,1336,5],[1337,4,1337,5],[1338,4,1338,5],[1339,4,1339,5],[1260,4,1260,5],[1277,4,1277,5],[1278,4,1278,5],[1279,4,1279,5],[1280,4,1280,5],[1289,4,1289,5],[1290,4,1290,5],[1291,4,1291,5],[1292,4,1292,5],[1294,7,1294,8],[1296,4,1296,5],[1281,4,1281,5],[1283,7,1283,8],[1285,4,1285,5],[1286,4,1286,5],[1287,4,1287,5],[1288,4,1288,5],[1270,7,1270,8],[1272,4,1272,5],[1273,4,1273,5],[1274,4,1274,5],[1275,4,1275,5],[1276,4,1276,5],[1262,7,1262,8],[1264,4,1264,5],[1265,4,1265,5],[1266,4,1266,5],[1267,4,1267,5],[1268,4,1268,5],[1297,4,1297,5],[1298,4,1298,5],[1299,4,1299,5],[1300,4,1300,5],[1301,4,1301,5],[1218,4,1218,5],[1219,4,1219,5],[1228,4,1228,5],[1229,4,1229,5],[1230,4,1230,5],[1247,4,1247,5],[1249,7,1249,8],[1251,4,1251,5],[1252,4,1252,5],[1253,4,1253,5],[1254,4,1254,5],[1240,7,1240,8],[1242,4,1242,5],[1243,4,1243,5],[1244,4,1244,5],[1245,4,1245,5],[1246,4,1246,5],[1232,7,1232,8],[1234,4,1234,5],[1235,4,1235,5],[1236,4,1236,5],[1237,4,1237,5],[1238,4,1238,5],[1221,7,1221,8],[1223,4,1223,5],[1224,4,1224,5],[1225,4,1225,5],[1226,4,1226,5],[1227,4,1227,5],[1255,4,1255,5],[1256,4,1256,5],[1257,4,1257,5],[1258,4,1258,5],[1259,4,1259,5],[1172,4,1172,5],[1173,4,1173,5],[1175,7,1175,8],[1177,4,1177,5],[1178,4,1178,5],[1205,4,1205,5],[1206,4,1206,5],[1207,4,1207,5],[1208,4,1208,5],[1209,4,1209,5],[1210,4,1210,5],[1197,4,1197,5],[1198,4,1198,5],[1199,4,1199,5],[1200,4,1200,5],[1201,4,1201,5],[1203,7,1203,8],[1189,4,1189,5],[1190,4,1190,5],[1191,4,1191,5],[1192,4,1192,5],[1193,4,1193,5],[1195,7,1195,8],[1179,4,1179,5],[1181,7,1181,8],[1183,4,1183,5],[1184,4,1184,5],[1185,4,1185,5],[1187,7,1187,8],[1211,4,1211,5],[1212,4,1212,5],[1214,7,1214,8],[1216,4,1216,5],[1217,4,1217,5],[1121,7,1121,8],[1123,4,1123,5],[1124,4,1124,5],[1125,4,1125,5],[1127,7,1127,8],[1155,4,1155,5],[1157,7,1157,8],[1159,4,1159,5],[1160,4,1160,5],[1161,4,1161,5],[1163,7,1163,8],[1147,4,1147,5],[1148,4,1148,5],[1149,4,1149,5],[1151,7,1151,8],[1153,4,1153,5],[1154,4,1154,5],[1137,4,1137,5],[1139,7,1139,8],[1141,4,1141,5],[1142,4,1142,5],[1143,4,1143,5],[1145,7,1145,8],[1129,4,1129,5],[1130,4,1130,5],[1131,4,1131,5],[1133,7,1133,8],[1135,4,1135,5],[1136,4,1136,5],[1165,4,1165,5],[1166,4,1166,5],[1167,4,1167,5],[1169,7,1169,8],[1171,4,1171,5],[1070,4,1070,5],[1071,4,1071,5],[1073,7,1073,8],[1075,4,1075,5],[1076,4,1076,5],[1105,4,1105,5],[1106,4,1106,5],[1107,4,1107,5],[1109,7,1109,8],[1111,4,1111,5],[1112,4,1112,5],[1095,4,1095,5],[1097,7,1097,8],[1099,4,1099,5],[1100,4,1100,5],[1101,4,1101,5],[1103,7,1103,8],[1087,4,1087,5],[1088,4,1088,5],[1089,4,1089,5],[1091,7,1091,8],[1093,4,1093,5],[1094,4,1094,5],[1077,4,1077,5],[1079,7,1079,8],[1081,4,1081,5],[1082,4,1082,5],[1083,4,1083,5],[1085,7,1085,8],[1113,4,1113,5],[1115,7,1115,8],[1117,4,1117,5],[1118,4,1118,5],[1119,4,1119,5],[1026,4,1026,5],[1027,4,1027,5],[1028,4,1028,5],[1029,4,1029,5],[1030,4,1030,5],[1055,4,1055,5],[1057,7,1057,8],[1059,4,1059,5],[1060,4,1060,5],[1061,4,1061,5],[1062,4,1062,5],[1047,4,1047,5],[1049,7,1049,8],[1051,4,1051,5],[1052,4,1052,5],[1053,4,1053,5],[1054,4,1054,5],[1039,4,1039,5],[1041,7,1041,8],[1043,4,1043,5],[1044,4,1044,5],[1045,4,1045,5],[1046,4,1046,5],[1031,4,1031,5],[1033,7,1033,8],[1035,4,1035,5],[1036,4,1036,5],[1037,4,1037,5],[1038,4,1038,5],[1063,4,1063,5],[1065,7,1065,8],[1067,4,1067,5],[1068,4,1068,5],[1069,4,1069,5],[982,4,982,5],[983,4,983,5],[985,7,985,8],[987,4,987,5],[988,4,988,5],[1013,4,1013,5],[1014,4,1014,5],[1015,4,1015,5],[1016,4,1016,5],[1017,4,1017,5],[1018,4,1018,5],[1005,4,1005,5],[1006,4,1006,5],[1007,4,1007,5],[1009,7,1009,8],[1011,4,1011,5],[1012,4,1012,5],[999,4,999,5],[1000,4,1000,5],[1001,4,1001,5],[1002,4,1002,5],[1003,4,1003,5],[1004,4,1004,5],[989,4,989,5],[991,7,991,8],[993,4,993,5],[994,4,994,5],[995,4,995,5],[997,7,997,8],[1019,4,1019,5],[1021,7,1021,8],[1023,4,1023,5],[1024,4,1024,5],[1025,4,1025,5],[937,7,937,8],[939,4,939,5],[940,4,940,5],[941,4,941,5],[942,4,942,5],[967,4,967,5],[968,4,968,5],[969,4,969,5],[970,4,970,5],[971,4,971,5],[973,7,973,8],[959,4,959,5],[960,4,960,5],[961,4,961,5],[963,7,963,8],[965,4,965,5],[966,4,966,5],[953,4,953,5],[954,4,954,5],[955,4,955,5],[956,4,956,5],[957,4,957,5],[958,4,958,5],[944,7,944,8],[946,4,946,5],[947,4,947,5],[948,4,948,5],[950,7,950,8],[952,4,952,5],[975,4,975,5],[976,4,976,5],[977,4,977,5],[979,7,979,8],[981,4,981,5],[890,4,890,5],[892,7,892,8],[894,4,894,5],[895,4,895,5],[896,4,896,5],[921,4,921,5],[923,7,923,8],[925,4,925,5],[926,4,926,5],[927,4,927,5],[928,4,928,5],[913,4,913,5],[914,4,914,5],[916,7,916,8],[918,4,918,5],[919,4,919,5],[920,4,920,5],[907,4,907,5],[908,4,908,5],[909,4,909,5],[910,4,910,5],[911,4,911,5],[912,4,912,5],[897,4,897,5],[899,7,899,8],[901,4,901,5],[902,4,902,5],[903,4,903,5],[905,7,905,8],[930,7,930,8],[932,4,932,5],[933,4,933,5],[934,4,934,5],[935,4,935,5],[845,7,845,8],[847,4,847,5],[848,4,848,5],[849,4,849,5],[851,7,851,8],[875,4,875,5],[876,4,876,5],[878,7,878,8],[880,4,880,5],[881,4,881,5],[882,4,882,5],[867,4,867,5],[868,4,868,5],[869,4,869,5],[871,7,871,8],[873,4,873,5],[874,4,874,5],[860,7,860,8],[862,4,862,5],[863,4,863,5],[864,4,864,5],[865,4,865,5],[866,4,866,5],[853,4,853,5],[854,4,854,5],[855,4,855,5],[856,4,856,5],[857,4,857,5],[858,4,858,5],[883,4,883,5],[885,7,885,8],[887,4,887,5],[888,4,888,5],[889,4,889,5],[800,4,800,5],[801,4,801,5],[802,4,802,5],[803,4,803,5],[804,4,804,5],[829,4,829,5],[831,7,831,8],[833,4,833,5],[834,4,834,5],[835,4,835,5],[836,4,836,5],[821,4,821,5],[822,4,822,5],[824,7,824,8],[826,4,826,5],[827,4,827,5],[828,4,828,5],[813,4,813,5],[814,4,814,5],[815,4,815,5],[817,7,817,8],[819,4,819,5],[820,4,820,5],[806,7,806,8],[808,4,808,5],[809,4,809,5],[810,4,810,5],[811,4,811,5],[812,4,812,5],[838,7,838,8],[840,4,840,5],[841,4,841,5],[842,4,842,5],[843,4,843,5],[752,4,752,5],[753,4,753,5],[755,7,755,8],[757,4,757,5],[758,4,758,5],[785,4,785,5],[786,4,786,5],[788,7,788,8],[790,4,790,5],[791,4,791,5],[792,4,792,5],[776,7,776,8],[778,4,778,5],[779,4,779,5],[780,4,780,5],[782,7,782,8],[784,4,784,5],[767,4,767,5],[768,4,768,5],[770,7,770,8],[772,4,772,5],[773,4,773,5],[774,4,774,5],[759,4,759,5],[760,4,760,5],[761,4,761,5],[762,4,762,5],[764,7,764,8],[766,4,766,5],[793,4,793,5],[794,4,794,5],[795,4,795,5],[797,7,797,8],[799,4,799,5],[704,4,704,5],[705,4,705,5],[706,4,706,5],[708,7,708,8],[710,4,710,5],[736,7,736,8],[738,4,738,5],[739,4,739,5],[740,4,740,5],[742,7,742,8],[744,4,744,5],[727,4,727,5],[728,4,728,5],[730,7,730,8],[732,4,732,5],[733,4,733,5],[734,4,734,5],[719,4,719,5],[720,4,720,5],[721,4,721,5],[722,4,722,5],[724,7,724,8],[726,4,726,5],[711,4,711,5],[712,4,712,5],[713,4,713,5],[715,7,715,8],[717,4,717,5],[718,4,718,5],[745,4,745,5],[746,4,746,5],[748,7,748,8],[750,4,750,5],[751,4,751,5],[662,4,662,5],[664,7,664,8],[666,4,666,5],[667,4,667,5],[668,4,668,5],[691,4,691,5],[692,4,692,5],[693,4,693,5],[694,4,694,5],[695,4,695,5],[696,4,696,5],[683,4,683,5],[684,4,684,5],[686,7,686,8],[688,4,688,5],[689,4,689,5],[690,4,690,5],[677,4,677,5],[678,4,678,5],[679,4,679,5],[680,4,680,5],[681,4,681,5],[682,4,682,5],[669,4,669,5],[670,4,670,5],[671,4,671,5],[673,7,673,8],[675,4,675,5],[676,4,676,5],[697,4,697,5],[699,7,699,8],[701,4,701,5],[702,4,702,5],[703,4,703,5],[621,7,621,8],[623,4,623,5],[624,4,624,5],[625,4,625,5],[626,4,626,5],[649,4,649,5],[651,7,651,8],[653,4,653,5],[654,4,654,5],[655,4,655,5],[656,4,656,5],[643,4,643,5],[644,4,644,5],[645,4,645,5],[646,4,646,5],[647,4,647,5],[648,4,648,5],[635,4,635,5],[636,4,636,5],[637,4,637,5],[638,4,638,5],[660,4,660,5],[661,4,661,5],[580,4,580,5],[581,4,581,5],[582,4,582,5],[583,4,583,5],[584,4,584,5],[607,4,607,5],[608,4,608,5],[609,4,609,5],[610,4,610,5],[611,4,611,5],[613,7,613,8],[600,7,600,8],[602,4,602,5],[603,4,603,5],[604,4,604,5],[605,4,605,5],[606,4,606,5],[593,4,593,5],[594,4,594,5],[615,4,615,5],[616,4,616,5],[617,4,617,5],[618,4,618,5],[619,4,619,5],[639,4,639,5],[641,7,641,8],[627,4,627,5],[628,4,628,5],[630,7,630,8],[632,4,632,5],[633,4,633,5],[634,4,634,5],[567,4,567,5],[568,4,568,5],[569,4,569,5],[570,4,570,5],[571,4,571,5],[572,4,572,5],[657,4,657,5],[658,4,658,5],[659,4,659,5],[559,4,559,5],[560,4,560,5],[561,4,561,5],[563,7,563,8],[565,4,565,5],[566,4,566,5],[595,4,595,5],[596,4,596,5],[597,4,597,5],[598,4,598,5],[586,7,586,8],[588,0,588,9],[589,4,589,5],[590,4,590,5],[591,4,591,5],[592,4,592,5],[529,7,529,8],[573,4,573,5],[575,7,575,8],[577,4,577,5],[578,4,578,5],[579,4,579,5],[520,7,520,8],[522,4,522,5],[551,4,551,5],[552,4,552,5],[553,4,553,5],[554,4,554,5],[556,7,556,8],[558,4,558,5],[543,4,543,5],[544,4,544,5],[545,4,545,5],[547,7,547,8],[549,4,549,5],[550,4,550,5],[536,4,536,5],[538,7,538,8],[540,4,540,5],[541,4,541,5],[542,4,542,5],[497,4,497,5],[498,4,498,5],[499,4,499,5],[500,4,500,5],[531,4,531,5],[532,4,532,5],[533,4,533,5],[534,4,534,5],[535,4,535,5],[492,4,492,5],[501,4,501,5],[510,4,510,5],[523,4,523,5],[524,4,524,5],[525,4,525,5],[526,4,526,5],[527,4,527,5],[515,4,515,5],[516,4,516,5],[517,4,517,5],[518,4,518,5],[491,4,491,5],[448,4,448,5],[449,4,449,5],[451,7,451,8],[453,4,453,5],[454,4,454,5],[455,4,455,5],[457,7,457,8],[481,4,481,5],[482,4,482,5],[483,4,483,5],[484,4,484,5],[486,7,486,8],[488,4,488,5],[512,7,512,8],[514,4,514,5],[471,4,471,5],[472,4,472,5]],"merged_total":1396,"flags":["merged_cut"]}
[null,null,"Composições Analíticas com Preço Unitário",null,"Bancos",null,"B.D.I.",null,"Encargos Sociais"]
[null,null,"Espaço Multiuso - Tipo 02",null,"SINAPI - 08/2024 - Sergipe\nORSE - 06/2024 - Sergipe\n",null,"23,54%",null,"Não Desonerado: \nHorista: 112,54%\nMensalista: 70,11%"]
["Composições Analíticas com Preço Unitário"]
["Composições Principais"]
[" 1.1.1 ","Código","Banco","Descrição","Tipo",null,"Und","Quant.","Valor Unit","Total"]
["Composição"," 00000003 ","Próprio","Mobilização de equipamentos e pessoal (pequenas obras)","CANT - CANTEIRO DE OBRAS",null,"un",1,1309.8,1309.8]
["Composição Auxiliar"," 73467 ","SINAPI","CAMINHÃO TOCO, PBT 14.300 KG, CARGA ÚTIL MÁX. 9.710 KG, DIST. ENTRE EIXOS 3,56 M, POTÊNCIA 185 CV, INCLUSIVE CARROCERIA FIXA ABERTA DE MADEIRA P/ TRANSPORTE GERAL DE CARGA SECA, DIMEN. APROX. 2,50 X 6,50 X 0,50 M - CHP DIURNO. AF_06/2014","CHOR - CUSTOS HORÁRIOS DE MÁQUINAS E EQUIPAMENTOS",null,"CHP",5,235.6,1178]
["Insumo"," 4415 ","ORSE","Veículo leve - Volkswagen:GOL 1000 - automóvel até 100 hp","Equipamento",null,"h",10,13.18,131.80000000000001]
[]
[]
[]
[" 1.1.2 ","Código","Banco","Descrição","Tipo",null,"Und","Quant.","Valor Unit","Total"]
["Composição"," 00000004 ","Próprio","Desmobilização de equipamentos e pessoal (pequenas obras)","CANT - CANTEIRO DE OBRAS",null,"un",1,746.34,746.34]
["Composição Auxiliar"," 73467 ","SINAPI","CAMINHÃO TOCO, PBT 14.300 KG, CARGA ÚTIL MÁX. 9.710 KG, DIST. ENTRE EIXOS 3,56 M, POTÊNCIA 185 CV, INCLUSIVE CARROCERIA FIXA ABERTA DE MADEIRA P/ TRANSPORTE GERAL DE CARGA SECA, DIMEN. APROX. 2,50 X 6,50 X 0,50 M - CHP DIURNO. AF_06/2014","CHOR - CUSTOS HORÁRIOS DE MÁQUINAS E EQUIPAMENTOS",null,"CHP",3,235.6,706.8]
["Insumo"," 4415 ","ORSE","Veículo leve - Volkswagen:GOL 1000 - automóvel até 100 hp","Equipamento",null,"h",3,13.18,39.54]
[]
[]
[]
[" 1.2.1 ","Código","Banco","Descrição","Tipo",null,"Und","Quant.","Valor Unit","Total"]
["Composição"," 51 ","ORSE","Placa de obra em chapa aço galvanizado, instalada - Rev 02_01/2022","Mobilização / Instalações Provisórias / Desmobilização",null,"m²",1,375.59,375.59]
["Composição Auxiliar"," 10549 ","ORSE","Encargos Complementares - Servente","Provisórios",null,"h",2,3.79,7.58]
["Composição Auxiliar"," 10551 ","ORSE","Encargos Complementares - Carpinteiro","Provisórios",null,"h",1,3.69,3.69]
["Insumo"," 00001213/SINAPI ","ORSE","Carpinteiro de formas (horista)","Mão de Obra",null,"h",1,19.13,19.13]
["Insumo"," 00004813/SINAPI ","ORSE","Placa de obra (para construcao civil) em chapa galvanizada *n. 22*, adesivada, de *2,4 x 1,2* m (sem postes para fixacao)","Material",null,"m²",1,285,285]
["Insumo"," 00005075/SINAPI ","ORSE","Prego de aco polido com cabeca 18 x 30 (2 3/4 x 10)","Material",null,"kg",0.15,15.82,2.37]
["Insumo"," 00006111/SINAPI ","ORSE","Servente de obras (horista)","Mão de Obra",null,"h",2,13.65,27.3]
["Insumo"," 1569 ","ORSE","Madeira mista serrada (barrote) 6 x 6cm - 0,0036 m3/m (angelim, louro)","Material",null,"m",4,6.75,27]
["Insumo"," 6995 ","ORSE","Madeira mista serrada (sarrafo) 2,2 x 5,5cm - 0,00121 m³/m","Material",null,"m",1,3.52,3.52]
[]
[]
[]
[" 1.3.1 ","Código","Banco","Descrição","Tipo",null,"Und","Quant.","Valor Unit","Total"]
["Composição"," CODEVASF  122 ","Próprio","Administração local de pequenas obras","CANT - CANTEIRO DE OBRAS",null,"und",1,3399.12,3399.12]
["Composição Auxiliar"," 90777 ","SINAPI","ENGENHEIRO CIVIL DE OBRA JUNIOR COM ENCARGOS COMPLEMENTARES","SEDI - SERVIÇOS DIVERSOS",null,"H",4,120.03,480.12]
["Composição Auxiliar"," 90776 ","SINAPI","ENCARREGADO GERAL COM ENCARGOS COMPLEMENTARES","SEDI - SERVIÇOS DIVERSOS",null,"H",60,31.92,1915.2]
["Insumo"," 5896 ","ORSE","Veículo tipo sedan ou pick-up capacidade 0,6 ton","Equipamento",null,"h",60,8.33,499.8]
["Insumo"," 1044 ","ORSE","Gasolina comum","Material",null,"l",80,6.3,504]
[]
[]
[]
[" 1.4.1 ","Código","Banco","Descrição","Tipo",null,"Und","Quant.","Valor Unit","Total"]
["Composição"," CODEVASF 331 ","Próprio","Projeto Executivo (Multiuso 02)","SERT - SERVIÇOS TÉCNICOS",null,"und",1,1600,1600]
["Insumo"," 7320 ","ORSE","Projeto de iluminação de áreas externas (praças, calçadões, orlas, complexo com várias edificações, etc) até 100.000m².","Serviços",null,"m²",1600,1,1600]
[]
[]
[]
[" 2.1.1 ","Código","Banco","Descrição","Tipo",null,"Und","Quant.","Valor Unit","Total"]
["Composição"," 98524 ","SINAPI","LIMPEZA MANUAL DE VEGETAÇÃO EM TERRENO COM ENXADA. AF_03/2024","URBA - URBANIZAÇÃO",null,"m²",1,4.3499999999999996,4.3499999999999996]
["Composição Auxiliar"," 88316 ","SINAPI","SERVENTE COM ENCARGOS COMPLEMENTARES","SEDI - SERVIÇOS DIVERSOS",null,"H",0.2132,20.420000000000002,4.3499999999999996]
[]
[]
[]
[" 2.2.2 ","Código","Banco","Descrição","Tipo",null,"Und","Quant.","Valor Unit","Total"]
["Composição"," 3426 ","ORSE","Escavação e carga com escavadeira hidráulica de material de 1ª categoria ou de jazida","Conversão InfoWOrca",null,"m³",1,0.99,0.99]
["Composição Auxiliar"," 10549 ","ORSE","Encargos Complementares - Servente","Provisórios",null,"h",6.8999999999999999E-3,3.79,0.02]
["Insumo"," 00006111/SINAPI ","ORSE","Servente de obras (horista)","Mão de Obra",null,"h",6.9443999999999999E-3,13.65,0.09]
["Insumo"," 4680 ","ORSE","Escavadeira hidraúlica sobre esteira, Caterpillar: 320DL - cap 600l p/ longo alcance","Equipamento",null,"h",6.9443999999999999E-3,110.65,0.76]
["Insumo"," 54 ","ORSE","Encarregado de turma - SICRO","Mão de Obra",null,"h",6.9443999999999999E-3,18.28,0.12]
[]
[]
[]
[" 2.2.3 ","Código","Banco","Descrição","Tipo",null,"Und","Quant.","Valor Unit","Total"]
["Composição"," 4986 ","ORSE","Carga mecânica de material de 1ª categoria","Carga de Material",null,"m³",1,0.77,0.77]
["Composição Auxiliar"," 10549 ","ORSE","Encargos Complementares - Servente","Provisórios",null,"h",9.4000000000000004E-3,3.79,0.03]
["Insumo"," 00006111/SINAPI ","ORSE","Servente de obras (horista)","Mão de Obra",null,"h",9.4000000000000004E-3,13.65,0.12]
["Insumo"," 4244 ","ORSE","Pa carregadeira sobre pneus Caterpillar - 924 G","Equipamento",null,"h",4.7000000000000002E-3,132.74,0.62]
[]
[]
[]
[" 2.2.4 ","Código","Banco","Descrição","Tipo",null,"Und","Quant.","Valor Unit","Total"]
["Composição"," 97914 ","SINAPI","TRANSPORTE COM CAMINHÃO BASCULANTE DE 6 M³, EM VIA URBANA PAVIMENTADA, DMT ATÉ 30 KM (UNIDADE: M3XKM). AF_07/2020","TRAN - TRANSPORTES, CARGAS E DESCARGAS",null,"M3XKM",1,2.79,2.79]
["Composição Auxiliar"," 67826 ","SINAPI","CAMINHÃO BASCULANTE 6 M3 TOCO, PESO BRUTO TOTAL 16.000 KG, CARGA ÚTIL MÁXIMA 11.130 KG, DISTÂNCIA ENTRE EIXOS 5,36 M, POTÊNCIA 185 CV, INCLUSIVE CAÇAMBA METÁLICA - CHP DIURNO. AF_06/2014","CHOR - CUSTOS HORÁRIOS DE MÁQUINAS E EQUIPAMENTOS",null,"CHP",1.3899999999999999E-2,175.1,2.4300000000000002]
["Composição Auxiliar"," 67827 ","SINAPI","CAMINHÃO BASCULANTE 6 M3 TOCO, PESO BRUTO TOTAL 16.000 KG, CARGA ÚTIL MÁXIMA 11.130 KG, DISTÂNCIA ENTRE EIXOS 5,36 M, POTÊNCIA 185 CV, INCLUSIVE CAÇAMBA METÁLICA - CHI DIURNO. AF_06/2014","CHOR - CUSTOS HORÁRIOS DE MÁQUINAS E EQUIPAMENTOS",null,"CHI",6.0000000000000001E-3,61.29,0.36]
[]
[]
[]
[" 2.2.5 ","Código","Banco","Descrição","Tipo",null,"Und","Quant.","Valor Unit","Total"]
["Composição"," 71 ","ORSE","Aterro manual de áreas, sem aquisição de material, com espalhamento e compactação","Aterros / Reaterros / Compactações",null,"m³",1,52.32,52.32]
["Composição Auxiliar"," 10549 ","ORSE","Encargos Complementares - Servente","Provisórios",null,"h",3,3.79,11.37]
["Insumo"," 00006111/SINAPI ","ORSE","Servente de obras (horista)","Mão de Obra",null,"h",3,13.65,40.950000000000003]
[]
[]
[]
[" 2.3.1 ","Código","Banco","Descrição","Tipo",null,"Und","Quant.","Valor Unit","Total"]
["Composição"," 4177 ","ORSE","Locação de construção de edificação acima de 1000 m2,  inclusive execução de gabarito de madeira","Locação de Edificações",null,"m²",1,5.47,5.47]
["Composição Auxiliar"," 10549 ","ORSE","Encargos Complementares - Servente","Provisórios",null,"h",0.04,3.79,0.15]
["Composição Auxiliar"," 10551 ","ORSE","Encargos Complementares - Carpinteiro","Provisórios",null,"h",0.04,3.69,0.14000000000000001]
["Insumo"," 00000345/SINAPI ","ORSE","Arame galvanizado 18 bwg, d = 1,24mm (0,009 kg/m)","Material",null,"kg",0.02,27.1,0.54]
["Insumo"," 00001213/SINAPI ","ORSE","Carpinteiro de formas (horista)","Mão de Obra",null,"h",0.04,19.13,0.76]
["Insumo"," 00005067/SINAPI ","ORSE","Prego de aco polido com cabeca 16 x 24 (2 1/4 x 12)","Material",null,"kg",1.2E-2,16.86,0.2]
["Insumo"," 00006111/SINAPI ","ORSE","Servente de obras (horista)","Mão de Obra",null,"h",0.04,13.65,0.54]
["Insumo"," 00010567/SINAPI ","ORSE","Tabua *2,5 x 23* cm em pinus, mista ou equivalente da regiao - bruta","Material",null,"m",0.11,12.58,1.38]
["Insumo"," 1569 ","ORSE","Madeira mista serrada (barrote) 6 x 6cm - 0,0036 m3/m (angelim, louro)","Material",null,"m",0.09,6.75,0.6]
["Insumo"," 48 ","ORSE","Auxiliar topografia - SICRO","Mão de Obra",null,"h",0.02,21.79,0.43]
["Insumo"," 70 ","ORSE","Topógrafo - SICRO","Mão de Obra",null,"h",0.02,36.96,0.73]
[]
[]
[]
[" 2.3.2 ","Código","Banco","Descrição","Tipo",null,"Und","Quant.","Valor Unit","Total"]
["Composição"," 93358 ","SINAPI","ESCAVAÇÃO MANUAL DE VALA COM PROFUNDIDADE MENOR OU IGUAL A 1,30 M. AF_02/2021","MOVT - MOVIMENTO DE TERRA",null,"m³",1,80.78,80.78]
["Composição Auxiliar"," 88316 ","SINAPI","SERVENTE COM ENCARGOS COMPLEMENTARES","SEDI - SERVIÇOS DIVERSOS",null,"H",3.956,20.420000000000002,80.78]
[]
[]
[]
[" 2.3.3 ","Código","Banco","Descrição","Tipo",null,"Und","Quant.","Valor Unit","Total"]
["Composição"," 94962 ","SINAPI","CONCRETO MAGRO PARA LASTRO, TRAÇO 1:4,5:4,5 (EM MASSA SECA DE CIMENTO/ AREIA MÉDIA/ BRITA 1) - PREPARO MECÂNICO COM BETONEIRA 400 L. AF_05/2021","FUES - FUNDAÇÕES E ESTRUTURAS",null,"m³",1,406.18,406.18]
["Composição Auxiliar"," 88316 ","SINAPI","SERVENTE COM ENCARGOS COMPLEMENTARES","SEDI - SERVIÇOS DIVERSOS",null,"H",2.3433000000000002,20.420000000000002,47.85]
["Composição Auxiliar"," 88377 ","SINAPI","OPERADOR DE BETONEIRA ESTACIONÁRIA/MISTURADOR COM ENCARGOS COMPLEMENTARES","SEDI - SERVIÇOS DIVERSOS",null,"H",1.4811000000000001,23.84,35.299999999999997]
["Composição Auxiliar"," 88830 ","SINAPI","BETONEIRA CAPACIDADE NOMINAL DE 400 L, CAPACIDADE DE MISTURA 280 L, MOTOR ELÉTRICO TRIFÁSICO POTÊNCIA DE 2 CV, SEM CARREGADOR - CHP DIURNO. AF_10/2014","CHOR - CUSTOS HORÁRIOS DE MÁQUINAS E EQUIPAMENTOS",null,"CHP",0.76229999999999998,1.88,1.43]
["Composição Auxiliar"," 88831 ","SINAPI","BETONEIRA CAPACIDADE NOMINAL DE 400 L, CAPACIDADE DE MISTURA 280 L, MOTOR ELÉTRICO TRIFÁSICO POTÊNCIA DE 2 CV, SEM CARREGADOR - CHI DIURNO. AF_10/2014","CHOR - CUSTOS HORÁRIOS DE MÁQUINAS E EQUIPAMENTOS",null,"CHI",0.71879999999999999,0.43,0.3]
["Insumo"," 00000370 ","SINAPI","AREIA MEDIA - POSTO JAZIDA/FORNECEDOR (RETIRADO NA JAZIDA, SEM TRANSPORTE)","Material",null,"m³",0.82689999999999997,110,90.95]
["Insumo"," 00001379 ","SINAPI","CIMENTO PORTLAND COMPOSTO CP II-32","Material",null,"KG",212.01939999999999,0.76,161.13]
["Insumo"," 00004721 ","SINAPI","PEDRA BRITADA N. 1 (9,5 a 19 MM) POSTO PEDREIRA/FORNECEDOR, SEM FRETE","Material",null,"m³",0.57820000000000005,119.72,69.22]
[]
[]
[]
[" 2.3.4 ","Código","Banco","Descrição","Tipo",null,"Und","Quant.","Valor Unit","Total"]
["Composição"," 97086 ","SINAPI","FABRICAÇÃO, MONTAGEM E DESMONTAGEM DE FORMA PARA RADIER, PISO DE CONCRETO OU LAJE SOBRE SOLO, EM MADEIRA SERRADA, 4 UTILIZAÇÕES. AF_09/2021","FUES - FUNDAÇÕES E ESTRUTURAS",null,"m²",1,121.46,121.46]
["Composição Auxiliar"," 88239 ","SINAPI","AJUDANTE DE CARPINTEIRO COM ENCARGOS COMPLEMENTARES","SEDI - SERVIÇOS DIVERSOS",null,"H",1.444,20.6,29.74]
["Composição Auxiliar"," 88262 ","SINAPI","CARPINTEIRO DE FORMAS COM ENCARGOS COMPLEMENTARES","SEDI - SERVIÇOS DIVERSOS",null,"H",2.3570000000000002,25.8,60.81]
["Insumo"," 00002692 ","SINAPI","DESMOLDANTE PROTETOR PARA FORMAS DE MADEIRA, DE BASE OLEOSA EMULSIONADA EM AGUA","Material",null,"L",1.7000000000000001E-2,8.31,0.14000000000000001]
["Insumo"," 00004491 ","SINAPI","PONTALETE *7,5 X 7,5* CM EM PINUS, MISTA OU EQUIVALENTE DA REGIAO - BRUTA","Material",null,"M",0.37,10.99,4.0599999999999996]
["Insumo"," 00004517 ","SINAPI","SARRAFO *2,5 X 7,5* CM EM PINUS, MISTA OU EQUIVALENTE DA REGIAO - BRUTA","Material",null,"M",0.44,3.84,1.68]
["Insumo"," 00005068 ","SINAPI","PREGO DE ACO POLIDO COM CABECA 17 X 21 (2 X 11)","Material",null,"KG",9.5000000000000001E-2,17.29,1.64]
["Insumo"," 00006193 ","SINAPI","TABUA NAO APARELHADA *2,5 X 20* CM, EM MACARANDUBA/MASSARANDUBA, ANGELIM OU EQUIVALENTE DA REGIAO - BRUTA","Material",null,"M",1.38,16.95,23.39]
[]
[]
[]
[" 2.3.5 ","Código","Banco","Descrição","Tipo",null,"Und","Quant.","Valor Unit","Total"]
["Composição"," 96543 ","SINAPI","ARMAÇÃO DE BLOCO UTILIZANDO AÇO CA-60 DE 5 MM - MONTAGEM. AF_01/2024","FUES - FUNDAÇÕES E ESTRUTURAS",null,"KG",1,20.68,20.68]
["Composição Auxiliar"," 88238 ","SINAPI","AJUDANTE DE ARMADOR COM ENCARGOS COMPLEMENTARES","SEDI - SERVIÇOS DIVERSOS",null,"H",9.7000000000000003E-2,20.69,2]
["Composição Auxiliar"," 88245 ","SINAPI","ARMADOR COM ENCARGOS COMPLEMENTARES","SEDI - SERVIÇOS DIVERSOS",null,"H",0.252,25.94,6.53]
["Composição Auxiliar"," 92800 ","SINAPI","CORTE E DOBRA DE AÇO CA-60, DIÂMETRO DE 5,0 MM. AF_06/2022","FUES - FUNDAÇÕES E ESTRUTURAS",null,"KG",1,11.28,11.28]
["Insumo"," 00039017 ","SINAPI","ESPACADOR / DISTANCIADOR CIRCULAR COM ENTRADA LATERAL, EM PLASTICO, PARA VERGALHAO *4,2 A 12,5* MM, COBRIMENTO 20 MM","Material",null,"UN",1.143,0.22,0.25]
["Insumo"," 00043132 ","SINAPI","ARAME RECOZIDO 16 BWG, D = 1,65 MM (0,016 KG/M) OU 18 BWG, D = 1,25 MM (0,01 KG/M)","Material",null,"KG",2.5000000000000001E-2,25,0.62]
[]
[]
[]
[" 2.3.6 ","Código","Banco","Descrição","Tipo",null,"Und","Quant.","Valor Unit","Total"]
["Composição"," 96544 ","SINAPI","ARMAÇÃO DE BLOCO UTILIZANDO AÇO CA-50 DE 6,3 MM - MONTAGEM. AF_01/2024","FUES - FUNDAÇÕES E ESTRUTURAS",null,"KG",1,19.03,19.03]
["Composição Auxiliar"," 88238 ","SINAPI","AJUDANTE DE ARMADOR COM ENCARGOS COMPLEMENTARES","SEDI - SERVIÇOS DIVERSOS",null,"H",7.4999999999999997E-2,20.69,1.55]
["Composição Auxiliar"," 88245 ","SINAPI","ARMADOR COM ENCARGOS COMPLEMENTARES","SEDI - SERVIÇOS DIVERSOS",null,"H",0.19600000000000001,25.94,5.08]
["Composição Auxiliar"," 92801 ","SINAPI","CORTE E DOBRA DE AÇO CA-50, DIÂMETRO DE 6,3 MM. AF_06/2022","FUES - FUNDAÇÕES E ESTRUTURAS",null,"KG",1,11.6,11.6]
["Insumo"," 00039017 ","SINAPI","ESPACADOR / DISTANCIADOR CIRCULAR COM ENTRADA LATERAL, EM PLASTICO, PARA VERGALHAO *4,2 A 12,5* MM, COBRIMENTO 20 MM","Material",null,"UN",0.85599999999999998,0.22,0.18]
["Insumo"," 00043132 ","SINAPI","ARAME RECOZIDO 16 BWG, D = 1,65 MM (0,016 KG/M) OU 18 BWG, D = 1,25 MM (0,01 KG/M)","Material",null,"KG",2.5000000000000001E-2,25,0.62]
[]
[]
[]
[" 2.3.7 ","Código","Banco","Descrição","Tipo",null,"Und","Quant.","Valor Unit","Total"]
["Composição"," 96546 ","SINAPI","ARMAÇÃO DE BLOCO UTILIZANDO AÇO CA-50 DE 10 MM - MONTAGEM. AF_01/2024","FUES - FUNDAÇÕES E ESTRUTURAS",null,"KG",1,15.39,15.39]
["Composição Auxiliar"," 88238 ","SINAPI","AJUDANTE DE ARMADOR COM ENCARGOS COMPLEMENTARES","SEDI - SERVIÇOS DIVERSOS",null,"H",4.3999999999999997E-2,20.69,0.91]
["Composição Auxiliar"," 88245 ","SINAPI","ARMADOR COM ENCARGOS COMPLEMENTARES","SEDI - SERVIÇOS DIVERSOS",null,"H",0.11600000000000001,25.94,3]
["Composição Auxiliar"," 92803 ","SINAPI","CORTE E DOBRA DE AÇO CA-50, DIÂMETRO DE 10,0 MM. AF_06/2022","FUES - FUNDAÇÕES E ESTRUTURAS",null,"KG",1,10.76,10.76]
["Insumo"," 00039017 ","SINAPI","ESPACADOR / DISTANCIADOR CIRCULAR COM ENTRADA LATERAL, EM PLASTICO, PARA VERGALHAO *4,2 A 12,5* MM, COBRIMENTO 20 MM","Material",null,"UN",0.48,0.22,0.1]
["Insumo"," 00043132 ","SINAPI","ARAME RECOZIDO 16 BWG, D = 1,65 MM (0,016 KG/M) OU 18 BWG, D = 1,25 MM (0,01 KG/M)","Material",null,"KG",2.5000000000000001E-2,25,0.62]
[]
[]
[]
[" 2.3.8 ","Código","Banco","Descrição","Tipo",null,"Und","Quant.","Valor Unit","Total"]
["Composição"," 9399 ","ORSE","Concreto simples fabricado na obra, fck=25 mpa, lançado e adensado","Concreto Simples",null,"m³",1,626.77,626.77]
["Composição Auxiliar"," 7692 ","ORSE","Lançamento de concreto simples fabricado na obra, inclusive adensamento e acabamento em peças da superestrutura","Concreto Simples",null,"m³",1,48.7,48.7]
["Composição Auxiliar"," 9398 ","ORSE","Concreto simples fck= 25 MPA (b1/b2), fabricado na obra, sem lançamento e adensamento","Concreto Simples",null,"m³",1,578.07000000000005,578.07000000000005]
[]
[]
[]
[" 2.3.9 ","Código","Banco","Descrição","Tipo",null,"Und","Quant.","Valor Unit","Total"]
["Composição"," 93382 ","SINAPI","REATERRO MANUAL DE VALAS, COM COMPACTADOR DE SOLOS DE PERCUSSÃO. AF_08/2023","MOVT - MOVIMENTO DE TERRA",null,"m³",1,25.09,25.09]
["Composição Auxiliar"," 5901 ","SINAPI","CAMINHÃO PIPA 10.000 L TRUCADO, PESO BRUTO TOTAL 23.000 KG, CARGA ÚTIL MÁXIMA 15.935 KG, DISTÂNCIA ENTRE EIXOS 4,8 M, POTÊNCIA 230 CV, INCLUSIVE TANQUE DE AÇO PARA TRANSPORTE DE ÁGUA - CHP DIURNO. AF_06/2014","CHOR - CUSTOS HORÁRIOS DE MÁQUINAS E EQUIPAMENTOS",null,"CHP",5.4000000000000003E-3,303.24,1.63]
["Composição Auxiliar"," 5903 ","SINAPI","CAMINHÃO PIPA 10.000 L TRUCADO, PESO BRUTO TOTAL 23.000 KG, CARGA ÚTIL MÁXIMA 15.935 KG, DISTÂNCIA ENTRE EIXOS 4,8 M, POTÊNCIA 230 CV, INCLUSIVE TANQUE DE AÇO PARA TRANSPORTE DE ÁGUA - CHI DIURNO. AF_06/2014","CHOR - CUSTOS HORÁRIOS DE MÁQUINAS E EQUIPAMENTOS",null,"CHI",5.9999999999999995E-4,71.7,0.04]
["Composição Auxiliar"," 88316 ","SINAPI","SERVENTE COM ENCARGOS COMPLEMENTARES","SEDI - SERVIÇOS DIVERSOS",null,"H",0.78659999999999997,20.420000000000002,16.059999999999999]
["Composição Auxiliar"," 91533 ","SINAPI","COMPACTADOR DE SOLOS DE PERCUSSÃO (SOQUETE) COM MOTOR A GASOLINA 4 TEMPOS, POTÊNCIA 4 CV - CHP DIURNO. AF_08/2015","CHOR - CUSTOS HORÁRIOS DE MÁQUINAS E EQUIPAMENTOS",null,"CHP",0.19620000000000001,37.53,7.36]
[]
[]
[]
[" 2.4.1 ","Código","Banco","Descrição","Tipo",null,"Und","Quant.","Valor Unit","Total"]
["Composição"," 103330 ","SINAPI","ALVENARIA DE VEDAÇÃO DE BLOCOS CERÂMICOS FURADOS NA HORIZONTAL DE 11,5X19X19 CM (ESPESSURA 11,5 CM) E ARGAMASSA DE ASSENTAMENTO COM PREPARO EM BETONEIRA. AF_12/2021","PARE - PAREDES/PAINEIS",null,"m²",1,69.540000000000006,69.540000000000006]
["Composição Auxiliar"," 87292 ","SINAPI","ARGAMASSA TRAÇO 1:2:8 (EM VOLUME DE CIMENTO, CAL E AREIA MÉDIA ÚMIDA) PARA EMBOÇO/MASSA ÚNICA/ASSENTAMENTO DE ALVENARIA DE VEDAÇÃO, PREPARO MECÂNICO COM BETONEIRA 400 L. AF_08/2019","SEDI - SERVIÇOS DIVERSOS",null,"m³",9.7999999999999997E-3,601.32000000000005,5.89]
["Composição Auxiliar"," 88309 ","SINAPI","PEDREIRO COM ENCARGOS COMPLEMENTARES","SEDI - SERVIÇOS DIVERSOS",null,"H",1.2,26.15,31.38]
["Composição Auxiliar"," 88316 ","SINAPI","SERVENTE COM ENCARGOS COMPLEMENTARES","SEDI - SERVIÇOS DIVERSOS",null,"H",0.6,20.420000000000002,12.25]
["Insumo"," 00034558 ","SINAPI","TELA DE ACO SOLDADA GALVANIZADA/ZINCADA PARA ALVENARIA, FIO D = *1,20 A 1,70* MM, MALHA 15 X 15 MM, (C X L) *50 X 10,5* CM","Material",null,"M",0.42,2.84,1.19]
["Insumo"," 00037395 ","SINAPI","PINO DE ACO COM FURO, HASTE = 27 MM (ACAO DIRETA)","Material",null,"CENTO",0.01,43.74,0.43]
["Insumo"," 00038783 ","SINAPI","BLOCO CERAMICO / TIJOLO VAZADO PARA ALVENARIA DE VEDACAO, FUROS NA HORIZONTAL DE 11,5 X 19 X 19 CM (L X A X C)","Material",null,"UN",28.31,0.65,18.399999999999999]
[]
[]
[]
[" 2.4.2 ","Código","Banco","Descrição","Tipo",null,"Und","Quant.","Valor Unit","Total"]
["Composição"," 89799 ","SINAPI","TUBO PVC, SERIE NORMAL, ESGOTO PREDIAL, DN 75 MM, FORNECIDO E INSTALADO EM PRUMADA DE ESGOTO SANITÁRIO OU VENTILAÇÃO. AF_08/2022","INHI - INSTALAÇÕES HIDROS SANITÁRIAS",null,"M",1,18.61,18.61]
["Composição Auxiliar"," 88248 ","SINAPI","AUXILIAR DE ENCANADOR OU BOMBEIRO HIDRÁULICO COM ENCARGOS COMPLEMENTARES","SEDI - SERVIÇOS DIVERSOS",null,"H",0.15240000000000001,20.100000000000001,3.06]
["Composição Auxiliar"," 88267 ","SINAPI","ENCANADOR OU BOMBEIRO HIDRÁULICO COM ENCARGOS COMPLEMENTARES","SEDI - SERVIÇOS DIVERSOS",null,"H",0.15240000000000001,25.39,3.86]
["Insumo"," 00009837 ","SINAPI","TUBO PVC SERIE NORMAL, DN 75 MM, PARA ESGOTO PREDIAL (NBR 5688)","Material",null,"M",1.0548999999999999,11.07,11.67]
["Insumo"," 00038383 ","SINAPI","LIXA D'AGUA EM FOLHA, GRAO 100","Material",null,"UN",8.5000000000000006E-3,2.52,0.02]
[]
[]
[]
[" 2.4.3 ","Código","Banco","Descrição","Tipo",null,"Und","Quant.","Valor Unit","Total"]
["Composição"," 87894 ","SINAPI","CHAPISCO APLICADO EM ALVENARIA (SEM PRESENÇA DE VÃOS) E ESTRUTURAS DE CONCRETO DE FACHADA, COM COLHER DE PEDREIRO.  ARGAMASSA TRAÇO 1:3 COM PREPARO EM BETONEIRA 400L. AF_10/2022","REVE - REVESTIMENTO E TRATAMENTO DE SUPERFÍCIES",null,"m²",1,6.56,6.56]
["Composição Auxiliar"," 87313 ","SINAPI","ARGAMASSA TRAÇO 1:3 (EM VOLUME DE CIMENTO E AREIA GROSSA ÚMIDA) PARA CHAPISCO CONVENCIONAL, PREPARO MECÂNICO COM BETONEIRA 400 L. AF_08/2019","SEDI - SERVIÇOS DIVERSOS",null,"m³",3.7000000000000002E-3,536.27,1.98]
["Composição Auxiliar"," 88309 ","SINAPI","PEDREIRO COM ENCARGOS COMPLEMENTARES","SEDI - SERVIÇOS DIVERSOS",null,"H",0.1394,26.15,3.64]
["Composição Auxiliar"," 88316 ","SINAPI","SERVENTE COM ENCARGOS COMPLEMENTARES","SEDI - SERVIÇOS DIVERSOS",null,"H",4.65E-2,20.420000000000002,0.94]
[]
[]
[]
[" 2.4.4 ","Código","Banco","Descrição","Tipo",null,"Und","Quant.","Valor Unit","Total"]
["Composição"," 87529 ","SINAPI","MASSA ÚNICA, EM ARGAMASSA TRAÇO 1:2:8, PREPARO MECÂNICO, APLICADA MANUALMENTE EM PAREDES INTERNAS DE AMBIENTES COM ÁREA ENTRE 5M² E 10M², E = 17,5MM, COM TALISCAS. AF_03/2024","REVE - REVESTIMENTO E TRATAMENTO DE SUPERFÍCIES",null,"m²",1,35.450000000000003,35.450000000000003]
["Composição Auxiliar"," 87292 ","SINAPI","ARGAMASSA TRAÇO 1:2:8 (EM VOLUME DE CIMENTO, CAL E AREIA MÉDIA ÚMIDA) PARA EMBOÇO/MASSA ÚNICA/ASSENTAMENTO DE ALVENARIA DE VEDAÇÃO, PREPARO MECÂNICO COM BETONEIRA 400 L. AF_08/2019","SEDI - SERVIÇOS DIVERSOS",null,"m³",3.04E-2,601.32000000000005,18.28]
["Composição Auxiliar"," 88309 ","SINAPI","PEDREIRO COM ENCARGOS COMPLEMENTARES","SEDI - SERVIÇOS DIVERSOS",null,"H",0.47239999999999999,26.15,12.35]
["Composição Auxiliar"," 88316 ","SINAPI","SERVENTE COM ENCARGOS COMPLEMENTARES","SEDI - SERVIÇOS DIVERSOS",null,"H",0.23619999999999999,20.420000000000002,4.82]
[]
[]
[]
[" 2.5.1 ","Código","Banco","Descrição","Tipo",null,"Und","Quant.","Valor Unit","Total"]
["Composição"," 96622 ","SINAPI","LASTRO COM MATERIAL GRANULAR, APLICADO EM PISOS OU LAJES SOBRE SOLO, ESPESSURA DE *5 CM*. AF_01/2024","FUES - FUNDAÇÕES E ESTRUTURAS",null,"m³",1,232.84,232.84]
["Composição Auxiliar"," 88309 ","SINAPI","PEDREIRO COM ENCARGOS COMPLEMENTARES","SEDI - SERVIÇOS DIVERSOS",null,"H",1.9419999999999999,26.15,50.78]
["Composição Auxiliar"," 88316 ","SINAPI","SERVENTE COM ENCARGOS COMPLEMENTARES","SEDI - SERVIÇOS DIVERSOS",null,"H",0.76500000000000001,20.420000000000002,15.62]
["Composição Auxiliar"," 91277 ","SINAPI","PLACA VIBRATÓRIA REVERSÍVEL COM MOTOR 4 TEMPOS A GASOLINA, FORÇA CENTRÍFUGA DE 25 KN (2500 KGF), POTÊNCIA 5,5 CV - CHP DIURNO. AF_08/2015","CHOR - CUSTOS HORÁRIOS DE MÁQUINAS E EQUIPAMENTOS",null,"CHP",3.2000000000000001E-2,10.64,0.34]
["Composição Auxiliar"," 91278 ","SINAPI","PLACA VIBRATÓRIA REVERSÍVEL COM MOTOR 4 TEMPOS A GASOLINA, FORÇA CENTRÍFUGA DE 25 KN (2500 KGF), POTÊNCIA 5,5 CV - CHI DIURNO. AF_08/2015","CHOR - CUSTOS HORÁRIOS DE MÁQUINAS E EQUIPAMENTOS",null,"CHI",0.03,0.71,0.02]
["Insumo"," 00004718 ","SINAPI","PEDRA BRITADA N. 2 (19 A 38 MM) POSTO PEDREIRA/FORNECEDOR, SEM FRETE","Material",null,"m³",1.38,120.35,166.08]
[]
[]
[]
[" 2.5.2 ","Código","Banco","Descrição","Tipo",null,"Und","Quant.","Valor Unit","Total"]
["Composição"," 94994 ","SINAPI","EXECUÇÃO DE PASSEIO (CALÇADA) OU PISO DE CONCRETO COM CONCRETO MOLDADO IN LOCO, FEITO EM OBRA, ACABAMENTO CONVENCIONAL, ESPESSURA 8 CM, ARMADO. AF_08/2022","PISO - PISOS",null,"m²",1,92.7,92.7]
["Composição Auxiliar"," 88262 ","SINAPI","CARPINTEIRO DE FORMAS COM ENCARGOS COMPLEMENTARES","SEDI - SERVIÇOS DIVERSOS",null,"H",0.13009999999999999,25.8,3.35]
["Composição Auxiliar"," 88309 ","SINAPI","PEDREIRO COM ENCARGOS COMPLEMENTARES","SEDI - SERVIÇOS DIVERSOS",null,"H",0.18820000000000001,26.15,4.92]
["Composição Auxiliar"," 88316 ","SINAPI","SERVENTE COM ENCARGOS COMPLEMENTARES","SEDI - SERVIÇOS DIVERSOS",null,"H",0.31830000000000003,20.420000000000002,6.49]
["Composição Auxiliar"," 94964 ","SINAPI","CONCRETO FCK = 20MPA, TRAÇO 1:2,7:3 (EM MASSA SECA DE CIMENTO/ AREIA MÉDIA/ BRITA 1) - PREPARO MECÂNICO COM BETONEIRA 400 L. AF_05/2021","FUES - FUNDAÇÕES E ESTRUTURAS",null,"m³",9.8500000000000004E-2,490.73,48.33]
["Insumo"," 00002692 ","SINAPI","DESMOLDANTE PROTETOR PARA FORMAS DE MADEIRA, DE BASE OLEOSA EMULSIONADA EM AGUA","Material",null,"L",1.6999999999999999E-3,8.31,0.01]
["Insumo"," 00004509 ","SINAPI","SARRAFO *2,5 X 10* CM EM PINUS, MISTA OU EQUIVALENTE DA REGIAO - BRUTA","Material",null,"M",0.25,5.58,1.39]
["Insumo"," 00004517 ","SINAPI","SARRAFO *2,5 X 7,5* CM EM PINUS, MISTA OU EQUIVALENTE DA REGIAO - BRUTA","Material",null,"M",0.2,3.84,0.76]
["Insumo"," 00005068 ","SINAPI","PREGO DE ACO POLIDO COM CABECA 17 X 21 (2 X 11)","Material",null,"KG",2.4E-2,17.29,0.41]
["Insumo"," 00007156 ","SINAPI","TELA DE ACO SOLDADA NERVURADA, CA-60, Q-196, (3,11 KG/M2), DIAMETRO DO FIO = 5,0 MM, LARGURA = 2,45 M, ESPACAMENTO DA MALHA = 10 X 10 CM","Material",null,"m²",1.0815999999999999,25,27.04]
[]
[]
[]
[" 2.5.3 ","Código","Banco","Descrição","Tipo",null,"Und","Quant.","Valor Unit","Total"]
["Composição"," 3641 ","ORSE","Acabamento de superfície de piso de concreto com polimento mecânico com acabadora simples - Rev 02","Pavimentações Externas",null,"m²",1,3.93,3.93]
["Composição Auxiliar"," 10549 ","ORSE","Encargos Complementares - Servente","Provisórios",null,"h",0.1333,3.79,0.5]
["Insumo"," 00006111/SINAPI ","ORSE","Servente de obras (horista)","Mão de Obra",null,"h",0.13333329999999999,13.65,1.81]
["Insumo"," 12950 ","ORSE","Operador de equipamento leve - SICRO","Mão de Obra",null,"h",8.8888900000000007E-2,14.5,1.28]
["Insumo"," 2871 ","ORSE","Aluguel de máquina acabadora  de superfície de concreto (trifásica) com 1 jogo de pás e disco de acabamento","Equipamento",null,"h",4.4444400000000002E-2,7.71,0.34]
[]
[]
[]
[" 2.6.1 ","Código","Banco","Descrição","Tipo",null,"Und","Quant.","Valor Unit","Total"]
["Composição"," 4555 ","ORSE","Meio-fio pré moldado de concreto simples (0,12 x 0,30 x 1,00m), rejuntado comargamassa de cimento e areia no traço 1:3","Meios-Fios e Guias",null,"m",1,44.35,44.35]
["Composição Auxiliar"," 10549 ","ORSE","Encargos Complementares - Servente","Provisórios",null,"h",0.36,3.79,1.36]
["Composição Auxiliar"," 10550 ","ORSE","Encargos Complementares - Pedreiro","Provisórios",null,"h",0.18,3.66,0.65]
["Composição Auxiliar"," 1903 ","ORSE","Argamassa cimento e areia traço t-1 (1:3) - 1 saco cimento 50kg / 3 padiolas areia dim. 0.35 x 0.45 x 0.23 m - Confecção mecânica e transporte","Argamassas",null,"m³",1E-3,541.27,0.54]
["Insumo"," 00004750/SINAPI ","ORSE","Pedreiro (horista)","Mão de Obra",null,"h",0.18,19.11,3.43]
["Insumo"," 00006111/SINAPI ","ORSE","Servente de obras (horista)","Mão de Obra",null,"h",0.36,13.65,4.91]
["Insumo"," 1611 ","ORSE","Meio fio pré-moldado concreto (0,12 x 0,30 x 1,00m)","Material",null,"m",1,33.46,33.46]
[]
[]
[]
[" 2.6.2 ","Código","Banco","Descrição","Tipo",null,"Und","Quant.","Valor Unit","Total"]
["Composição"," 94991 ","SINAPI","EXECUÇÃO DE PASSEIO (CALÇADA) OU PISO DE CONCRETO COM CONCRETO MOLDADO IN LOCO, USINADO C20, ACABAMENTO CONVENCIONAL, NÃO ARMADO. AF_08/2022","PISO - PISOS",null,"m³",1,693.61,693.61]
["Composição Auxiliar"," 88262 ","SINAPI","CARPINTEIRO DE FORMAS COM ENCARGOS COMPLEMENTARES","SEDI - SERVIÇOS DIVERSOS",null,"H",1.6268,25.8,41.97]
["Composição Auxiliar"," 88309 ","SINAPI","PEDREIRO COM ENCARGOS COMPLEMENTARES","SEDI - SERVIÇOS DIVERSOS",null,"H",0.156,26.15,4.07]
["Composição Auxiliar"," 88316 ","SINAPI","SERVENTE COM ENCARGOS COMPLEMENTARES","SEDI - SERVIÇOS DIVERSOS",null,"H",1.7827999999999999,20.420000000000002,36.4]
["Insumo"," 00002692 ","SINAPI","DESMOLDANTE PROTETOR PARA FORMAS DE MADEIRA, DE BASE OLEOSA EMULSIONADA EM AGUA","Material",null,"L",2.1299999999999999E-2,8.31,0.17]
["Insumo"," 00004509 ","SINAPI","SARRAFO *2,5 X 10* CM EM PINUS, MISTA OU EQUIVALENTE DA REGIAO - BRUTA","Material",null,"M",3.125,5.58,17.43]
["Insumo"," 00004517 ","SINAPI","SARRAFO *2,5 X 7,5* CM EM PINUS, MISTA OU EQUIVALENTE DA REGIAO - BRUTA","Material",null,"M",2.5,3.84,9.6]
["Insumo"," 00005068 ","SINAPI","PREGO DE ACO POLIDO COM CABECA 17 X 21 (2 X 11)","Material",null,"KG",0.2994,17.29,5.17]
["Insumo"," 00034492 ","SINAPI","CONCRETO USINADO BOMBEAVEL, CLASSE DE RESISTENCIA C20, COM BRITA 0 E 1, SLUMP = 100 +/- 20 MM, EXCLUI SERVICO DE BOMBEAMENTO (NBR 8953)","Material",null,"m³",1.2315,470,578.79999999999995]
[]
[]
[]
[" 2.7.1 ","Código","Banco","Descrição","Tipo",null,"Und","Quant.","Valor Unit","Total"]
["Composição"," CODEVASF  234 ","Próprio","BICICLETÁRIO EM TUBO DE AÇO GALVANIZADO DN 50mm","SEDI - SERVIÇOS DIVERSOS",null,"UND",1,591.76,591.76]
["Composição Auxiliar"," 93358 ","SINAPI","ESCAVAÇÃO MANUAL DE VALA COM PROFUNDIDADE MENOR OU IGUAL A 1,30 M. AF_02/2021","MOVT - MOVIMENTO DE TERRA",null,"m³",0.05,80.78,4.03]
["Composição Auxiliar"," 94963 ","SINAPI","CONCRETO FCK = 15MPA, TRAÇO 1:3,4:3,5 (EM MASSA SECA DE CIMENTO/ AREIA MÉDIA/ BRITA 1) - PREPARO MECÂNICO COM BETONEIRA 400 L. AF_05/2021","FUES - FUNDAÇÕES E ESTRUTURAS",null,"m³",0.05,449.63,22.48]
["Composição Auxiliar"," 88267 ","SINAPI","ENCANADOR OU BOMBEIRO HIDRÁULICO COM ENCARGOS COMPLEMENTARES","SEDI - SERVIÇOS DIVERSOS",null,"H",1,25.39,25.39]
["Composição Auxiliar"," 88316 ","SINAPI","SERVENTE COM ENCARGOS COMPLEMENTARES","SEDI - SERVIÇOS DIVERSOS",null,"H",1,20.420000000000002,20.420000000000002]
["Insumo"," 00021013 ","SINAPI","TUBO ACO GALVANIZADO COM COSTURA, CLASSE LEVE, DN 50 MM ( 2\"),  E = 3,00 MM,  *4,40* KG/M (NBR 5580)","Material",null,"M",3.3,67.989999999999995,224.36]
["Insumo"," 00001790 ","SINAPI","CURVA 90 GRAUS DE FERRO GALVANIZADO, COM ROSCA BSP FEMEA, DE 2\"","Material",null,"UN",2,147.54,295.08]
[]
[]
[]
[" 2.7.2 ","Código","Banco","Descrição","Tipo",null,"Und","Quant.","Valor Unit","Total"]
["Composição"," 9222 ","ORSE","Guarda-corpo em tubos de aço galvanizado (altura = 0,90), com barras verticais a cada 2,00m (2\"), barra horizontal intermediária (2\") e barra horizontal superior (2\")","Esquadrias de Ferro",null,"m",1,283.68,283.68]
["Composição Auxiliar"," 10549 ","ORSE","Encargos Complementares - Servente","Provisórios",null,"h",2.5,3.79,9.4700000000000006]
["Composição Auxiliar"," 10550 ","ORSE","Encargos Complementares - Pedreiro","Provisórios",null,"h",1,3.66,3.66]
["Composição Auxiliar"," 10594 ","ORSE","Encargos Complementares - Serralheiro ou Operador de Equipamento Leve","Provisórios",null,"h",0.5,3.63,1.81]
["Composição Auxiliar"," 10603 ","ORSE","Encargos Complementares - Soldador","Provisórios",null,"h",0.5,4.34,2.17]
["Composição Auxiliar"," 96 ","ORSE","Concreto simples usinado fck=15mpa, bombeado, lançado e adensado em superestrura","Alvenarias de Pedra e Concretos para Fundações",null,"m³",1.4999999999999999E-2,526.79999999999995,7.9]
["Insumo"," 00004750/SINAPI ","ORSE","Pedreiro (horista)","Mão de Obra",null,"h",1,19.11,19.11]
["Insumo"," 00006110/SINAPI ","ORSE","Serralheiro (horista)","Mão de Obra",null,"h",0.5,19.11,9.5500000000000007]
["Insumo"," 00006111/SINAPI ","ORSE","Servente de obras (horista)","Mão de Obra",null,"h",2.5,13.65,34.119999999999997]
["Insumo"," 00006160/SINAPI ","ORSE","Soldador (horista)","Mão de Obra",null,"h",0.5,19.13,9.56]
["Insumo"," 00010997/SINAPI ","ORSE","Eletrodo revestido aws - e7018, diametro igual a 4,00 mm","Material",null,"kg",0.25,51.84,12.96]
["Insumo"," 2313 ","ORSE","Tubo de aço galvanizado leve c/ costura c/ rosca BSP Ø = 60,30mm ( 2\" ), e = 2,65mm, l = 6000mm NBR 5580","Material",null,"m",2.5499999999999998,67.989999999999995,173.37]
[]
[]
[]
[" 2.8.1 ","Código","Banco","Descrição","Tipo",null,"Und","Quant.","Valor Unit","Total"]
["Composição"," 88489 ","SINAPI","PINTURA LÁTEX ACRÍLICA PREMIUM, APLICAÇÃO MANUAL EM PAREDES, DUAS DEMÃOS. AF_04/2023","PINT - PINTURAS",null,"m²",1,13.12,13.12]
["Composição Auxiliar"," 88310 ","SINAPI","PINTOR COM ENCARGOS COMPLEMENTARES","SEDI - SERVIÇOS DIVERSOS",null,"H",0.16309999999999999,27.65,4.5]
["Composição Auxiliar"," 88316 ","SINAPI","SERVENTE COM ENCARGOS COMPLEMENTARES","SEDI - SERVIÇOS DIVERSOS",null,"H",5.4399999999999997E-2,20.420000000000002,1.1100000000000001]
["Insumo"," 00007356 ","SINAPI","TINTA ACRILICA PREMIUM, COR BRANCO FOSCO","Material",null,"L",0.22850000000000001,32.869999999999997,7.51]
[]
[]
[]
[" 2.8.2 ","Código","Banco","Descrição","Tipo",null,"Und","Quant.","Valor Unit","Total"]
["Composição"," 100758 ","SINAPI","PINTURA COM TINTA ALQUÍDICA DE ACABAMENTO (ESMALTE SINTÉTICO ACETINADO) APLICADA A ROLO OU PINCEL SOBRE SUPERFÍCIES METÁLICAS (EXCETO PERFIL) EXECUTADO EM OBRA (02 DEMÃOS). AF_01/2020","PINT - PINTURAS",null,"m²",1,48.23,48.23]
["Composição Auxiliar"," 88310 ","SINAPI","PINTOR COM ENCARGOS COMPLEMENTARES","SEDI - SERVIÇOS DIVERSOS",null,"H",1.3559000000000001,27.65,37.49]
["Insumo"," 00005318 ","SINAPI","SOLVENTE DILUENTE A BASE DE AGUARRAS","Material",null,"L",2.5499999999999998E-2,25.76,0.65]
["Insumo"," 00007311 ","SINAPI","TINTA ESMALTE SINTETICO PREMIUM ACETINADO","Material",null,"L",0.25490000000000002,39.6,10.09]
[]
[]
[]
[" 3.1.1 ","Código","Banco","Descrição","Tipo",null,"Und","Quant.","Valor Unit","Total"]
["Composição"," 101496 ","SINAPI","ENTRADA DE ENERGIA ELÉTRICA, AÉREA, MONOFÁSICA, COM CAIXA DE EMBUTIR, CABO DE 35 MM2 E DISJUNTOR DIN 50A (NÃO INCLUSO O POSTE DE CONCRETO). AF_07/2020_PS","INEL - INSTALAÇÃO ELÉTRICA/ELETRIFICAÇÃO E ILUMINAÇÃO EXTERNA",null,"UN",1,1612.67,1612.67]
["Composição Auxiliar"," 100578 ","SINAPI","ASSENTAMENTO DE POSTE DE CONCRETO COM COMPRIMENTO NOMINAL DE 9 M, CARGA NOMINAL MENOR OU IGUAL A 1000 DAN, ENGASTAMENTO SIMPLES COM 1,5 M DE SOLO (NÃO INCLUI FORNECIMENTO). AF_11/2019","INEL - INSTALAÇÃO ELÉTRICA/ELETRIFICAÇÃO E ILUMINAÇÃO EXTERNA",null,"UN",1,487.47,487.47]
["Composição Auxiliar"," 104749 ","SINAPI","CONECTOR GRAMPO METÁLICO TIPO OLHAL, PARA SPDA, PARA HASTE DE ATERRAMENTO DE 3/4'' E CABOS DE 10 A 50 MM2 - FORNECIMENTO E INSTALAÇÃO. AF_08/2023","INEL - INSTALAÇÃO ELÉTRICA/ELETRIFICAÇÃO E ILUMINAÇÃO EXTERNA",null,"UN",1,20.65,20.65]
["Composição Auxiliar"," 87367 ","SINAPI","ARGAMASSA TRAÇO 1:1:6 (EM VOLUME DE CIMENTO, CAL E AREIA MÉDIA ÚMIDA) PARA EMBOÇO/MASSA ÚNICA/ASSENTAMENTO DE ALVENARIA DE VEDAÇÃO, PREPARO MANUAL. AF_08/2019","SEDI - SERVIÇOS DIVERSOS",null,"m³",8.0000000000000002E-3,699.11,5.59]
["Composição Auxiliar"," 88247 ","SINAPI","AUXILIAR DE ELETRICISTA COM ENCARGOS COMPLEMENTARES","SEDI - SERVIÇOS DIVERSOS",null,"H",0.31619999999999998,21.09,6.66]
["Composição Auxiliar"," 88264 ","SINAPI","ELETRICISTA COM ENCARGOS COMPLEMENTARES","SEDI - SERVIÇOS DIVERSOS",null,"H",2.8462999999999998,26.5,75.42]
["Composição Auxiliar"," 91873 ","SINAPI","ELETRODUTO RÍGIDO ROSCÁVEL, PVC, DN 40 MM (1 1/4\"), PARA CIRCUITOS TERMINAIS, INSTALADO EM PAREDE - FORNECIMENTO E INSTALAÇÃO. AF_12/2015","INEL - INSTALAÇÃO ELÉTRICA/ELETRIFICAÇÃO E ILUMINAÇÃO EXTERNA",null,"M",6.05,19.100000000000001,115.55]
["Composição Auxiliar"," 91886 ","SINAPI","LUVA PARA ELETRODUTO, PVC, ROSCÁVEL, DN 40 MM (1 1/4\"), PARA CIRCUITOS TERMINAIS, INSTALADA EM PAREDE - FORNECIMENTO E INSTALAÇÃO. AF_12/2015","INEL - INSTALAÇÃO ELÉTRICA/ELETRIFICAÇÃO E ILUMINAÇÃO EXTERNA",null,"UN",1,13.03,13.03]
["Composição Auxiliar"," 91920 ","SINAPI","CURVA 90 GRAUS PARA ELETRODUTO, PVC, ROSCÁVEL, DN 40 MM (1 1/4\"), PARA CIRCUITOS TERMINAIS, INSTALADA EM PAREDE - FORNECIMENTO E INSTALAÇÃO. AF_12/2015","INEL - INSTALAÇÃO ELÉTRICA/ELETRIFICAÇÃO E ILUMINAÇÃO EXTERNA",null,"UN",1,19.95,19.95]
["Composição Auxiliar"," 91922 ","SINAPI","CURVA 180 GRAUS PARA ELETRODUTO, PVC, ROSCÁVEL, DN 40 MM (1 1/4\"), PARA CIRCUITOS TERMINAIS, INSTALADA EM PAREDE - FORNECIMENTO E INSTALAÇÃO. AF_12/2015","INEL - INSTALAÇÃO ELÉTRICA/ELETRIFICAÇÃO E ILUMINAÇÃO EXTERNA",null,"UN",1,21.14,21.14]
["Composição Auxiliar"," 92986 ","SINAPI","CABO DE COBRE FLEXÍVEL ISOLADO, 35 MM², ANTI-CHAMA 0,6/1,0 KV, PARA DISTRIBUIÇÃO - FORNECIMENTO E INSTALAÇÃO. AF_12/2015","INEL - INSTALAÇÃO ELÉTRICA/ELETRIFICAÇÃO E ILUMINAÇÃO EXTERNA",null,"M",11,37.93,417.23]
["Composição Auxiliar"," 93659 ","SINAPI","DISJUNTOR MONOPOLAR TIPO DIN, CORRENTE NOMINAL DE 50A - FORNECIMENTO E INSTALAÇÃO. AF_10/2020","INEL - INSTALAÇÃO ELÉTRICA/ELETRIFICAÇÃO E ILUMINAÇÃO EXTERNA",null,"UN",1,22.27,22.27]
["Composição Auxiliar"," 96977 ","SINAPI","CORDOALHA DE COBRE NU 50 MM², ENTERRADA, SEM ISOLADOR - FORNECIMENTO E INSTALAÇÃO. AF_12/2017","INEL - INSTALAÇÃO ELÉTRICA/ELETRIFICAÇÃO E ILUMINAÇÃO EXTERNA",null,"M",1.95,57.22,111.57]
["Composição Auxiliar"," 96986 ","SINAPI","HASTE DE ATERRAMENTO 3/4  PARA SPDA - FORNECIMENTO E INSTALAÇÃO. AF_12/2017","INEL - INSTALAÇÃO ELÉTRICA/ELETRIFICAÇÃO E ILUMINAÇÃO EXTERNA",null,"UN",1,132.58000000000001,132.58000000000001]
["Insumo"," 00001094 ","SINAPI","ARMACAO VERTICAL COM HASTE E CONTRA-PINO, EM CHAPA DE ACO GALVANIZADO 3/16\", COM 1 ESTRIBO, SEM ISOLADOR","Material",null,"UN",1,14.59,14.59]
["Insumo"," 00003398 ","SINAPI","ISOLADOR DE PORCELANA, TIPO ROLDANA, DIMENSOES DE *72* X *72* MM, PARA USO EM BAIXA TENSAO","Material",null,"UN",1,2,2]
["Insumo"," 00004346 ","SINAPI","PARAFUSO DE FERRO POLIDO, SEXTAVADO, COM ROSCA PARCIAL, DIAMETRO 5/8\", COMPRIMENTO 6\", COM PORCA E ARRUELA DE PRESSAO MEDIA","Material",null,"UN",3,10.73,32.19]
["Insumo"," 00011267 ","SINAPI","ARRUELA LISA, REDONDA, DE LATAO POLIDO, DIAMETRO NOMINAL 5/8\", DIAMETRO EXTERNO = 34 MM, DIAMETRO DO FURO = 17 MM, ESPESSURA = *2,5* MM","Material",null,"UN",2,1.43,2.86]
["Insumo"," 00014153 ","SINAPI","FITA METALICA PERFURADA, L = *18* MM, ROLO DE 30 M, CARGA RECOMENDADA = *30* KGF","Material",null,"UN",0.06,60.18,3.61]
["Insumo"," 00034643 ","SINAPI","CAIXA DE INSPECAO PARA ATERRAMENTO E PARA RAIOS, EM POLIPROPILENO,  DIAMETRO = 300 MM X ALTURA = 400 MM","Material",null,"UN",1,31.98,31.98]
["Insumo"," 00039808 ","SINAPI","CAIXA PARA MEDIDOR MONOFASICO, EM POLICARBONATO / TERMOPLASTICO, PARA ALOJAR 1 DISJUNTOR (PADRAO DA CONCESSIONARIA LOCAL)","Material",null,"UN",1,75.11,75.11]
["Insumo"," 00039996 ","SINAPI","VERGALHAO ZINCADO ROSCA TOTAL, 1/4 \" (6,3 MM)","Material",null,"M",0.16639999999999999,3.5,0.57999999999999996]
["Insumo"," 00039997 ","SINAPI","PORCA ZINCADA, SEXTAVADA, DIAMETRO 1/4\"","Material",null,"UN",2,0.32,0.64]
[]
[]
[]
[" 3.1.2 ","Código","Banco","Descrição","Tipo",null,"Und","Quant.","Valor Unit","Total"]
["Composição"," 83446 ","SINAPI","CAIXA DE PASSAGEM 30X30X40 COM TAMPA E DRENO BRITA","INEL - INSTALAÇÃO ELÉTRICA/ELETRIFICAÇÃO E ILUMINAÇÃO EXTERNA",null,"UN",1,212.59,212.59]
["Composição Auxiliar"," 88309 ","SINAPI","PEDREIRO COM ENCARGOS COMPLEMENTARES","SEDI - SERVIÇOS DIVERSOS",null,"H",1.6789000000000001,26.15,43.9]
["Composição Auxiliar"," 88316 ","SINAPI","SERVENTE COM ENCARGOS COMPLEMENTARES","SEDI - SERVIÇOS DIVERSOS",null,"H",4.4832000000000001,20.420000000000002,91.54]
["Insumo"," 00043059 ","SINAPI","ACO CA-60, 4,2 MM, OU 5,0 MM, OU 6,0 MM, OU 7,0 MM, VERGALHAO","Material",null,"KG",2.1560000000000001,8.9700000000000006,19.329999999999998]
["Insumo"," 00000370 ","SINAPI","AREIA MEDIA - POSTO JAZIDA/FORNECEDOR (RETIRADO NA JAZIDA, SEM TRANSPORTE)","Material",null,"m³",6.5299999999999997E-2,110,7.18]
["Insumo"," 00001106 ","SINAPI","CAL HIDRATADA CH-I PARA ARGAMASSAS","Material",null,"KG",3.0095999999999998,1.23,3.7]
["Insumo"," 00001358 ","SINAPI","CHAPA DE MADEIRA COMPENSADA RESINADA PARA FORMA DE CONCRETO, DE *2,2 X 1,1* M, E = 17 MM","Material",null,"m²",0.06,44.6,2.67]
["Insumo"," 00001379 ","SINAPI","CIMENTO PORTLAND COMPOSTO CP II-32","Material",null,"KG",18.508400000000002,0.76,14.06]
["Insumo"," 00004721 ","SINAPI","PEDRA BRITADA N. 1 (9,5 a 19 MM) POSTO PEDREIRA/FORNECEDOR, SEM FRETE","Material",null,"m³",3.6499999999999998E-2,119.72,4.3600000000000003]
["Insumo"," 00004722 ","SINAPI","PEDRA BRITADA N. 3 (38 A 50 MM) POSTO PEDREIRA/FORNECEDOR, SEM FRETE","Material",null,"m³",4.0000000000000001E-3,113.08,0.45]
["Insumo"," 00007258 ","SINAPI","TIJOLO CERAMICO MACICO COMUM *5 X 10 X 20* CM (L X A X C)","Material",null,"UN",60.48,0.42,25.4]
[]
[]
[]
[" 3.2.1 ","Código","Banco","Descrição","Tipo",null,"Und","Quant.","Valor Unit","Total"]
["Composição"," 331 ","ORSE","Poste de concreto duplo T (DT)  9/200 - fornecimento e assentamento","Entrada em Baixa Tensão",null,"un",1,874.5,874.5]
["Composição Auxiliar"," 128 ","ORSE","Lançamento de concreto usinado, bombeado, em peças armadas da superestrutura, inclusive colocação, adensamento e acabamento","Concreto Simples",null,"m³",0.1,48.7,4.87]
["Composição Auxiliar"," 95 ","ORSE","Concreto simples fabricado na obra, fck=13,5 mpa, lançado e adensado","Alvenarias de Pedra e Concretos para Fundações",null,"m³",0.1,566.41999999999996,56.64]
["Composição Auxiliar"," 10549 ","ORSE","Encargos Complementares - Servente","Provisórios",null,"h",5.5,3.79,20.84]
["Composição Auxiliar"," 10550 ","ORSE","Encargos Complementares - Pedreiro","Provisórios",null,"h",1.4,3.66,5.12]
["Insumo"," 2455 ","ORSE","Aluguel de caminhão guindauto 3,0 t ( m. benz - 1215 c/48- 143,0 hp","Equipamento",null,"h",1,102.86,102.86]
["Insumo"," 00004750 ","SINAPI","PEDREIRO","Mão de Obra",null,"H",1.4,19.12,26.76]
["Insumo"," 00005038 ","SINAPI","POSTE DE CONCRETO DUPLO T, TIPO D, 200 KG, H = 9 M (NBR 8451)","Material",null,"UN",1,582.39,582.39]
["Insumo"," 00006111 ","SINAPI","SERVENTE DE OBRAS","Mão de Obra",null,"H",5.5,13.64,75.02]
[]
[]
[]
[" 3.2.2 ","Código","Banco","Descrição","Tipo",null,"Und","Quant.","Valor Unit","Total"]
["Composição"," 91863 ","SINAPI","ELETRODUTO RÍGIDO ROSCÁVEL, PVC, DN 25 MM (3/4\"), PARA CIRCUITOS TERMINAIS, INSTALADO EM FORRO - FORNECIMENTO E INSTALAÇÃO. AF_03/2023","INEL - INSTALAÇÃO ELÉTRICA/ELETRIFICAÇÃO E ILUMINAÇÃO EXTERNA",null,"M",1,9.82,9.82]
["Composição Auxiliar"," 88247 ","SINAPI","AUXILIAR DE ELETRICISTA COM ENCARGOS COMPLEMENTARES","SEDI - SERVIÇOS DIVERSOS",null,"H",0.11899999999999999,21.09,2.5]
["Composição Auxiliar"," 88264 ","SINAPI","ELETRICISTA COM ENCARGOS COMPLEMENTARES","SEDI - SERVIÇOS DIVERSOS",null,"H",0.11899999999999999,26.5,3.15]
["Insumo"," 00002674 ","SINAPI","ELETRODUTO DE PVC RIGIDO ROSCAVEL DE 3/4 \", SEM LUVA","Material",null,"M",1.0169999999999999,4.1100000000000003,4.17]
[]
[]
[]
[" 3.2.3 ","Código","Banco","Descrição","Tipo",null,"Und","Quant.","Valor Unit","Total"]
["Composição"," 91879 ","SINAPI","LUVA PARA ELETRODUTO, PVC, ROSCÁVEL, DN 25 MM (3/4\"), PARA CIRCUITOS TERMINAIS, INSTALADA EM LAJE - FORNECIMENTO E INSTALAÇÃO. AF_03/2023","INEL - INSTALAÇÃO ELÉTRICA/ELETRIFICAÇÃO E ILUMINAÇÃO EXTERNA",null,"UN",1,5.79,5.79]
["Composição Auxiliar"," 88247 ","SINAPI","AUXILIAR DE ELETRICISTA COM ENCARGOS COMPLEMENTARES","SEDI - SERVIÇOS DIVERSOS",null,"H",0.108,21.09,2.27]
["Composição Auxiliar"," 88264 ","SINAPI","ELETRICISTA COM ENCARGOS COMPLEMENTARES","SEDI - SERVIÇOS DIVERSOS",null,"H",0.108,26.5,2.86]
["Insumo"," 00001891 ","SINAPI","LUVA EM PVC RIGIDO ROSCAVEL, DE 3/4\", PARA ELETRODUTO","Material",null,"UN",1,0.66,0.66]
[]
[]
[]
[" 3.2.4 ","Código","Banco","Descrição","Tipo",null,"Und","Quant.","Valor Unit","Total"]
["Composição"," 91890 ","SINAPI","CURVA 90 GRAUS PARA ELETRODUTO, PVC, ROSCÁVEL, DN 25 MM (3/4\"), PARA CIRCUITOS TERMINAIS, INSTALADA EM FORRO - FORNECIMENTO E INSTALAÇÃO. AF_03/2023","INEL - INSTALAÇÃO ELÉTRICA/ELETRIFICAÇÃO E ILUMINAÇÃO EXTERNA",null,"UN",1,11.31,11.31]
["Composição Auxiliar"," 88247 ","SINAPI","AUXILIAR DE ELETRICISTA COM ENCARGOS COMPLEMENTARES","SEDI - SERVIÇOS DIVERSOS",null,"H",0.20599999999999999,21.09,4.34]
["Composição Auxiliar"," 88264 ","SINAPI","ELETRICISTA COM ENCARGOS COMPLEMENTARES","SEDI - SERVIÇOS DIVERSOS",null,"H",0.20599999999999999,26.5,5.45]
["Insumo"," 00001879 ","SINAPI","CURVA 90 GRAUS, LONGA, DE PVC RIGIDO ROSCAVEL, DE 3/4\", PARA ELETRODUTO","Material",null,"UN",1,1.52,1.52]
[]
[]
[]
[" 3.2.5 ","Código","Banco","Descrição","Tipo",null,"Und","Quant.","Valor Unit","Total"]
["Composição"," 91892 ","SINAPI","CURVA 180 GRAUS PARA ELETRODUTO, PVC, ROSCÁVEL, DN 25 MM (3/4\"), PARA CIRCUITOS TERMINAIS, INSTALADA EM FORRO - FORNECIMENTO E INSTALAÇÃO. AF_03/2023","INEL - INSTALAÇÃO ELÉTRICA/ELETRIFICAÇÃO E ILUMINAÇÃO EXTERNA",null,"UN",1,12.39,12.39]
["Composição Auxiliar"," 88247 ","SINAPI","AUXILIAR DE ELETRICISTA COM ENCARGOS COMPLEMENTARES","SEDI - SERVIÇOS DIVERSOS",null,"H",0.20599999999999999,21.09,4.34]
["Composição Auxiliar"," 88264 ","SINAPI","ELETRICISTA COM ENCARGOS COMPLEMENTARES","SEDI - SERVIÇOS DIVERSOS",null,"H",0.20599999999999999,26.5,5.45]
["Insumo"," 00012034 ","SINAPI","CURVA 180 GRAUS, DE PVC RIGIDO ROSCAVEL, DE 3/4\", PARA ELETRODUTO","Material",null,"UN",1,2.6,2.6]
[]
[]
[]
[" 3.2.6 ","Código","Banco","Descrição","Tipo",null,"Und","Quant.","Valor Unit","Total"]
["Composição"," 96985 ","SINAPI","HASTE DE ATERRAMENTO, DIÂMETRO 5/8\", COM 3 METROS - FORNECIMENTO E INSTALAÇÃO. AF_08/2023","INEL - INSTALAÇÃO ELÉTRICA/ELETRIFICAÇÃO E ILUMINAÇÃO EXTERNA",null,"UN",1,88.94,88.94]
["Composição Auxiliar"," 88247 ","SINAPI","AUXILIAR DE ELETRICISTA COM ENCARGOS COMPLEMENTARES","SEDI - SERVIÇOS DIVERSOS",null,"H",0.24840000000000001,21.09,5.23]
["Composição Auxiliar"," 88264 ","SINAPI","ELETRICISTA COM ENCARGOS COMPLEMENTARES","SEDI - SERVIÇOS DIVERSOS",null,"H",0.24840000000000001,26.5,6.58]
["Insumo"," 00003379 ","SINAPI","!EM PROCESSO DE DESATIVACAO! HASTE DE ATERRAMENTO EM ACO COM 3,00 M DE COMPRIMENTO E DN = 5/8\", REVESTIDA COM BAIXA CAMADA DE COBRE, SEM CONECTOR","Material",null,"UN",1,77.13,77.13]
[]
[]
[]
[" 3.2.7 ","Código","Banco","Descrição","Tipo",null,"Und","Quant.","Valor Unit","Total"]
["Composição"," 83446 ","SINAPI","CAIXA DE PASSAGEM 30X30X40 COM TAMPA E DRENO BRITA","INEL - INSTALAÇÃO ELÉTRICA/ELETRIFICAÇÃO E ILUMINAÇÃO EXTERNA",null,"UN",1,212.59,212.59]
["Composição Auxiliar"," 88309 ","SINAPI","PEDREIRO COM ENCARGOS COMPLEMENTARES","SEDI - SERVIÇOS DIVERSOS",null,"H",1.6789000000000001,26.15,43.9]
["Composição Auxiliar"," 88316 ","SINAPI","SERVENTE COM ENCARGOS COMPLEMENTARES","SEDI - SERVIÇOS DIVERSOS",null,"H",4.4832000000000001,20.420000000000002,91.54]
["Insumo"," 00043059 ","SINAPI","ACO CA-60, 4,2 MM, OU 5,0 MM, OU 6,0 MM, OU 7,0 MM, VERGALHAO","Material",null,"KG",2.1560000000000001,8.9700000000000006,19.329999999999998]
["Insumo"," 00000370 ","SINAPI","AREIA MEDIA - POSTO JAZIDA/FORNECEDOR (RETIRADO NA JAZIDA, SEM TRANSPORTE)","Material",null,"m³",6.5299999999999997E-2,110,7.18]
["Insumo"," 00001106 ","SINAPI","CAL HIDRATADA CH-I PARA ARGAMASSAS","Material",null,"KG",3.0095999999999998,1.23,3.7]
["Insumo"," 00001358 ","SINAPI","CHAPA DE MADEIRA COMPENSADA RESINADA PARA FORMA DE CONCRETO, DE *2,2 X 1,1* M, E = 17 MM","Material",null,"m²",0.06,44.6,2.67]
["Insumo"," 00001379 ","SINAPI","CIMENTO PORTLAND COMPOSTO CP II-32","Material",null,"KG",18.508400000000002,0.76,14.06]
["Insumo"," 00004721 ","SINAPI","PEDRA BRITADA N. 1 (9,5 a 19 MM) POSTO PEDREIRA/FORNECEDOR, SEM FRETE","Material",null,"m³",3.6499999999999998E-2,119.72,4.3600000000000003]
["Insumo"," 00004722 ","SINAPI","PEDRA BRITADA N. 3 (38 A 50 MM) POSTO PEDREIRA/FORNECEDOR, SEM FRETE","Material",null,"m³",4.0000000000000001E-3,113.08,0.45]
["Insumo"," 00007258 ","SINAPI","TIJOLO CERAMICO MACICO COMUM *5 X 10 X 20* CM (L X A X C)","Material",null,"UN",60.48,0.42,25.4]
[]
[]
[]
[" 3.2.8 ","Código","Banco","Descrição","Tipo",null,"Und","Quant.","Valor Unit","Total"]
["Composição"," CODEVASF  235 ","Próprio","ENTRADA DE ENERGIA ELÉTRICA AÉREA MONOFÁSICA 40A COM POSTE DE CONCRETO, INCLUSIVE CABEAMENTO, CAIXA DE PROTEÇÃO PARA MEDIDOR E ATERRAMENTO.","INEL - INSTALAÇÃO ELÉTRICA/ELETRIFICAÇÃO E ILUMINAÇÃO EXTERNA",null,"und",1,1565.53,1565.53]
["Composição Auxiliar"," 88264 ","SINAPI","ELETRICISTA COM ENCARGOS COMPLEMENTARES","SEDI - SERVIÇOS DIVERSOS",null,"H",6,26.5,159]
["Composição Auxiliar"," 88316 ","SINAPI","SERVENTE COM ENCARGOS COMPLEMENTARES","SEDI - SERVIÇOS DIVERSOS",null,"H",6,20.420000000000002,122.52]
["Insumo"," 00039808 ","SINAPI","CAIXA PARA MEDIDOR MONOFASICO, EM POLICARBONATO / TERMOPLASTICO, PARA ALOJAR 1 DISJUNTOR (PADRAO DA CONCESSIONARIA LOCAL)","Material",null,"UN",1,75.11,75.11]
["Insumo"," 00001095 ","SINAPI","ARMACAO VERTICAL COM HASTE E CONTRA-PINO, EM CHAPA DE ACO GALVANIZADO 3/16\", COM 2 ESTRIBOS, E 2 ISOLADORES","Material",null,"UN",1,31.01,31.01]
["Insumo"," 00034686 ","SINAPI","DISJUNTOR TIPO DIN / IEC, MONOPOLAR DE 40  ATE 50A","Material",null,"UN",1,11.45,11.45]
["Insumo"," 00011856 ","SINAPI","CONECTOR METALICO TIPO PARAFUSO FENDIDO (SPLIT BOLT), PARA CABOS ATE 10 MM2","Material",null,"UN",2,6.01,12.02]
["Insumo"," 00002685 ","SINAPI","ELETRODUTO DE PVC RIGIDO ROSCAVEL DE 1 \", SEM LUVA","Material",null,"M",9,6.42,57.78]
["Insumo"," 00003380 ","SINAPI","!EM PROCESSO DE DESATIVACAO! HASTE DE ATERRAMENTO EM ACO COM 3,00 M DE COMPRIMENTO E DN = 5/8\", REVESTIDA COM BAIXA CAMADA DE COBRE, COM CONECTOR TIPO GRAMPO","Material",null,"UN",1,79.89,79.89]
["Insumo"," 00000379 ","SINAPI","ARRUELA QUADRADA EM ACO GALVANIZADO, DIMENSAO = 38 MM, ESPESSURA = 3MM, DIAMETRO DO FURO= 18 MM","Material",null,"UN",2,1.43,2.86]
["Insumo"," 00000420 ","SINAPI","CINTA CIRCULAR EM ACO GALVANIZADO DE 150 MM DE DIAMETRO PARA FIXACAO DE CAIXA MEDICAO, INCLUI PARAFUSOS E PORCAS","Material",null,"UN",2,21.76,43.52]
["Insumo"," 00004336 ","SINAPI","PARAFUSO ZINCADO, SEXTAVADO, COM ROSCA INTEIRA, DIAMETRO 5/8\", COMPRIMENTO 3\", COM PORCA E ARRUELA DE PRESSAO MEDIA","Material",null,"UN",2,5.55,11.1]
["Insumo"," 00005038 ","SINAPI","POSTE DE CONCRETO DUPLO T, TIPO D, 200 KG, H = 9 M (NBR 8451)","Material",null,"UN",1,582.39,582.39]
["Insumo"," 00000994 ","SINAPI","CABO DE COBRE, FLEXIVEL, CLASSE 4 OU 5, ISOLACAO EM PVC/A, ANTICHAMA BWF-B, COBERTURA PVC-ST1, ANTICHAMA BWF-B, 1 CONDUTOR, 0,6/1 KV, SECAO NOMINAL 6 MM2","Material",null,"M",54,5.96,321.83999999999997]
["Insumo"," 00001884 ","SINAPI","CURVA 90 GRAUS, LONGA, DE PVC RIGIDO ROSCAVEL, DE 1\", PARA ELETRODUTO","Material",null,"UN",5,2.2999999999999998,11.5]
["Insumo"," 00001892 ","SINAPI","LUVA EM PVC RIGIDO ROSCAVEL, DE 1\", PARA ELETRODUTO","Material",null,"UN",7,0.92,6.44]
["Insumo"," 00000862 ","SINAPI","CABO DE COBRE NU 10 MM2 MEIO-DURO","Material",null,"M",3.5,10.6,37.1]
[]
[]
[]
[" 3.2.9 ","Código","Banco","Descrição","Tipo",null,"Und","Quant.","Valor Unit","Total"]
["Composição"," 8349 ","ORSE","Refletor para lampada vapor de sódio 400w, Olivo ou similar, inclusive lâmpada e reator","Luminárias Externas",null,"un",1,259.83999999999997,259.83999999999997]
["Composição Auxiliar"," 10549 ","ORSE","Encargos Complementares - Servente","Provisórios",null,"h",0.3,3.79,1.1299999999999999]
["Composição Auxiliar"," 10552 ","ORSE","Encargos Complementares - Eletricista","Provisórios",null,"h",0.3,3.65,1.0900000000000001]
["Insumo"," 1319 ","ORSE","Lâmpada vapor sódio alta pressão 400 w  (philips ref. son 400w ou similar) Lâmpada vapor sódio alta pressão 400 w  (phllips ref. son 400w ou similar)","Material",null,"un",1,39.700000000000003,39.700000000000003]
["Insumo"," 1922 ","ORSE","Reator p/ lâmpada vapor sódio 400w - interno","Material",null,"un",1,110,110]
["Insumo"," 8606 ","ORSE","Refletor para lâmpada vapor sódio 400w (Olivo ou similar)","Material",null,"un",1,98.1,98.1]
["Insumo"," 00002436/SINAPI ","ORSE","Eletricista (horista)","Mão de Obra",null,"h",0.3,19.13,5.73]
["Insumo"," 00006111/SINAPI ","ORSE","Servente de obras (horista)","Mão de Obra",null,"h",0.3,13.65,4.09]
[]
[]
[]
[" 3.2.10 ","Código","Banco","Descrição","Tipo",null,"Und","Quant.","Valor Unit","Total"]
["Composição"," 4232 ","ORSE","Lâmpada vapor metálico 400w, fornecimento. Rev 01_06/2024","Subestação Transformadora em Poste",null,"un",1,33.99,33.99]
["Insumo"," 1313 ","ORSE","Lâmpada vapor mercúrio 400 w  (philips ref. hpl - n400 ou similar)","Material",null,"un",1,33.99,33.99]
[]
[]
[]
[" 3.2.11 ","Código","Banco","Descrição","Tipo",null,"Und","Quant.","Valor Unit","Total"]
["Composição"," 103782 ","SINAPI","LUMINÁRIA TIPO PLAFON CIRCULAR, DE SOBREPOR, COM LED DE 12/13 W - FORNECIMENTO E INSTALAÇÃO. AF_03/2022","INEL - INSTALAÇÃO ELÉTRICA/ELETRIFICAÇÃO E ILUMINAÇÃO EXTERNA",null,"UN",1,26.76,26.76]
["Composição Auxiliar"," 88247 ","SINAPI","AUXILIAR DE ELETRICISTA COM ENCARGOS COMPLEMENTARES","SEDI - SERVIÇOS DIVERSOS",null,"H",0.37,21.09,7.8]
["Composição Auxiliar"," 88264 ","SINAPI","ELETRICISTA COM ENCARGOS COMPLEMENTARES","SEDI - SERVIÇOS DIVERSOS",null,"H",0.37,26.5,9.8000000000000007]
["Insumo"," 00039385 ","SINAPI","LUMINARIA LED PLAFON REDONDO DE SOBREPOR BIVOLT 12/13 W, D = *17* CM","Material",null,"UN",1,9.16,9.16]
[]
[]
[]
[" 3.2.12 ","Código","Banco","Descrição","Tipo",null,"Und","Quant.","Valor Unit","Total"]
["Composição"," 642 ","ORSE","Ponto de luz em teto ou parede, com eletroduto pvc rígido embutido Ø 3/4\"","Pontos de Suprimento de Energia Convencionais",null,"un",1,278.37,278.37]
["Composição Auxiliar"," 10549 ","ORSE","Encargos Complementares - Servente","Provisórios",null,"h",6,3.79,22.74]
["Composição Auxiliar"," 10552 ","ORSE","Encargos Complementares - Eletricista","Provisórios",null,"h",5,3.65,18.25]
["Insumo"," 00000939/SINAPI ","ORSE","Fio de cobre, solido, classe 1, isolacao em pvc/a, antichama bwf-b, 450/750v,secao nominal 2,5 mm2","Material",null,"m",12,2.46,29.52]
["Insumo"," 00002436/SINAPI ","ORSE","Eletricista (horista)","Mão de Obra",null,"h",5,19.13,95.65]
["Insumo"," 00002674/SINAPI ","ORSE","Eletroduto de pvc rigido roscavel de 3/4 \", sem luva","Material",null,"m",6,4.1100000000000003,24.66]
["Insumo"," 00006111/SINAPI ","ORSE","Servente de obras (horista)","Mão de Obra",null,"h",6,13.65,81.900000000000006]
["Insumo"," 00012001/SINAPI ","ORSE","Caixa octogonal de fundo movel, em pvc, de 4\" x 4\", para eletroduto flexivel corrugado","Material",null,"un",1,4.0599999999999996,4.0599999999999996]
["Insumo"," 00020111/SINAPI ","ORSE","Fita isolante adesiva antichama, uso ate 750 v, em rolo de 19 mm x 20 m","Material",null,"un",0.15,10.6,1.59]
[]
[]
[]
[" 3.2.13 ","Código","Banco","Descrição","Tipo",null,"Und","Quant.","Valor Unit","Total"]
["Composição"," 91859 ","SINAPI","ELETRODUTO FLEXÍVEL LISO, PEAD, DN 32 MM (1\"), PARA CIRCUITOS TERMINAIS, INSTALADO EM PAREDE - FORNECIMENTO E INSTALAÇÃO. AF_03/2023","INEL - INSTALAÇÃO ELÉTRICA/ELETRIFICAÇÃO E ILUMINAÇÃO EXTERNA",null,"M",1,9.7799999999999994,9.7799999999999994]
["Composição Auxiliar"," 88247 ","SINAPI","AUXILIAR DE ELETRICISTA COM ENCARGOS COMPLEMENTARES","SEDI - SERVIÇOS DIVERSOS",null,"H",0.14899999999999999,21.09,3.14]
["Composição Auxiliar"," 88264 ","SINAPI","ELETRICISTA COM ENCARGOS COMPLEMENTARES","SEDI - SERVIÇOS DIVERSOS",null,"H",0.14899999999999999,26.5,3.94]
["Insumo"," 00040401 ","SINAPI","ELETRODUTO FLEXIVEL PLANO EM PEAD, COR PRETA E LARANJA,  DIAMETRO 32 MM","Material",null,"M",1.0169999999999999,2.66,2.7]
[]
[]
[]
[" 3.2.14 ","Código","Banco","Descrição","Tipo",null,"Und","Quant.","Valor Unit","Total"]
["Composição"," 91871 ","SINAPI","ELETRODUTO RÍGIDO ROSCÁVEL, PVC, DN 25 MM (3/4\"), PARA CIRCUITOS TERMINAIS, INSTALADO EM PAREDE - FORNECIMENTO E INSTALAÇÃO. AF_03/2023","INEL - INSTALAÇÃO ELÉTRICA/ELETRIFICAÇÃO E ILUMINAÇÃO EXTERNA",null,"M",1,12.59,12.59]
["Composição Auxiliar"," 88247 ","SINAPI","AUXILIAR DE ELETRICISTA COM ENCARGOS COMPLEMENTARES","SEDI - SERVIÇOS DIVERSOS",null,"H",0.17699999999999999,21.09,3.73]
["Composição Auxiliar"," 88264 ","SINAPI","ELETRICISTA COM ENCARGOS COMPLEMENTARES","SEDI - SERVIÇOS DIVERSOS",null,"H",0.17699999999999999,26.5,4.6900000000000004]
["Insumo"," 00002674 ","SINAPI","ELETRODUTO DE PVC RIGIDO ROSCAVEL DE 3/4 \", SEM LUVA","Material",null,"M",1.0169999999999999,4.1100000000000003,4.17]
[]
[]
[]
[" 3.2.15 ","Código","Banco","Descrição","Tipo",null,"Und","Quant.","Valor Unit","Total"]
["Composição"," 91931 ","SINAPI","CABO DE COBRE FLEXÍVEL ISOLADO, 6 MM², ANTI-CHAMA 0,6/1,0 KV, PARA CIRCUITOS TERMINAIS - FORNECIMENTO E INSTALAÇÃO. AF_03/2023","INEL - INSTALAÇÃO ELÉTRICA/ELETRIFICAÇÃO E ILUMINAÇÃO EXTERNA",null,"M",1,9.8699999999999992,9.8699999999999992]
["Composição Auxiliar"," 88247 ","SINAPI","AUXILIAR DE ELETRICISTA COM ENCARGOS COMPLEMENTARES","SEDI - SERVIÇOS DIVERSOS",null,"H",5.0999999999999997E-2,21.09,1.07]
["Composição Auxiliar"," 88264 ","SINAPI","ELETRICISTA COM ENCARGOS COMPLEMENTARES","SEDI - SERVIÇOS DIVERSOS",null,"H",5.0999999999999997E-2,26.5,1.35]
["Insumo"," 00000994 ","SINAPI","CABO DE COBRE, FLEXIVEL, CLASSE 4 OU 5, ISOLACAO EM PVC/A, ANTICHAMA BWF-B, COBERTURA PVC-ST1, ANTICHAMA BWF-B, 1 CONDUTOR, 0,6/1 KV, SECAO NOMINAL 6 MM2","Material",null,"M",1.2434000000000001,5.96,7.41]
["Insumo"," 00021127 ","SINAPI","FITA ISOLANTE ADESIVA ANTICHAMA, USO ATE 750 V, EM ROLO DE 19 MM X 5 M","Material",null,"UN",9.4000000000000004E-3,4.4400000000000004,0.04]
[]
[]
[]
[" 3.2.16 ","Código","Banco","Descrição","Tipo",null,"Und","Quant.","Valor Unit","Total"]
["Composição"," 91926 ","SINAPI","CABO DE COBRE FLEXÍVEL ISOLADO, 2,5 MM², ANTI-CHAMA 450/750 V, PARA CIRCUITOS TERMINAIS - FORNECIMENTO E INSTALAÇÃO. AF_03/2023","INEL - INSTALAÇÃO ELÉTRICA/ELETRIFICAÇÃO E ILUMINAÇÃO EXTERNA",null,"M",1,4.2,4.2]
["Composição Auxiliar"," 88247 ","SINAPI","AUXILIAR DE ELETRICISTA COM ENCARGOS COMPLEMENTARES","SEDI - SERVIÇOS DIVERSOS",null,"H",2.9000000000000001E-2,21.09,0.61]
["Composição Auxiliar"," 88264 ","SINAPI","ELETRICISTA COM ENCARGOS COMPLEMENTARES","SEDI - SERVIÇOS DIVERSOS",null,"H",2.9000000000000001E-2,26.5,0.76]
["Insumo"," 00001014 ","SINAPI","CABO DE COBRE, FLEXIVEL, CLASSE 4 OU 5, ISOLACAO EM PVC/A, ANTICHAMA BWF-B, 1 CONDUTOR, 450/750 V, SECAO NOMINAL 2,5 MM2","Material",null,"M",1.2434000000000001,2.25,2.79]
["Insumo"," 00021127 ","SINAPI","FITA ISOLANTE ADESIVA ANTICHAMA, USO ATE 750 V, EM ROLO DE 19 MM X 5 M","Material",null,"UN",9.4000000000000004E-3,4.4400000000000004,0.04]
[]
[]
[]
[" 3.2.17 ","Código","Banco","Descrição","Tipo",null,"Und","Quant.","Valor Unit","Total"]
["Composição"," 101878 ","SINAPI","QUADRO DE DISTRIBUIÇÃO DE ENERGIA EM CHAPA DE AÇO GALVANIZADO, DE SOBREPOR, COM BARRAMENTO TRIFÁSICO, PARA 18 DISJUNTORES DIN 100A - FORNECIMENTO E INSTALAÇÃO. AF_10/2020","INEL - INSTALAÇÃO ELÉTRICA/ELETRIFICAÇÃO E ILUMINAÇÃO EXTERNA",null,"UN",1,492.63,492.63]
["Composição Auxiliar"," 88247 ","SINAPI","AUXILIAR DE ELETRICISTA COM ENCARGOS COMPLEMENTARES","SEDI - SERVIÇOS DIVERSOS",null,"H",1.5233000000000001,21.09,32.119999999999997]
["Composição Auxiliar"," 88264 ","SINAPI","ELETRICISTA COM ENCARGOS COMPLEMENTARES","SEDI - SERVIÇOS DIVERSOS",null,"H",1.5233000000000001,26.5,40.36]
["Insumo"," 00012038 ","SINAPI","QUADRO DE DISTRIBUICAO COM BARRAMENTO TRIFASICO, DE SOBREPOR, EM CHAPA DE ACO GALVANIZADO, PARA 18 DISJUNTORES DIN, 100 A","Material",null,"UN",1,420.15,420.15]
[]
[]
[]
[" 3.2.18 ","Código","Banco","Descrição","Tipo",null,"Und","Quant.","Valor Unit","Total"]
["Composição"," 93672 ","SINAPI","DISJUNTOR TRIPOLAR TIPO DIN, CORRENTE NOMINAL DE 40A - FORNECIMENTO E INSTALAÇÃO. AF_10/2020","INEL - INSTALAÇÃO ELÉTRICA/ELETRIFICAÇÃO E ILUMINAÇÃO EXTERNA",null,"UN",1,78.11,78.11]
["Composição Auxiliar"," 88247 ","SINAPI","AUXILIAR DE ELETRICISTA COM ENCARGOS COMPLEMENTARES","SEDI - SERVIÇOS DIVERSOS",null,"H",0.40570000000000001,21.09,8.5500000000000007]
["Composição Auxiliar"," 88264 ","SINAPI","ELETRICISTA COM ENCARGOS COMPLEMENTARES","SEDI - SERVIÇOS DIVERSOS",null,"H",0.40570000000000001,26.5,10.75]
["Insumo"," 00001574 ","SINAPI","TERMINAL A COMPRESSAO EM COBRE ESTANHADO PARA CABO 10 MM2, 1 FURO E 1 COMPRESSAO, PARA PARAFUSO DE FIXACAO M6","Material",null,"UN",3,1.53,4.59]
["Insumo"," 00034709 ","SINAPI","DISJUNTOR TERMOMAGNETICO PARA TRILHO DIN (IEC), TRIPOLAR, 10 - 50 A","Material",null,"UN",1,54.22,54.22]
[]
[]
[]
[" 3.2.19 ","Código","Banco","Descrição","Tipo",null,"Und","Quant.","Valor Unit","Total"]
["Composição"," 93654 ","SINAPI","DISJUNTOR MONOPOLAR TIPO DIN, CORRENTE NOMINAL DE 16A - FORNECIMENTO E INSTALAÇÃO. AF_10/2020","INEL - INSTALAÇÃO ELÉTRICA/ELETRIFICAÇÃO E ILUMINAÇÃO EXTERNA",null,"UN",1,10.89,10.89]
["Composição Auxiliar"," 88247 ","SINAPI","AUXILIAR DE ELETRICISTA COM ENCARGOS COMPLEMENTARES","SEDI - SERVIÇOS DIVERSOS",null,"H",4.7600000000000003E-2,21.09,1]
["Composição Auxiliar"," 88264 ","SINAPI","ELETRICISTA COM ENCARGOS COMPLEMENTARES","SEDI - SERVIÇOS DIVERSOS",null,"H",4.7600000000000003E-2,26.5,1.26]
["Insumo"," 00001570 ","SINAPI","TERMINAL A COMPRESSAO EM COBRE ESTANHADO PARA CABO 2,5 MM2, 1 FURO E 1 COMPRESSAO, PARA PARAFUSO DE FIXACAO M5","Material",null,"UN",1,0.91,0.91]
["Insumo"," 00034653 ","SINAPI","DISJUNTOR TERMOMAGNETICO PARA TRILHO DIN (IEC), MONOPOLAR, 6 - 32 A","Material",null,"UN",1,7.72,7.72]
[]
[]
[]
[" 3.2.20 ","Código","Banco","Descrição","Tipo",null,"Und","Quant.","Valor Unit","Total"]
["Composição"," 93660 ","SINAPI","DISJUNTOR BIPOLAR TIPO DIN, CORRENTE NOMINAL DE 10A - FORNECIMENTO E INSTALAÇÃO. AF_10/2020","INEL - INSTALAÇÃO ELÉTRICA/ELETRIFICAÇÃO E ILUMINAÇÃO EXTERNA",null,"UN",1,49.42,49.42]
["Composição Auxiliar"," 88247 ","SINAPI","AUXILIAR DE ELETRICISTA COM ENCARGOS COMPLEMENTARES","SEDI - SERVIÇOS DIVERSOS",null,"H",7.0300000000000001E-2,21.09,1.48]
["Composição Auxiliar"," 88264 ","SINAPI","ELETRICISTA COM ENCARGOS COMPLEMENTARES","SEDI - SERVIÇOS DIVERSOS",null,"H",7.0300000000000001E-2,26.5,1.86]
["Insumo"," 00001570 ","SINAPI","TERMINAL A COMPRESSAO EM COBRE ESTANHADO PARA CABO 2,5 MM2, 1 FURO E 1 COMPRESSAO, PARA PARAFUSO DE FIXACAO M5","Material",null,"UN",2,0.91,1.82]
["Insumo"," 00034616 ","SINAPI","DISJUNTOR TERMOMAGNETICO PARA TRILHO DIN (IEC), BIPOLAR, 6 - 32 A","Material",null,"UN",1,44.26,44.26]
[]
[]
[]
[" 3.2.21 ","Código","Banco","Descrição","Tipo",null,"Und","Quant.","Valor Unit","Total"]
["Composição"," 93653 ","SINAPI","DISJUNTOR MONOPOLAR TIPO DIN, CORRENTE NOMINAL DE 10A - FORNECIMENTO E INSTALAÇÃO. AF_10/2020","INEL - INSTALAÇÃO ELÉTRICA/ELETRIFICAÇÃO E ILUMINAÇÃO EXTERNA",null,"UN",1,10.3,10.3]
["Composição Auxiliar"," 88247 ","SINAPI","AUXILIAR DE ELETRICISTA COM ENCARGOS COMPLEMENTARES","SEDI - SERVIÇOS DIVERSOS",null,"H",3.5200000000000002E-2,21.09,0.74]
["Composição Auxiliar"," 88264 ","SINAPI","ELETRICISTA COM ENCARGOS COMPLEMENTARES","SEDI - SERVIÇOS DIVERSOS",null,"H",3.5200000000000002E-2,26.5,0.93]
["Insumo"," 00001570 ","SINAPI","TERMINAL A COMPRESSAO EM COBRE ESTANHADO PARA CABO 2,5 MM2, 1 FURO E 1 COMPRESSAO, PARA PARAFUSO DE FIXACAO M5","Material",null,"UN",1,0.91,0.91]
["Insumo"," 00034653 ","SINAPI","DISJUNTOR TERMOMAGNETICO PARA TRILHO DIN (IEC), MONOPOLAR, 6 - 32 A","Material",null,"UN",1,7.72,7.72]
[]
[]
[]
[" 3.2.22 ","Código","Banco","Descrição","Tipo",null,"Und","Quant.","Valor Unit","Total"]
["Composição"," 92001 ","SINAPI","TOMADA BAIXA DE EMBUTIR (1 MÓDULO), 2P+T 20 A, INCLUINDO SUPORTE E PLACA - FORNECIMENTO E INSTALAÇÃO. AF_03/2023","INEL - INSTALAÇÃO ELÉTRICA/ELETRIFICAÇÃO E ILUMINAÇÃO EXTERNA",null,"UN",1,29.35,29.35]
["Composição Auxiliar"," 91946 ","SINAPI","SUPORTE PARAFUSADO COM PLACA DE ENCAIXE 4\" X 2\" MÉDIO (1,30 M DO PISO) PARA PONTO ELÉTRICO - FORNECIMENTO E INSTALAÇÃO. AF_03/2023","INEL - INSTALAÇÃO ELÉTRICA/ELETRIFICAÇÃO E ILUMINAÇÃO EXTERNA",null,"UN",1,9.68,9.68]
["Composição Auxiliar"," 91999 ","SINAPI","TOMADA BAIXA DE EMBUTIR (1 MÓDULO), 2P+T 20 A, SEM SUPORTE E SEM PLACA - FORNECIMENTO E INSTALAÇÃO. AF_03/2023","INEL - INSTALAÇÃO ELÉTRICA/ELETRIFICAÇÃO E ILUMINAÇÃO EXTERNA",null,"UN",1,19.670000000000002,19.670000000000002]
[]
[]
[]
[" 4.1 ","Código","Banco","Descrição","Tipo",null,"Und","Quant.","Valor Unit","Total"]
["Composição"," CODEVASF  240 ","Próprio","LOGOMARCA EM ALTO RELEVO","ASTU - ASSENTAMENTO DE TUBOS E PECAS",null,"und",1,375.11,375.11]
["Composição Auxiliar"," 98746 ","SINAPI","SOLDA DE TOPO EM CHAPA/PERFIL/TUBO DE AÇO CHANFRADO, ESPESSURA=1/4''. AF_06/2018","FUES - FUNDAÇÕES E ESTRUTURAS",null,"M",2,74.02,148.04]
["Composição Auxiliar"," 88487 ","SINAPI","APLICAÇÃO MANUAL DE PINTURA COM TINTA LÁTEX PVA EM PAREDES, DUAS DEMÃOS. AF_06/2014","PINT - PINTURAS",null,"m²",0.88,15.41,13.56]
["Composição Auxiliar"," 94970 ","SINAPI","CONCRETO FCK = 20MPA, TRAÇO 1:2,7:3 (EM MASSA SECA DE CIMENTO/ AREIA MÉDIA/ BRITA 1) - PREPARO MECÂNICO COM BETONEIRA 600 L. AF_05/2021","FUES - FUNDAÇÕES E ESTRUTURAS",null,"m³",4.8000000000000001E-2,478.11,22.94]
["Composição Auxiliar"," 88309 ","SINAPI","PEDREIRO COM ENCARGOS COMPLEMENTARES","SEDI - SERVIÇOS DIVERSOS",null,"H",1.216,26.15,31.79]
["Composição Auxiliar"," 88316 ","SINAPI","SERVENTE COM ENCARGOS COMPLEMENTARES","SEDI - SERVIÇOS DIVERSOS",null,"H",0.93600000000000005,20.420000000000002,19.11]
["Insumo"," 00001323 ","SINAPI","CHAPA DE ACO FINA A QUENTE BITOLA MSG 18, E = 1,20 MM (9,60 KG/M2)","Material",null,"KG",14.97,9.26,138.62]
["Insumo"," 00039397 ","SINAPI","DESMOLDANTE PARA FORMAS METALICAS A BASE DE OLEO VEGETAL","Material",null,"L",5.0999999999999997E-2,20.6,1.05]
[]
[]
[]
[" 4.2 ","Código","Banco","Descrição","Tipo",null,"Und","Quant.","Valor Unit","Total"]
["Composição"," 5 ","ORSE","Placa de inauguração de obra em alumínio 0,50 x 0,70 m","Serviços Iniciais de Obras Civis",null,"un",1,2087.8000000000002,2087.8000000000002]
["Composição Auxiliar"," 1903 ","ORSE","Argamassa cimento e areia traço t-1 (1:3) - 1 saco cimento 50kg / 3 padiolas areia dim. 0.35 x 0.45 x 0.23 m - Confecção mecânica e transporte","Argamassas",null,"m³",4.0000000000000001E-3,541.27,2.16]
["Composição Auxiliar"," 10549 ","ORSE","Encargos Complementares - Servente","Provisórios",null,"h",0.6,3.79,2.27]
["Composição Auxiliar"," 10550 ","ORSE","Encargos Complementares - Pedreiro","Provisórios",null,"h",0.6,3.66,2.19]
["Insumo"," 1772 ","ORSE","Placa de inauguração em alumínio fundido medindo 0,50 x 0,70 m Placa de inauguração de obra em alumínio medindo 0,50 x 0,70m","Material",null,"un",1,2061.5300000000002,2061.5300000000002]
["Insumo"," 00004750/SINAPI ","ORSE","Pedreiro (horista)","Mão de Obra",null,"h",0.6,19.11,11.46]
["Insumo"," 00006111/SINAPI ","ORSE","Servente de obras (horista)","Mão de Obra",null,"h",0.6,13.65,8.19]
[]
[]
[]
["Composições Auxiliares"]
[null,"Código","Banco","Descrição","Tipo",null,"Und","Quant.","Valor Unit","Total"]
["Composição"," 88238 ","SINAPI","AJUDANTE DE ARMADOR COM ENCARGOS COMPLEMENTARES","SEDI - SERVIÇOS DIVERSOS",null,"H",1,20.69,20.69]
["Composição Auxiliar"," 95308 ","SINAPI","CURSO DE CAPACITAÇÃO PARA AJUDANTE DE ARMADOR (ENCARGOS COMPLEMENTARES) - HORISTA","SEDI - SERVIÇOS DIVERSOS",null,"H",1,0.18,0.18]
["Insumo"," 00006114 ","SINAPI","AJUDANTE DE ARMADOR","Mão de Obra",null,"H",1,13.94,13.94]
["Insumo"," 00037370 ","SINAPI","ALIMENTACAO - HORISTA (COLETADO CAIXA)","Outros",null,"H",1,2.39,2.39]
["Insumo"," 00037371 ","SINAPI","TRANSPORTE - HORISTA (COLETADO CAIXA)","Serviços",null,"H",1,0.74,0.74]
["Insumo"," 00037372 ","SINAPI","EXAMES - HORISTA (COLETADO CAIXA)","Outros",null,"H",1,1.34,1.34]
["Insumo"," 00037373 ","SINAPI","SEGURO - HORISTA (COLETADO CAIXA)","Taxas",null,"H",1,0.04,0.04]
["Insumo"," 00043465 ","SINAPI","FERRAMENTAS - FAMILIA PEDREIRO - HORISTA (ENCARGOS COMPLEMENTARES - COLETADO CAIXA)","Equipamento",null,"H",1,0.82,0.82]
["Insumo"," 00043489 ","SINAPI","EPI - FAMILIA PEDREIRO - HORISTA (ENCARGOS COMPLEMENTARES - COLETADO CAIXA)","Equipamento",null,"H",1,1.24,1.24]
[]
[]
[]
[null,"Código","Banco","Descrição","Tipo",null,"Und","Quant.","Valor Unit","Total"]
["Composição"," 88239 ","SINAPI","AJUDANTE DE CARPINTEIRO COM ENCARGOS COMPLEMENTARES","SEDI - SERVIÇOS DIVERSOS",null,"H",1,20.6,20.6]
["Composição Auxiliar"," 95309 ","SINAPI","CURSO DE CAPACITAÇÃO PARA AJUDANTE DE CARPINTEIRO (ENCARGOS COMPLEMENTARES) - HORISTA","SEDI - SERVIÇOS DIVERSOS",null,"H",1,0.23,0.23]
["Insumo"," 00006117 ","SINAPI","CARPINTEIRO AUXILIAR","Mão de Obra",null,"H",1,13.94,13.94]
["Insumo"," 00037370 ","SINAPI","ALIMENTACAO - HORISTA (COLETADO CAIXA)","Outros",null,"H",1,2.39,2.39]
["Insumo"," 00037371 ","SINAPI","TRANSPORTE - HORISTA (COLETADO CAIXA)","Serviços",null,"H",1,0.74,0.74]
["Insumo"," 00037372 ","SINAPI","EXAMES - HORISTA (COLETADO CAIXA)","Outros",null,"H",1,1.34,1.34]
["Insumo"," 00037373 ","SINAPI","SEGURO - HORISTA (COLETADO CAIXA)","Taxas",null,"H",1,0.04,0.04]
["Insumo"," 00043459 ","SINAPI","FERRAMENTAS - FAMILIA CARPINTEIRO DE FORMAS - HORISTA (ENCARGOS COMPLEMENTARES - COLETADO CAIXA)","Equipamento",null,"H",1,0.49,0.49]
["Insumo"," 00043483 ","SINAPI","EPI - FAMILIA CARPINTEIRO DE FORMAS - HORISTA (ENCARGOS COMPLEMENTARES - COLETADO CAIXA)","Equipamento",null,"H",1,1.43,1.43]
[]
[]
[]
[null,"Código","Banco","Descrição","Tipo",null,"Und","Quant.","Valor Unit","Total"]
["Composição"," 88487 ","SINAPI","APLICAÇÃO MANUAL DE PINTURA COM TINTA LÁTEX PVA EM PAREDES, DUAS DEMÃOS. AF_06/2014","PINT - PINTURAS",null,"m²",1,15.41,15.41]
["Composição Auxiliar"," 88310 ","SINAPI","PINTOR COM ENCARGOS COMPLEMENTARES","SEDI - SERVIÇOS DIVERSOS",null,"H",0.13,27.65,3.59]
["Composição Auxiliar"," 88316 ","SINAPI","SERVENTE COM ENCARGOS COMPLEMENTARES","SEDI - SERVIÇOS DIVERSOS",null,"H",4.8000000000000001E-2,20.420000000000002,0.98]
["Insumo"," 00007356 ","SINAPI","TINTA ACRILICA PREMIUM, COR BRANCO FOSCO","Material",null,"L",0.33,32.869999999999997,10.84]
[]
[]
[]
[null,"Código","Banco","Descrição","Tipo",null,"Und","Quant.","Valor Unit","Total"]
["Composição"," 87367 ","SINAPI","ARGAMASSA TRAÇO 1:1:6 (EM VOLUME DE CIMENTO, CAL E AREIA MÉDIA ÚMIDA) PARA EMBOÇO/MASSA ÚNICA/ASSENTAMENTO DE ALVENARIA DE VEDAÇÃO, PREPARO MANUAL. AF_08/2019","SEDI - SERVIÇOS DIVERSOS",null,"m³",1,699.11,699.11]
["Composição Auxiliar"," 88316 ","SINAPI","SERVENTE COM ENCARGOS COMPLEMENTARES","SEDI - SERVIÇOS DIVERSOS",null,"H",11.23,20.420000000000002,229.31]
["Insumo"," 00000370 ","SINAPI","AREIA MEDIA - POSTO JAZIDA/FORNECEDOR (RETIRADO NA JAZIDA, SEM TRANSPORTE)","Material",null,"m³",1.1599999999999999,110,127.6]
["Insumo"," 00001106 ","SINAPI","CAL HIDRATADA CH-I PARA ARGAMASSAS","Material",null,"KG",116.4,1.23,143.16999999999999]
["Insumo"," 00001379 ","SINAPI","CIMENTO PORTLAND COMPOSTO CP II-32","Material",null,"KG",261.89,0.76,199.03]
[]
[]
[]
[null,"Código","Banco","Descrição","Tipo",null,"Und","Quant.","Valor Unit","Total"]
["Composição"," 87292 ","SINAPI","ARGAMASSA TRAÇO 1:2:8 (EM VOLUME DE CIMENTO, CAL E AREIA MÉDIA ÚMIDA) PARA EMBOÇO/MASSA ÚNICA/ASSENTAMENTO DE ALVENARIA DE VEDAÇÃO, PREPARO MECÂNICO COM BETONEIRA 400 L. AF_08/2019","SEDI - SERVIÇOS DIVERSOS",null,"m³",1,601.32000000000005,601.32000000000005]
["Composição Auxiliar"," 88377 ","SINAPI","OPERADOR DE BETONEIRA ESTACIONÁRIA/MISTURADOR COM ENCARGOS COMPLEMENTARES","SEDI - SERVIÇOS DIVERSOS",null,"H",4.5,23.84,107.28]
["Composição Auxiliar"," 88830 ","SINAPI","BETONEIRA CAPACIDADE NOMINAL DE 400 L, CAPACIDADE DE MISTURA 280 L, MOTOR ELÉTRICO TRIFÁSICO POTÊNCIA DE 2 CV, SEM CARREGADOR - CHP DIURNO. AF_10/2014","CHOR - CUSTOS HORÁRIOS DE MÁQUINAS E EQUIPAMENTOS",null,"CHP",1.05,1.88,1.97]
["Composição Auxiliar"," 88831 ","SINAPI","BETONEIRA CAPACIDADE NOMINAL DE 400 L, CAPACIDADE DE MISTURA 280 L, MOTOR ELÉTRICO TRIFÁSICO POTÊNCIA DE 2 CV, SEM CARREGADOR - CHI DIURNO. AF_10/2014","CHOR - CUSTOS HORÁRIOS DE MÁQUINAS E EQUIPAMENTOS",null,"CHI",3.45,0.43,1.48]
["Insumo"," 00000370 ","SINAPI","AREIA MEDIA - POSTO JAZIDA/FORNECEDOR (RETIRADO NA JAZIDA, SEM TRANSPORTE)","Material",null,"m³",1.1599999999999999,110,127.6]
["Insumo"," 00001106 ","SINAPI","CAL HIDRATADA CH-I PARA ARGAMASSAS","Material",null,"KG",174.1,1.23,214.14]
["Insumo"," 00001379 ","SINAPI","CIMENTO PORTLAND COMPOSTO CP II-32","Material",null,"KG",195.86,0.76,148.85]
[]
[]
[]
[null,"Código","Banco","Descrição","Tipo",null,"Und","Quant.","Valor Unit","Total"]
["Composição"," 87313 ","SINAPI","ARGAMASSA TRAÇO 1:3 (EM VOLUME DE CIMENTO E AREIA GROSSA ÚMIDA) PARA CHAPISCO CONVENCIONAL, PREPARO MECÂNICO COM BETONEIRA 400 L. AF_08/2019","SEDI - SERVIÇOS DIVERSOS",null,"m³",1,536.27,536.27]
["Composição Auxiliar"," 88377 ","SINAPI","OPERADOR DE BETONEIRA ESTACIONÁRIA/MISTURADOR COM ENCARGOS COMPLEMENTARES","SEDI - SERVIÇOS DIVERSOS",null,"H",4.32,23.84,102.98]
["Composição Auxiliar"," 88830 ","SINAPI","BETONEIRA CAPACIDADE NOMINAL DE 400 L, CAPACIDADE DE MISTURA 280 L, MOTOR ELÉTRICO TRIFÁSICO POTÊNCIA DE 2 CV, SEM CARREGADOR - CHP DIURNO. AF_10/2014","CHOR - CUSTOS HORÁRIOS DE MÁQUINAS E EQUIPAMENTOS",null,"CHP",1.01,1.88,1.89]
["Composição Auxiliar"," 88831 ","SINAPI","BETONEIRA CAPACIDADE NOMINAL DE 400 L, CAPACIDADE DE MISTURA 280 L, MOTOR ELÉTRICO TRIFÁSICO POTÊNCIA DE 2 CV, SEM CARREGADOR - CHI DIURNO. AF_10/2014","CHOR - CUSTOS HORÁRIOS DE MÁQUINAS E EQUIPAMENTOS",null,"CHI",3.31,0.43,1.42]
["Insumo"," 00000367 ","SINAPI","AREIA GROSSA - POSTO JAZIDA/FORNECEDOR (RETIRADO NA JAZIDA, SEM TRANSPORTE)","Material",null,"m³",0.95,111.43,105.85]
["Insumo"," 00001379 ","SINAPI","CIMENTO PORTLAND COMPOSTO CP II-32","Material",null,"KG",426.49,0.76,324.13]
[]
[]
[]
[null,"Código","Banco","Descrição","Tipo",null,"Und","Quant.","Valor Unit","Total"]
["Composição"," 88245 ","SINAPI","ARMADOR COM ENCARGOS COMPLEMENTARES","SEDI - SERVIÇOS DIVERSOS",null,"H",1,25.94,25.94]
["Composição Auxiliar"," 95314 ","SINAPI","CURSO DE CAPACITAÇÃO PARA ARMADOR (ENCARGOS COMPLEMENTARES) - HORISTA","SEDI - SERVIÇOS DIVERSOS",null,"H",1,0.25,0.25]
["Insumo"," 00000378 ","SINAPI","ARMADOR","Mão de Obra",null,"H",1,19.12,19.12]
["Insumo"," 00037370 ","SINAPI","ALIMENTACAO - HORISTA (COLETADO CAIXA)","Outros",null,"H",1,2.39,2.39]
["Insumo"," 00037371 ","SINAPI","TRANSPORTE - HORISTA (COLETADO CAIXA)","Serviços",null,"H",1,0.74,0.74]
["Insumo"," 00037372 ","SINAPI","EXAMES - HORISTA (COLETADO CAIXA)","Outros",null,"H",1,1.34,1.34]
["Insumo"," 00037373 ","SINAPI","SEGURO - HORISTA (COLETADO CAIXA)","Taxas",null,"H",1,0.04,0.04]
["Insumo"," 00043465 ","SINAPI","FERRAMENTAS - FAMILIA PEDREIRO - HORISTA (ENCARGOS COMPLEMENTARES - COLETADO CAIXA)","Equipamento",null,"H",1,0.82,0.82]
["Insumo"," 00043489 ","SINAPI","EPI - FAMILIA PEDREIRO - HORISTA (ENCARGOS COMPLEMENTARES - COLETADO CAIXA)","Equipamento",null,"H",1,1.24,1.24]
[]
[]
[]
[null,"Código","Banco","Descrição","Tipo",null,"Und","Quant.","Valor Unit","Total"]
["Composição"," 100578 ","SINAPI","ASSENTAMENTO DE POSTE DE CONCRETO COM COMPRIMENTO NOMINAL DE 9 M, CARGA NOMINAL MENOR OU IGUAL A 1000 DAN, ENGASTAMENTO SIMPLES COM 1,5 M DE SOLO (NÃO INCLUI FORNECIMENTO). AF_11/2019","INEL - INSTALAÇÃO ELÉTRICA/ELETRIFICAÇÃO E ILUMINAÇÃO EXTERNA",null,"UN",1,487.47,487.47]
["Composição Auxiliar"," 5928 ","SINAPI","GUINDAUTO HIDRÁULICO, CAPACIDADE MÁXIMA DE CARGA 6200 KG, MOMENTO MÁXIMO DE CARGA 11,7 TM, ALCANCE MÁXIMO HORIZONTAL 9,70 M, INCLUSIVE CAMINHÃO TOCO PBT 16.000 KG, POTÊNCIA DE 189 CV - CHP DIURNO. AF_06/2014","CHOR - CUSTOS HORÁRIOS DE MÁQUINAS E EQUIPAMENTOS",null,"CHP",7.6999999999999999E-2,264.56,20.37]
["Composição Auxiliar"," 88247 ","SINAPI","AUXILIAR DE ELETRICISTA COM ENCARGOS COMPLEMENTARES","SEDI - SERVIÇOS DIVERSOS",null,"H",1.2330000000000001,21.09,26]
["Composição Auxiliar"," 88264 ","SINAPI","ELETRICISTA COM ENCARGOS COMPLEMENTARES","SEDI - SERVIÇOS DIVERSOS",null,"H",4.008,26.5,106.21]
["Insumo"," 00000863 ","SINAPI","CABO DE COBRE NU 35 MM2 MEIO-DURO","Material",null,"M",9,37.21,334.89]
[]
[]
[]
[null,"Código","Banco","Descrição","Tipo",null,"Und","Quant.","Valor Unit","Total"]
["Composição"," 88247 ","SINAPI","AUXILIAR DE ELETRICISTA COM ENCARGOS COMPLEMENTARES","SEDI - SERVIÇOS DIVERSOS",null,"H",1,21.09,21.09]
["Composição Auxiliar"," 95316 ","SINAPI","CURSO DE CAPACITAÇÃO PARA AUXILIAR DE ELETRICISTA (ENCARGOS COMPLEMENTARES) - HORISTA","SEDI - SERVIÇOS DIVERSOS",null,"H",1,0.59,0.59]
["Insumo"," 00000247 ","SINAPI","AJUDANTE DE ELETRICISTA","Mão de Obra",null,"H",1,13.94,13.94]
["Insumo"," 00037370 ","SINAPI","ALIMENTACAO - HORISTA (COLETADO CAIXA)","Outros",null,"H",1,2.39,2.39]
["Insumo"," 00037371 ","SINAPI","TRANSPORTE - HORISTA (COLETADO CAIXA)","Serviços",null,"H",1,0.74,0.74]
["Insumo"," 00037372 ","SINAPI","EXAMES - HORISTA (COLETADO CAIXA)","Outros",null,"H",1,1.34,1.34]
["Insumo"," 00037373 ","SINAPI","SEGURO - HORISTA (COLETADO CAIXA)","Taxas",null,"H",1,0.04,0.04]
["Insumo"," 00043460 ","SINAPI","FERRAMENTAS - FAMILIA ELETRICISTA - HORISTA (ENCARGOS COMPLEMENTARES - COLETADO CAIXA)","Equipamento",null,"H",1,0.85,0.85]
["Insumo"," 00043484 ","SINAPI","EPI - FAMILIA ELETRICISTA - HORISTA (ENCARGOS COMPLEMENTARES - COLETADO CAIXA)","Equipamento",null,"H",1,1.2,1.2]
[]
[]
[]
[null,"Código","Banco","Descrição","Tipo",null,"Und","Quant.","Valor Unit","Total"]
["Composição"," 88248 ","SINAPI","AUXILIAR DE ENCANADOR OU BOMBEIRO HIDRÁULICO COM ENCARGOS COMPLEMENTARES","SEDI - SERVIÇOS DIVERSOS",null,"H",1,20.100000000000001,20.100000000000001]
["Composição Auxiliar"," 95317 ","SINAPI","CURSO DE CAPACITAÇÃO PARA AUXILIAR DE ENCANADOR OU BOMBEIRO HIDRÁULICO (ENCARGOS COMPLEMENTARES) - HORISTA","SEDI - SERVIÇOS DIVERSOS",null,"H",1,0.28000000000000003,0.28000000000000003]
["Insumo"," 00000246 ","SINAPI","AUXILIAR DE ENCANADOR OU BOMBEIRO HIDRAULICO","Mão de Obra",null,"H",1,13.94,13.94]
["Insumo"," 00037370 ","SINAPI","ALIMENTACAO - HORISTA (COLETADO CAIXA)","Outros",null,"H",1,2.39,2.39]
["Insumo"," 00037371 ","SINAPI","TRANSPORTE - HORISTA (COLETADO CAIXA)","Serviços",null,"H",1,0.74,0.74]
["Insumo"," 00037372 ","SINAPI","EXAMES - HORISTA (COLETADO CAIXA)","Outros",null,"H",1,1.34,1.34]
["Insumo"," 00037373 ","SINAPI","SEGURO - HORISTA (COLETADO CAIXA)","Taxas",null,"H",1,0.04,0.04]
["Insumo"," 00043461 ","SINAPI","FERRAMENTAS - FAMILIA ENCANADOR - HORISTA (ENCARGOS COMPLEMENTARES - COLETADO CAIXA)","Equipamento",null,"H",1,0.31,0.31]
["Insumo"," 00043485 ","SINAPI","EPI - FAMILIA ENCANADOR - HORISTA (ENCARGOS COMPLEMENTARES - COLETADO CAIXA)","Equipamento",null,"H",1,1.06,1.06]
[]
[]
[]
[null,"Código","Banco","Descrição","Tipo",null,"Und","Quant.","Valor Unit","Total"]
["Composição"," 1903 ","ORSE","Argamassa cimento e areia traço t-1 (1:3) - 1 saco cimento 50kg / 3 padiolas areia dim. 0.35 x 0.45 x 0.23 m - Confecção mecânica e transporte","Argamassas",null,"m³",1,541.27,541.27]
["Composição Auxiliar"," 10549 ","ORSE","Encargos Complementares - Servente","Provisórios",null,"h",4,3.79,15.16]
["Insumo"," 00000370/SINAPI ","ORSE","Areia media - posto jazida/fornecedor (retirado na jazida, sem transporte)","Material",null,"m³",1.08,110,118.8]
["Insumo"," 00001379/SINAPI ","ORSE","Cimento portland composto cp ii-32","Material",null,"kg",452.2,0.78,352.71]
["Insumo"," 00006111/SINAPI ","ORSE","Servente de obras (horista)","Mão de Obra",null,"h",4,13.65,54.6]
[]
[]
[]
[null,"Código","Banco","Descrição","Tipo",null,"Und","Quant.","Valor Unit","Total"]
["Composição"," 88831 ","SINAPI","BETONEIRA CAPACIDADE NOMINAL DE 400 L, CAPACIDADE DE MISTURA 280 L, MOTOR ELÉTRICO TRIFÁSICO POTÊNCIA DE 2 CV, SEM CARREGADOR - CHI DIURNO. AF_10/2014","CHOR - CUSTOS HORÁRIOS DE MÁQUINAS E EQUIPAMENTOS",null,"CHI",1,0.43,0.43]
["Composição Auxiliar"," 88826 ","SINAPI","BETONEIRA CAPACIDADE NOMINAL DE 400 L, CAPACIDADE DE MISTURA 280 L, MOTOR ELÉTRICO TRIFÁSICO POTÊNCIA DE 2 CV, SEM CARREGADOR - DEPRECIAÇÃO. AF_10/2014","CHOR - CUSTOS HORÁRIOS DE MÁQUINAS E EQUIPAMENTOS",null,"H",1,0.35,0.35]
["Composição Auxiliar"," 88827 ","SINAPI","BETONEIRA CAPACIDADE NOMINAL DE 400 L, CAPACIDADE DE MISTURA 280 L, MOTOR ELÉTRICO TRIFÁSICO POTÊNCIA DE 2 CV, SEM CARREGADOR - JUROS. AF_10/2014","CHOR - CUSTOS HORÁRIOS DE MÁQUINAS E EQUIPAMENTOS",null,"H",1,0.08,0.08]
[]
[]
[]
[null,"Código","Banco","Descrição","Tipo",null,"Und","Quant.","Valor Unit","Total"]
["Composição"," 88830 ","SINAPI","BETONEIRA CAPACIDADE NOMINAL DE 400 L, CAPACIDADE DE MISTURA 280 L, MOTOR ELÉTRICO TRIFÁSICO POTÊNCIA DE 2 CV, SEM CARREGADOR - CHP DIURNO. AF_10/2014","CHOR - CUSTOS HORÁRIOS DE MÁQUINAS E EQUIPAMENTOS",null,"CHP",1,1.88,1.88]
["Composição Auxiliar"," 88826 ","SINAPI","BETONEIRA CAPACIDADE NOMINAL DE 400 L, CAPACIDADE DE MISTURA 280 L, MOTOR ELÉTRICO TRIFÁSICO POTÊNCIA DE 2 CV, SEM CARREGADOR - DEPRECIAÇÃO. AF_10/2014","CHOR - CUSTOS HORÁRIOS DE MÁQUINAS E EQUIPAMENTOS",null,"H",1,0.35,0.35]
["Composição Auxiliar"," 88827 ","SINAPI","BETONEIRA CAPACIDADE NOMINAL DE 400 L, CAPACIDADE DE MISTURA 280 L, MOTOR ELÉTRICO TRIFÁSICO POTÊNCIA DE 2 CV, SEM CARREGADOR - JUROS. AF_10/2014","CHOR - CUSTOS HORÁRIOS DE MÁQUINAS E EQUIPAMENTOS",null,"H",1,0.08,0.08]
["Composição Auxiliar"," 88828 ","SINAPI","BETONEIRA CAPACIDADE NOMINAL DE 400 L, CAPACIDADE DE MISTURA 280 L, MOTOR ELÉTRICO TRIFÁSICO POTÊNCIA DE 2 CV, SEM CARREGADOR - MANUTENÇÃO. AF_10/2014","CHOR - CUSTOS HORÁRIOS DE MÁQUINAS E EQUIPAMENTOS",null,"H",1,0.4,0.4]
["Composição Auxiliar"," 88829 ","SINAPI","BETONEIRA CAPACIDADE NOMINAL DE 400 L, CAPACIDADE DE MISTURA 280 L, MOTOR ELÉTRICO TRIFÁSICO POTÊNCIA DE 2 CV, SEM CARREGADOR - MATERIAIS NA OPERAÇÃO. AF_10/2014","CHOR - CUSTOS HORÁRIOS DE MÁQUINAS E EQUIPAMENTOS",null,"H",1,1.05,1.05]
[]
[]
[]
[null,"Código","Banco","Descrição","Tipo",null,"Und","Quant.","Valor Unit","Total"]
["Composição"," 88826 ","SINAPI","BETONEIRA CAPACIDADE NOMINAL DE 400 L, CAPACIDADE DE MISTURA 280 L, MOTOR ELÉTRICO TRIFÁSICO POTÊNCIA DE 2 CV, SEM CARREGADOR - DEPRECIAÇÃO. AF_10/2014","CHOR - CUSTOS HORÁRIOS DE MÁQUINAS E EQUIPAMENTOS",null,"H",1,0.35,0.35]
["Insumo"," 00010535 ","SINAPI","BETONEIRA CAPACIDADE NOMINAL 400 L, CAPACIDADE DE MISTURA  280 L, MOTOR ELETRICO TRIFASICO 220/380 V POTENCIA 2 CV, SEM CARREGADOR","Equipamento",null,"UN",6.0000000000000002E-5,5850,0.35]
[]
[]
[]
[null,"Código","Banco","Descrição","Tipo",null,"Und","Quant.","Valor Unit","Total"]
["Composição"," 88827 ","SINAPI","BETONEIRA CAPACIDADE NOMINAL DE 400 L, CAPACIDADE DE MISTURA 280 L, MOTOR ELÉTRICO TRIFÁSICO POTÊNCIA DE 2 CV, SEM CARREGADOR - JUROS. AF_10/2014","CHOR - CUSTOS HORÁRIOS DE MÁQUINAS E EQUIPAMENTOS",null,"H",1,0.08,0.08]
["Insumo"," 00010535 ","SINAPI","BETONEIRA CAPACIDADE NOMINAL 400 L, CAPACIDADE DE MISTURA  280 L, MOTOR ELETRICO TRIFASICO 220/380 V POTENCIA 2 CV, SEM CARREGADOR","Equipamento",null,"UN",1.4800000000000001E-5,5850,0.08]
[]
[]
[]
[null,"Código","Banco","Descrição","Tipo",null,"Und","Quant.","Valor Unit","Total"]
["Composição"," 88828 ","SINAPI","BETONEIRA CAPACIDADE NOMINAL DE 400 L, CAPACIDADE DE MISTURA 280 L, MOTOR ELÉTRICO TRIFÁSICO POTÊNCIA DE 2 CV, SEM CARREGADOR - MANUTENÇÃO. AF_10/2014","CHOR - CUSTOS HORÁRIOS DE MÁQUINAS E EQUIPAMENTOS",null,"H",1,0.4,0.4]
["Insumo"," 00010535 ","SINAPI","BETONEIRA CAPACIDADE NOMINAL 400 L, CAPACIDADE DE MISTURA  280 L, MOTOR ELETRICO TRIFASICO 220/380 V POTENCIA 2 CV, SEM CARREGADOR","Equipamento",null,"UN",6.9999999999999994E-5,5850,0.4]
[]
[]
[]
[null,"Código","Banco","Descrição","Tipo",null,"Und","Quant.","Valor Unit","Total"]
["Composição"," 88829 ","SINAPI","BETONEIRA CAPACIDADE NOMINAL DE 400 L, CAPACIDADE DE MISTURA 280 L, MOTOR ELÉTRICO TRIFÁSICO POTÊNCIA DE 2 CV, SEM CARREGADOR - MATERIAIS NA OPERAÇÃO. AF_10/2014","CHOR - CUSTOS HORÁRIOS DE MÁQUINAS E EQUIPAMENTOS",null,"H",1,1.05,1.05]
["Insumo"," 00002705 ","SINAPI","ENERGIA ELETRICA ATE 2000 KWH INDUSTRIAL, SEM DEMANDA","Material",null,"KW/H",1.2512000000000001,0.84,1.05]
[]
[]
[]
[null,"Código","Banco","Descrição","Tipo",null,"Und","Quant.","Valor Unit","Total"]
["Composição"," 89226 ","SINAPI","BETONEIRA CAPACIDADE NOMINAL DE 600 L, CAPACIDADE DE MISTURA 360 L, MOTOR ELÉTRICO TRIFÁSICO POTÊNCIA DE 4 CV, SEM CARREGADOR - CHI DIURNO. AF_11/2014","CHOR - CUSTOS HORÁRIOS DE MÁQUINAS E EQUIPAMENTOS",null,"CHI",1,1.77,1.77]
["Composição Auxiliar"," 89221 ","SINAPI","BETONEIRA CAPACIDADE NOMINAL DE 600 L, CAPACIDADE DE MISTURA 360 L, MOTOR ELÉTRICO TRIFÁSICO POTÊNCIA DE 4 CV, SEM CARREGADOR - DEPRECIAÇÃO. AF_11/2014","CHOR - CUSTOS HORÁRIOS DE MÁQUINAS E EQUIPAMENTOS",null,"H",1,1.42,1.42]
["Composição Auxiliar"," 89222 ","SINAPI","BETONEIRA CAPACIDADE NOMINAL DE 600 L, CAPACIDADE DE MISTURA 360 L, MOTOR ELÉTRICO TRIFÁSICO POTÊNCIA DE 4 CV, SEM CARREGADOR - JUROS. AF_11/2014","CHOR - CUSTOS HORÁRIOS DE MÁQUINAS E EQUIPAMENTOS",null,"H",1,0.35,0.35]
[]
[]
[]
[null,"Código","Banco","Descrição","Tipo",null,"Und","Quant.","Valor Unit","Total"]
["Composição"," 89225 ","SINAPI","BETONEIRA CAPACIDADE NOMINAL DE 600 L, CAPACIDADE DE MISTURA 360 L, MOTOR ELÉTRICO TRIFÁSICO POTÊNCIA DE 4 CV, SEM CARREGADOR - CHP DIURNO. AF_11/2014","CHOR - CUSTOS HORÁRIOS DE MÁQUINAS E EQUIPAMENTOS",null,"CHP",1,5.53,5.53]
["Composição Auxiliar"," 89221 ","SINAPI","BETONEIRA CAPACIDADE NOMINAL DE 600 L, CAPACIDADE DE MISTURA 360 L, MOTOR ELÉTRICO TRIFÁSICO POTÊNCIA DE 4 CV, SEM CARREGADOR - DEPRECIAÇÃO. AF_11/2014","CHOR - CUSTOS HORÁRIOS DE MÁQUINAS E EQUIPAMENTOS",null,"H",1,1.42,1.42]
["Composição Auxiliar"," 89222 ","SINAPI","BETONEIRA CAPACIDADE NOMINAL DE 600 L, CAPACIDADE DE MISTURA 360 L, MOTOR ELÉTRICO TRIFÁSICO POTÊNCIA DE 4 CV, SEM CARREGADOR - JUROS. AF_11/2014","CHOR - CUSTOS HORÁRIOS DE MÁQUINAS E EQUIPAMENTOS",null,"H",1,0.35,0.35]
["Composição Auxiliar"," 89223 ","SINAPI","BETONEIRA CAPACIDADE NOMINAL DE 600 L, CAPACIDADE DE MISTURA 360 L, MOTOR ELÉTRICO TRIFÁSICO POTÊNCIA DE 4 CV, SEM CARREGADOR - MANUTENÇÃO. AF_11/2014","CHOR - CUSTOS HORÁRIOS DE MÁQUINAS E EQUIPAMENTOS",null,"H",1,1.66,1.66]
["Composição Auxiliar"," 89224 ","SINAPI","BETONEIRA CAPACIDADE NOMINAL DE 600 L, CAPACIDADE DE MISTURA 360 L, MOTOR ELÉTRICO TRIFÁSICO POTÊNCIA DE 4 CV, SEM CARREGADOR - MATERIAIS NA OPERAÇÃO. AF_11/2014","CHOR - CUSTOS HORÁRIOS DE MÁQUINAS E EQUIPAMENTOS",null,"H",1,2.1,2.1]
[]
[]
[]
[null,"Código","Banco","Descrição","Tipo",null,"Und","Quant.","Valor Unit","Total"]
["Composição"," 89221 ","SINAPI","BETONEIRA CAPACIDADE NOMINAL DE 600 L, CAPACIDADE DE MISTURA 360 L, MOTOR ELÉTRICO TRIFÁSICO POTÊNCIA DE 4 CV, SEM CARREGADOR - DEPRECIAÇÃO. AF_11/2014","CHOR - CUSTOS HORÁRIOS DE MÁQUINAS E EQUIPAMENTOS",null,"H",1,1.42,1.42]
["Insumo"," 00036397 ","SINAPI","BETONEIRA, CAPACIDADE NOMINAL 600 L, CAPACIDADE DE MISTURA  360L, MOTOR ELETRICO TRIFASICO 220/380V, POTENCIA 4CV, EXCLUSO CARREGADOR","Equipamento",null,"UN",6.0000000000000002E-5,23796.61,1.42]
[]
[]
[]
[null,"Código","Banco","Descrição","Tipo",null,"Und","Quant.","Valor Unit","Total"]
["Composição"," 89222 ","SINAPI","BETONEIRA CAPACIDADE NOMINAL DE 600 L, CAPACIDADE DE MISTURA 360 L, MOTOR ELÉTRICO TRIFÁSICO POTÊNCIA DE 4 CV, SEM CARREGADOR - JUROS. AF_11/2014","CHOR - CUSTOS HORÁRIOS DE MÁQUINAS E EQUIPAMENTOS",null,"H",1,0.35,0.35]
["Insumo"," 00036397 ","SINAPI","BETONEIRA, CAPACIDADE NOMINAL 600 L, CAPACIDADE DE MISTURA  360L, MOTOR ELETRICO TRIFASICO 220/380V, POTENCIA 4CV, EXCLUSO CARREGADOR","Equipamento",null,"UN",1.4800000000000001E-5,23796.61,0.35]
[]
[]
[]
[null,"Código","Banco","Descrição","Tipo",null,"Und","Quant.","Valor Unit","Total"]
["Composição"," 89223 ","SINAPI","BETONEIRA CAPACIDADE NOMINAL DE 600 L, CAPACIDADE DE MISTURA 360 L, MOTOR ELÉTRICO TRIFÁSICO POTÊNCIA DE 4 CV, SEM CARREGADOR - MANUTENÇÃO. AF_11/2014","CHOR - CUSTOS HORÁRIOS DE MÁQUINAS E EQUIPAMENTOS",null,"H",1,1.66,1.66]
["Insumo"," 00036397 ","SINAPI","BETONEIRA, CAPACIDADE NOMINAL 600 L, CAPACIDADE DE MISTURA  360L, MOTOR ELETRICO TRIFASICO 220/380V, POTENCIA 4CV, EXCLUSO CARREGADOR","Equipamento",null,"UN",6.9999999999999994E-5,23796.61,1.66]
[]
[]
[]
[null,"Código","Banco","Descrição","Tipo",null,"Und","Quant.","Valor Unit","Total"]
["Composição"," 89224 ","SINAPI","BETONEIRA CAPACIDADE NOMINAL DE 600 L, CAPACIDADE DE MISTURA 360 L, MOTOR ELÉTRICO TRIFÁSICO POTÊNCIA DE 4 CV, SEM CARREGADOR - MATERIAIS NA OPERAÇÃO. AF_11/2014","CHOR - CUSTOS HORÁRIOS DE MÁQUINAS E EQUIPAMENTOS",null,"H",1,2.1,2.1]
["Insumo"," 00002705 ","SINAPI","ENERGIA ELETRICA ATE 2000 KWH INDUSTRIAL, SEM DEMANDA","Material",null,"KW/H",2.5023900000000001,0.84,2.1]
[]
[]
[]
[null,"Código","Banco","Descrição","Tipo",null,"Und","Quant.","Valor Unit","Total"]
["Composição"," 92986 ","SINAPI","CABO DE COBRE FLEXÍVEL ISOLADO, 35 MM², ANTI-CHAMA 0,6/1,0 KV, PARA DISTRIBUIÇÃO - FORNECIMENTO E INSTALAÇÃO. AF_12/2015","INEL - INSTALAÇÃO ELÉTRICA/ELETRIFICAÇÃO E ILUMINAÇÃO EXTERNA",null,"M",1,37.93,37.93]
["Composição Auxiliar"," 88247 ","SINAPI","AUXILIAR DE ELETRICISTA COM ENCARGOS COMPLEMENTARES","SEDI - SERVIÇOS DIVERSOS",null,"H",6.9699999999999998E-2,21.09,1.46]
["Composição Auxiliar"," 88264 ","SINAPI","ELETRICISTA COM ENCARGOS COMPLEMENTARES","SEDI - SERVIÇOS DIVERSOS",null,"H",6.9699999999999998E-2,26.5,1.84]
["Insumo"," 00001019 ","SINAPI","CABO DE COBRE, FLEXIVEL, CLASSE 4 OU 5, ISOLACAO EM PVC/A, ANTICHAMA BWF-B, COBERTURA PVC-ST1, ANTICHAMA BWF-B, 1 CONDUTOR, 0,6/1 KV, SECAO NOMINAL 35 MM2","Material",null,"M",1.0149999999999999,34.090000000000003,34.6]
["Insumo"," 00021127 ","SINAPI","FITA ISOLANTE ADESIVA ANTICHAMA, USO ATE 750 V, EM ROLO DE 19 MM X 5 M","Material",null,"UN",8.9999999999999993E-3,4.4400000000000004,0.03]
[]
[]
[]
[null,"Código","Banco","Descrição","Tipo",null,"Und","Quant.","Valor Unit","Total"]
["Composição"," 67827 ","SINAPI","CAMINHÃO BASCULANTE 6 M3 TOCO, PESO BRUTO TOTAL 16.000 KG, CARGA ÚTIL MÁXIMA 11.130 KG, DISTÂNCIA ENTRE EIXOS 5,36 M, POTÊNCIA 185 CV, INCLUSIVE CAÇAMBA METÁLICA - CHI DIURNO. AF_06/2014","CHOR - CUSTOS HORÁRIOS DE MÁQUINAS E EQUIPAMENTOS",null,"CHI",1,61.29,61.29]
["Composição Auxiliar"," 7058 ","SINAPI","CAMINHÃO BASCULANTE 6 M3 TOCO, PESO BRUTO TOTAL 16.000 KG, CARGA ÚTIL MÁXIMA 11.130 KG, DISTÂNCIA ENTRE EIXOS 5,36 M, POTÊNCIA 185 CV, INCLUSIVE CAÇAMBA METÁLICA - DEPRECIAÇÃO. AF_06/2014","CHOR - CUSTOS HORÁRIOS DE MÁQUINAS E EQUIPAMENTOS",null,"H",1,19.739999999999998,19.739999999999998]
["Composição Auxiliar"," 7059 ","SINAPI","CAMINHÃO BASCULANTE 6 M3 TOCO, PESO BRUTO TOTAL 16.000 KG, CARGA ÚTIL MÁXIMA 11.130 KG, DISTÂNCIA ENTRE EIXOS 5,36 M, POTÊNCIA 185 CV, INCLUSIVE CAÇAMBA METÁLICA - JUROS. AF_06/2014","CHOR - CUSTOS HORÁRIOS DE MÁQUINAS E EQUIPAMENTOS",null,"H",1,7.81,7.81]
["Composição Auxiliar"," 88281 ","SINAPI","MOTORISTA DE BASCULANTE COM ENCARGOS COMPLEMENTARES","SEDI - SERVIÇOS DIVERSOS",null,"H",1,30.59,30.59]
["Composição Auxiliar"," 91402 ","SINAPI","CAMINHÃO BASCULANTE 6 M3 TOCO, PESO BRUTO TOTAL 16.000 KG, CARGA ÚTIL MÁXIMA 11.130 KG, DISTÂNCIA ENTRE EIXOS 5,36 M, POTÊNCIA 185 CV, INCLUSIVE CAÇAMBA METÁLICA - IMPOSTOS E SEGUROS. AF_06/2014","CHOR - CUSTOS HORÁRIOS DE MÁQUINAS E EQUIPAMENTOS",null,"H",1,3.15,3.15]
[]
[]
[]
[null,"Código","Banco","Descrição","Tipo",null,"Und","Quant.","Valor Unit","Total"]
["Composição"," 67826 ","SINAPI","CAMINHÃO BASCULANTE 6 M3 TOCO, PESO BRUTO TOTAL 16.000 KG, CARGA ÚTIL MÁXIMA 11.130 KG, DISTÂNCIA ENTRE EIXOS 5,36 M, POTÊNCIA 185 CV, INCLUSIVE CAÇAMBA METÁLICA - CHP DIURNO. AF_06/2014","CHOR - CUSTOS HORÁRIOS DE MÁQUINAS E EQUIPAMENTOS",null,"CHP",1,175.1,175.1]
["Composição Auxiliar"," 7058 ","SINAPI","CAMINHÃO BASCULANTE 6 M3 TOCO, PESO BRUTO TOTAL 16.000 KG, CARGA ÚTIL MÁXIMA 11.130 KG, DISTÂNCIA ENTRE EIXOS 5,36 M, POTÊNCIA 185 CV, INCLUSIVE CAÇAMBA METÁLICA - DEPRECIAÇÃO. AF_06/2014","CHOR - CUSTOS HORÁRIOS DE MÁQUINAS E EQUIPAMENTOS",null,"H",1,19.739999999999998,19.739999999999998]
["Composição Auxiliar"," 7059 ","SINAPI","CAMINHÃO BASCULANTE 6 M3 TOCO, PESO BRUTO TOTAL 16.000 KG, CARGA ÚTIL MÁXIMA 11.130 KG, DISTÂNCIA ENTRE EIXOS 5,36 M, POTÊNCIA 185 CV, INCLUSIVE CAÇAMBA METÁLICA - JUROS. AF_06/2014","CHOR - CUSTOS HORÁRIOS DE MÁQUINAS E EQUIPAMENTOS",null,"H",1,7.81,7.81]
["Composição Auxiliar"," 7060 ","SINAPI","CAMINHÃO BASCULANTE 6 M3 TOCO, PESO BRUTO TOTAL 16.000 KG, CARGA ÚTIL MÁXIMA 11.130 KG, DISTÂNCIA ENTRE EIXOS 5,36 M, POTÊNCIA 185 CV, INCLUSIVE CAÇAMBA METÁLICA - MANUTENÇÃO. AF_06/2014","CHOR - CUSTOS HORÁRIOS DE MÁQUINAS E EQUIPAMENTOS",null,"H",1,36.18,36.18]
["Composição Auxiliar"," 7061 ","SINAPI","CAMINHÃO BASCULANTE 6 M3 TOCO, PESO BRUTO TOTAL 16.000 KG, CARGA ÚTIL MÁXIMA 11.130 KG, DISTÂNCIA ENTRE EIXOS 5,36 M, POTÊNCIA 185 CV, INCLUSIVE CAÇAMBA METÁLICA - MATERIAIS NA OPERAÇÃO. AF_06/2014","CHOR - CUSTOS HORÁRIOS DE MÁQUINAS E EQUIPAMENTOS",null,"H",1,77.63,77.63]
["Composição Auxiliar"," 88281 ","SINAPI","MOTORISTA DE BASCULANTE COM ENCARGOS COMPLEMENTARES","SEDI - SERVIÇOS DIVERSOS",null,"H",1,30.59,30.59]
["Composição Auxiliar"," 91402 ","SINAPI","CAMINHÃO BASCULANTE 6 M3 TOCO, PESO BRUTO TOTAL 16.000 KG, CARGA ÚTIL MÁXIMA 11.130 KG, DISTÂNCIA ENTRE EIXOS 5,36 M, POTÊNCIA 185 CV, INCLUSIVE CAÇAMBA METÁLICA - IMPOSTOS E SEGUROS. AF_06/2014","CHOR - CUSTOS HORÁRIOS DE MÁQUINAS E EQUIPAMENTOS",null,"H",1,3.15,3.15]
[]
[]
[]
[null,"Código","Banco","Descrição","Tipo",null,"Und","Quant.","Valor Unit","Total"]
["Composição"," 7058 ","SINAPI","CAMINHÃO BASCULANTE 6 M3 TOCO, PESO BRUTO TOTAL 16.000 KG, CARGA ÚTIL MÁXIMA 11.130 KG, DISTÂNCIA ENTRE EIXOS 5,36 M, POTÊNCIA 185 CV, INCLUSIVE CAÇAMBA METÁLICA - DEPRECIAÇÃO. AF_06/2014","CHOR - CUSTOS HORÁRIOS DE MÁQUINAS E EQUIPAMENTOS",null,"H",1,19.739999999999998,19.739999999999998]
["Insumo"," 00037733 ","SINAPI","CACAMBA METALICA BASCULANTE COM CAPACIDADE DE 6 M3 (INCLUI MONTAGEM, NAO INCLUI CAMINHAO)","Material",null,"UN",6.0300000000000002E-5,31363.63,1.89]
["Insumo"," 00037752 ","SINAPI","CAMINHAO TOCO, PESO BRUTO TOTAL 16000 KG, CARGA UTIL MAXIMA 11130 KG, DISTANCIA ENTRE EIXOS 5,36 M, POTENCIA 185 CV (INCLUI CABINE E CHASSI, NAO INCLUI CARROCERIA)","Equipamento",null,"UN",3.4199999999999998E-5,522162.14,17.850000000000001]
[]
[]
[]
[null,"Código","Banco","Descrição","Tipo",null,"Und","Quant.","Valor Unit","Total"]
["Composição"," 91402 ","SINAPI","CAMINHÃO BASCULANTE 6 M3 TOCO, PESO BRUTO TOTAL 16.000 KG, CARGA ÚTIL MÁXIMA 11.130 KG, DISTÂNCIA ENTRE EIXOS 5,36 M, POTÊNCIA 185 CV, INCLUSIVE CAÇAMBA METÁLICA - IMPOSTOS E SEGUROS. AF_06/2014","CHOR - CUSTOS HORÁRIOS DE MÁQUINAS E EQUIPAMENTOS",null,"H",1,3.15,3.15]
["Insumo"," 00037733 ","SINAPI","CACAMBA METALICA BASCULANTE COM CAPACIDADE DE 6 M3 (INCLUI MONTAGEM, NAO INCLUI CAMINHAO)","Material",null,"UN",5.9000000000000003E-6,31363.63,0.18]
["Insumo"," 00037752 ","SINAPI","CAMINHAO TOCO, PESO BRUTO TOTAL 16000 KG, CARGA UTIL MAXIMA 11130 KG, DISTANCIA ENTRE EIXOS 5,36 M, POTENCIA 185 CV (INCLUI CABINE E CHASSI, NAO INCLUI CARROCERIA)","Equipamento",null,"UN",5.6999999999999996E-6,522162.14,2.97]
[]
[]
[]
[null,"Código","Banco","Descrição","Tipo",null,"Und","Quant.","Valor Unit","Total"]
["Composição"," 7059 ","SINAPI","CAMINHÃO BASCULANTE 6 M3 TOCO, PESO BRUTO TOTAL 16.000 KG, CARGA ÚTIL MÁXIMA 11.130 KG, DISTÂNCIA ENTRE EIXOS 5,36 M, POTÊNCIA 185 CV, INCLUSIVE CAÇAMBA METÁLICA - JUROS. AF_06/2014","CHOR - CUSTOS HORÁRIOS DE MÁQUINAS E EQUIPAMENTOS",null,"H",1,7.81,7.81]
["Insumo"," 00037733 ","SINAPI","CACAMBA METALICA BASCULANTE COM CAPACIDADE DE 6 M3 (INCLUI MONTAGEM, NAO INCLUI CAMINHAO)","Material",null,"UN",1.4600000000000001E-5,31363.63,0.45]
["Insumo"," 00037752 ","SINAPI","CAMINHAO TOCO, PESO BRUTO TOTAL 16000 KG, CARGA UTIL MAXIMA 11130 KG, DISTANCIA ENTRE EIXOS 5,36 M, POTENCIA 185 CV (INCLUI CABINE E CHASSI, NAO INCLUI CARROCERIA)","Equipamento",null,"UN",1.4100000000000001E-5,522162.14,7.36]
[]
[]
[]
[null,"Código","Banco","Descrição","Tipo",null,"Und","Quant.","Valor Unit","Total"]
["Composição"," 7060 ","SINAPI","CAMINHÃO BASCULANTE 6 M3 TOCO, PESO BRUTO TOTAL 16.000 KG, CARGA ÚTIL MÁXIMA 11.130 KG, DISTÂNCIA ENTRE EIXOS 5,36 M, POTÊNCIA 185 CV, INCLUSIVE CAÇAMBA METÁLICA - MANUTENÇÃO. AF_06/2014","CHOR - CUSTOS HORÁRIOS DE MÁQUINAS E EQUIPAMENTOS",null,"H",1,36.18,36.18]
["Insumo"," 00037733 ","SINAPI","CACAMBA METALICA BASCULANTE COM CAPACIDADE DE 6 M3 (INCLUI MONTAGEM, NAO INCLUI CAMINHAO)","Material",null,"UN",8.4900000000000004E-5,31363.63,2.66]
["Insumo"," 00037752 ","SINAPI","CAMINHAO TOCO, PESO BRUTO TOTAL 16000 KG, CARGA UTIL MAXIMA 11130 KG, DISTANCIA ENTRE EIXOS 5,36 M, POTENCIA 185 CV (INCLUI CABINE E CHASSI, NAO INCLUI CARROCERIA)","Equipamento",null,"UN",6.4200000000000002E-5,522162.14,33.520000000000003]
[]
[]
[]
[null,"Código","Banco","Descrição","Tipo",null,"Und","Quant.","Valor Unit","Total"]
["Composição"," 7061 ","SINAPI","CAMINHÃO BASCULANTE 6 M3 TOCO, PESO BRUTO TOTAL 16.000 KG, CARGA ÚTIL MÁXIMA 11.130 KG, DISTÂNCIA ENTRE EIXOS 5,36 M, POTÊNCIA 185 CV, INCLUSIVE CAÇAMBA METÁLICA - MATERIAIS NA OPERAÇÃO. AF_06/2014","CHOR - CUSTOS HORÁRIOS DE MÁQUINAS E EQUIPAMENTOS",null,"H",1,77.63,77.63]
["Insumo"," 00004221 ","SINAPI","OLEO DIESEL COMBUSTIVEL COMUM","Material",null,"L",13.62,5.7,77.63]
[]
[]
[]
[null,"Código","Banco","Descrição","Tipo",null,"Und","Quant.","Valor Unit","Total"]
["Composição"," 5903 ","SINAPI","CAMINHÃO PIPA 10.000 L TRUCADO, PESO BRUTO TOTAL 23.000 KG, CARGA ÚTIL MÁXIMA 15.935 KG, DISTÂNCIA ENTRE EIXOS 4,8 M, POTÊNCIA 230 CV, INCLUSIVE TANQUE DE AÇO PARA TRANSPORTE DE ÁGUA - CHI DIURNO. AF_06/2014","CHOR - CUSTOS HORÁRIOS DE MÁQUINAS E EQUIPAMENTOS",null,"CHI",1,71.7,71.7]
["Composição Auxiliar"," 88282 ","SINAPI","MOTORISTA DE CAMINHÃO COM ENCARGOS COMPLEMENTARES","SEDI - SERVIÇOS DIVERSOS",null,"H",1,29.66,29.66]
["Composição Auxiliar"," 91396 ","SINAPI","CAMINHÃO PIPA 10.000 L TRUCADO, PESO BRUTO TOTAL 23.000 KG, CARGA ÚTIL MÁXIMA 15.935 KG, DISTÂNCIA ENTRE EIXOS 4,8 M, POTÊNCIA 230 CV, INCLUSIVE TANQUE DE AÇO PARA TRANSPORTE DE ÁGUA - DEPRECIAÇÃO. AF_06/2014","CHOR - CUSTOS HORÁRIOS DE MÁQUINAS E EQUIPAMENTOS",null,"H",1,27.3,27.3]
["Composição Auxiliar"," 91397 ","SINAPI","CAMINHÃO PIPA 10.000 L TRUCADO, PESO BRUTO TOTAL 23.000 KG, CARGA ÚTIL MÁXIMA 15.935 KG, DISTÂNCIA ENTRE EIXOS 4,8 M, POTÊNCIA 230 CV, INCLUSIVE TANQUE DE AÇO PARA TRANSPORTE DE ÁGUA - JUROS. AF_06/2014","CHOR - CUSTOS HORÁRIOS DE MÁQUINAS E EQUIPAMENTOS",null,"H",1,10.5,10.5]
["Composição Auxiliar"," 91398 ","SINAPI","CAMINHÃO PIPA 10.000 L TRUCADO, PESO BRUTO TOTAL 23.000 KG, CARGA ÚTIL MÁXIMA 15.935 KG, DISTÂNCIA ENTRE EIXOS 4,8 M, POTÊNCIA 230 CV, INCLUSIVE TANQUE DE AÇO PARA TRANSPORTE DE ÁGUA - IMPOSTOS E SEGUROS. AF_06/2014","CHOR - CUSTOS HORÁRIOS DE MÁQUINAS E EQUIPAMENTOS",null,"H",1,4.24,4.24]
[]
[]
[]
[null,"Código","Banco","Descrição","Tipo",null,"Und","Quant.","Valor Unit","Total"]
["Composição"," 5901 ","SINAPI","CAMINHÃO PIPA 10.000 L TRUCADO, PESO BRUTO TOTAL 23.000 KG, CARGA ÚTIL MÁXIMA 15.935 KG, DISTÂNCIA ENTRE EIXOS 4,8 M, POTÊNCIA 230 CV, INCLUSIVE TANQUE DE AÇO PARA TRANSPORTE DE ÁGUA - CHP DIURNO. AF_06/2014","CHOR - CUSTOS HORÁRIOS DE MÁQUINAS E EQUIPAMENTOS",null,"CHP",1,303.24,303.24]
["Composição Auxiliar"," 53831 ","SINAPI","CAMINHÃO PIPA 10.000 L TRUCADO, PESO BRUTO TOTAL 23.000 KG, CARGA ÚTIL MÁXIMA 15.935 KG, DISTÂNCIA ENTRE EIXOS 4,8 M, POTÊNCIA 230 CV, INCLUSIVE TANQUE DE AÇO PARA TRANSPORTE DE ÁGUA - MATERIAIS NA OPERAÇÃO. AF_06/2014","CHOR - CUSTOS HORÁRIOS DE MÁQUINAS E EQUIPAMENTOS",null,"H",1,183.31,183.31]
["Composição Auxiliar"," 5763 ","SINAPI","CAMINHÃO PIPA 10.000 L TRUCADO, PESO BRUTO TOTAL 23.000 KG, CARGA ÚTIL MÁXIMA 15.935 KG, DISTÂNCIA ENTRE EIXOS 4,8 M, POTÊNCIA 230 CV, INCLUSIVE TANQUE DE AÇO PARA TRANSPORTE DE ÁGUA - MANUTENÇÃO. AF_06/2014","CHOR - CUSTOS HORÁRIOS DE MÁQUINAS E EQUIPAMENTOS",null,"H",1,48.23,48.23]
["Composição Auxiliar"," 88282 ","SINAPI","MOTORISTA DE CAMINHÃO COM ENCARGOS COMPLEMENTARES","SEDI - SERVIÇOS DIVERSOS",null,"H",1,29.66,29.66]
["Composição Auxiliar"," 91396 ","SINAPI","CAMINHÃO PIPA 10.000 L TRUCADO, PESO BRUTO TOTAL 23.000 KG, CARGA ÚTIL MÁXIMA 15.935 KG, DISTÂNCIA ENTRE EIXOS 4,8 M, POTÊNCIA 230 CV, INCLUSIVE TANQUE DE AÇO PARA TRANSPORTE DE ÁGUA - DEPRECIAÇÃO. AF_06/2014","CHOR - CUSTOS HORÁRIOS DE MÁQUINAS E EQUIPAMENTOS",null,"H",1,27.3,27.3]
["Composição Auxiliar"," 91397 ","SINAPI","CAMINHÃO PIPA 10.000 L TRUCADO, PESO BRUTO TOTAL 23.000 KG, CARGA ÚTIL MÁXIMA 15.935 KG, DISTÂNCIA ENTRE EIXOS 4,8 M, POTÊNCIA 230 CV, INCLUSIVE TANQUE DE AÇO PARA TRANSPORTE DE ÁGUA - JUROS. AF_06/2014","CHOR - CUSTOS HORÁRIOS DE MÁQUINAS E EQUIPAMENTOS",null,"H",1,10.5,10.5]
["Composição Auxiliar"," 91398 ","SINAPI","CAMINHÃO PIPA 10.000 L TRUCADO, PESO BRUTO TOTAL 23.000 KG, CARGA ÚTIL MÁXIMA 15.935 KG, DISTÂNCIA ENTRE EIXOS 4,8 M, POTÊNCIA 230 CV, INCLUSIVE TANQUE DE AÇO PARA TRANSPORTE DE ÁGUA - IMPOSTOS E SEGUROS. AF_06/2014","CHOR - CUSTOS HORÁRIOS DE MÁQUINAS E EQUIPAMENTOS",null,"H",1,4.24,4.24]
[]
[]
[]
[null,"Código","Banco","Descrição","Tipo",null,"Und","Quant.","Valor Unit","Total"]
["Composição"," 91396 ","SINAPI","CAMINHÃO PIPA 10.000 L TRUCADO, PESO BRUTO TOTAL 23.000 KG, CARGA ÚTIL MÁXIMA 15.935 KG, DISTÂNCIA ENTRE EIXOS 4,8 M, POTÊNCIA 230 CV, INCLUSIVE TANQUE DE AÇO PARA TRANSPORTE DE ÁGUA - DEPRECIAÇÃO. AF_06/2014","CHOR - CUSTOS HORÁRIOS DE MÁQUINAS E EQUIPAMENTOS",null,"H",1,27.3,27.3]
["Insumo"," 00037736 ","SINAPI","TANQUE DE ACO CARBONO NAO REVESTIDO, PARA TRANSPORTE DE AGUA COM CAPACIDADE DE 10 M3, COM BOMBA CENTRIFUGA POR TOMADA DE FORCA, VAZAO MAXIMA *75* M3/H (INCLUI MONTAGEM, NAO INCLUI CAMINHAO)","Material",null,"UN",5.5099999999999998E-5,85950,4.7300000000000004]
["Insumo"," 00037758 ","SINAPI","CAMINHAO TRUCADO, PESO BRUTO TOTAL 23000 KG, CARGA UTIL MAXIMA 15285 KG, DISTANCIA ENTRE EIXOS 4,80 M, POTENCIA 326 CV (INCLUI CABINE E CHASSI, NAO INCLUI CARROCERIA)","Equipamento",null,"UN",3.43E-5,658090.06999999995,22.57]
[]
[]
[]
[null,"Código","Banco","Descrição","Tipo",null,"Und","Quant.","Valor Unit","Total"]
["Composição"," 91398 ","SINAPI","CAMINHÃO PIPA 10.000 L TRUCADO, PESO BRUTO TOTAL 23.000 KG, CARGA ÚTIL MÁXIMA 15.935 KG, DISTÂNCIA ENTRE EIXOS 4,8 M, POTÊNCIA 230 CV, INCLUSIVE TANQUE DE AÇO PARA TRANSPORTE DE ÁGUA - IMPOSTOS E SEGUROS. AF_06/2014","CHOR - CUSTOS HORÁRIOS DE MÁQUINAS E EQUIPAMENTOS",null,"H",1,4.24,4.24]
["Insumo"," 00037736 ","SINAPI","TANQUE DE ACO CARBONO NAO REVESTIDO, PARA TRANSPORTE DE AGUA COM CAPACIDADE DE 10 M3, COM BOMBA CENTRIFUGA POR TOMADA DE FORCA, VAZAO MAXIMA *75* M3/H (INCLUI MONTAGEM, NAO INCLUI CAMINHAO)","Material",null,"UN",5.8000000000000004E-6,85950,0.49]
["Insumo"," 00037758 ","SINAPI","CAMINHAO TRUCADO, PESO BRUTO TOTAL 23000 KG, CARGA UTIL MAXIMA 15285 KG, DISTANCIA ENTRE EIXOS 4,80 M, POTENCIA 326 CV (INCLUI CABINE E CHASSI, NAO INCLUI CARROCERIA)","Equipamento",null,"UN",5.6999999999999996E-6,658090.06999999995,3.75]
[]
[]
[]
[null,"Código","Banco","Descrição","Tipo",null,"Und","Quant.","Valor Unit","Total"]
["Composição"," 91397 ","SINAPI","CAMINHÃO PIPA 10.000 L TRUCADO, PESO BRUTO TOTAL 23.000 KG, CARGA ÚTIL MÁXIMA 15.935 KG, DISTÂNCIA ENTRE EIXOS 4,8 M, POTÊNCIA 230 CV, INCLUSIVE TANQUE DE AÇO PARA TRANSPORTE DE ÁGUA - JUROS. AF_06/2014","CHOR - CUSTOS HORÁRIOS DE MÁQUINAS E EQUIPAMENTOS",null,"H",1,10.5,10.5]
["Insumo"," 00037736 ","SINAPI","TANQUE DE ACO CARBONO NAO REVESTIDO, PARA TRANSPORTE DE AGUA COM CAPACIDADE DE 10 M3, COM BOMBA CENTRIFUGA POR TOMADA DE FORCA, VAZAO MAXIMA *75* M3/H (INCLUI MONTAGEM, NAO INCLUI CAMINHAO)","Material",null,"UN",1.4399999999999999E-5,85950,1.23]
["Insumo"," 00037758 ","SINAPI","CAMINHAO TRUCADO, PESO BRUTO TOTAL 23000 KG, CARGA UTIL MAXIMA 15285 KG, DISTANCIA ENTRE EIXOS 4,80 M, POTENCIA 326 CV (INCLUI CABINE E CHASSI, NAO INCLUI CARROCERIA)","Equipamento",null,"UN",1.4100000000000001E-5,658090.06999999995,9.27]
[]
[]
[]
[null,"Código","Banco","Descrição","Tipo",null,"Und","Quant.","Valor Unit","Total"]
["Composição"," 5763 ","SINAPI","CAMINHÃO PIPA 10.000 L TRUCADO, PESO BRUTO TOTAL 23.000 KG, CARGA ÚTIL MÁXIMA 15.935 KG, DISTÂNCIA ENTRE EIXOS 4,8 M, POTÊNCIA 230 CV, INCLUSIVE TANQUE DE AÇO PARA TRANSPORTE DE ÁGUA - MANUTENÇÃO. AF_06/2014","CHOR - CUSTOS HORÁRIOS DE MÁQUINAS E EQUIPAMENTOS",null,"H",1,48.23,48.23]
["Insumo"," 00037736 ","SINAPI","TANQUE DE ACO CARBONO NAO REVESTIDO, PARA TRANSPORTE DE AGUA COM CAPACIDADE DE 10 M3, COM BOMBA CENTRIFUGA POR TOMADA DE FORCA, VAZAO MAXIMA *75* M3/H (INCLUI MONTAGEM, NAO INCLUI CAMINHAO)","Material",null,"UN",6.8899999999999994E-5,85950,5.92]
["Insumo"," 00037758 ","SINAPI","CAMINHAO TRUCADO, PESO BRUTO TOTAL 23000 KG, CARGA UTIL MAXIMA 15285 KG, DISTANCIA ENTRE EIXOS 4,80 M, POTENCIA 326 CV (INCLUI CABINE E CHASSI, NAO INCLUI CARROCERIA)","Equipamento",null,"UN",6.4300000000000004E-5,658090.06999999995,42.31]
[]
[]
[]
[null,"Código","Banco","Descrição","Tipo",null,"Und","Quant.","Valor Unit","Total"]
["Composição"," 53831 ","SINAPI","CAMINHÃO PIPA 10.000 L TRUCADO, PESO BRUTO TOTAL 23.000 KG, CARGA ÚTIL MÁXIMA 15.935 KG, DISTÂNCIA ENTRE EIXOS 4,8 M, POTÊNCIA 230 CV, INCLUSIVE TANQUE DE AÇO PARA TRANSPORTE DE ÁGUA - MATERIAIS NA OPERAÇÃO. AF_06/2014","CHOR - CUSTOS HORÁRIOS DE MÁQUINAS E EQUIPAMENTOS",null,"H",1,183.31,183.31]
["Insumo"," 00004221 ","SINAPI","OLEO DIESEL COMBUSTIVEL COMUM","Material",null,"L",32.159999999999997,5.7,183.31]
[]
[]
[]
[null,"Código","Banco","Descrição","Tipo",null,"Und","Quant.","Valor Unit","Total"]
["Composição"," 73467 ","SINAPI","CAMINHÃO TOCO, PBT 14.300 KG, CARGA ÚTIL MÁX. 9.710 KG, DIST. ENTRE EIXOS 3,56 M, POTÊNCIA 185 CV, INCLUSIVE CARROCERIA FIXA ABERTA DE MADEIRA P/ TRANSPORTE GERAL DE CARGA SECA, DIMEN. APROX. 2,50 X 6,50 X 0,50 M - CHP DIURNO. AF_06/2014","CHOR - CUSTOS HORÁRIOS DE MÁQUINAS E EQUIPAMENTOS",null,"CHP",1,235.6,235.6]
["Composição Auxiliar"," 73335 ","SINAPI","CAMINHÃO TOCO, PBT 14.300 KG, CARGA ÚTIL MÁX. 9.710 KG, DIST. ENTRE EIXOS 3,56 M, POTÊNCIA 185 CV, INCLUSIVE CARROCERIA FIXA ABERTA DE MADEIRA P/ TRANSPORTE GERAL DE CARGA SECA, DIMEN. APROX. 2,50 X 6,50 X 0,50 M - MANUTENÇÃO. AF_06/2014","CHOR - CUSTOS HORÁRIOS DE MÁQUINAS E EQUIPAMENTOS",null,"H",1,31.63,31.63]
["Composição Auxiliar"," 73340 ","SINAPI","CAMINHÃO TOCO, PBT 14.300 KG, CARGA ÚTIL MÁX. 9.710 KG, DIST. ENTRE EIXOS 3,56 M, POTÊNCIA 185 CV, INCLUSIVE CARROCERIA FIXA ABERTA DE MADEIRA P/ TRANSPORTE GERAL DE CARGA SECA, DIMEN. APROX. 2,50 X 6,50 X 0,50 M - MATERIAIS NA OPERAÇÃO. AF_06/2014","CHOR - CUSTOS HORÁRIOS DE MÁQUINAS E EQUIPAMENTOS",null,"H",1,147.44999999999999,147.44999999999999]
["Composição Auxiliar"," 88282 ","SINAPI","MOTORISTA DE CAMINHÃO COM ENCARGOS COMPLEMENTARES","SEDI - SERVIÇOS DIVERSOS",null,"H",1,29.66,29.66]
["Composição Auxiliar"," 91390 ","SINAPI","CAMINHÃO TOCO, PBT 14.300 KG, CARGA ÚTIL MÁX. 9.710 KG, DIST. ENTRE EIXOS 3,56 M, POTÊNCIA 185 CV, INCLUSIVE CARROCERIA FIXA ABERTA DE MADEIRA P/ TRANSPORTE GERAL DE CARGA SECA, DIMEN. APROX. 2,50 X 6,50 X 0,50 M - DEPRECIAÇÃO. AF_06/2014","CHOR - CUSTOS HORÁRIOS DE MÁQUINAS E EQUIPAMENTOS",null,"H",1,17.149999999999999,17.149999999999999]
["Composição Auxiliar"," 91391 ","SINAPI","CAMINHÃO TOCO, PBT 14.300 KG, CARGA ÚTIL MÁX. 9.710 KG, DIST. ENTRE EIXOS 3,56 M, POTÊNCIA 185 CV, INCLUSIVE CARROCERIA FIXA ABERTA DE MADEIRA P/ TRANSPORTE GERAL DE CARGA SECA, DIMEN. APROX. 2,50 X 6,50 X 0,50 M - JUROS. AF_06/2014","CHOR - CUSTOS HORÁRIOS DE MÁQUINAS E EQUIPAMENTOS",null,"H",1,6.92,6.92]
["Composição Auxiliar"," 91392 ","SINAPI","CAMINHÃO TOCO, PBT 14.300 KG, CARGA ÚTIL MÁX. 9.710 KG, DIST. ENTRE EIXOS 3,56 M, POTÊNCIA 185 CV, INCLUSIVE CARROCERIA FIXA ABERTA DE MADEIRA P/ TRANSPORTE GERAL DE CARGA SECA, DIMEN. APROX. 2,50 X 6,50 X 0,50 M - IMPOSTOS E SEGUROS. AF_06/2014","CHOR - CUSTOS HORÁRIOS DE MÁQUINAS E EQUIPAMENTOS",null,"H",1,2.79,2.79]
[]
[]
[]
[null,"Código","Banco","Descrição","Tipo",null,"Und","Quant.","Valor Unit","Total"]
["Composição"," 91390 ","SINAPI","CAMINHÃO TOCO, PBT 14.300 KG, CARGA ÚTIL MÁX. 9.710 KG, DIST. ENTRE EIXOS 3,56 M, POTÊNCIA 185 CV, INCLUSIVE CARROCERIA FIXA ABERTA DE MADEIRA P/ TRANSPORTE GERAL DE CARGA SECA, DIMEN. APROX. 2,50 X 6,50 X 0,50 M - DEPRECIAÇÃO. AF_06/2014","CHOR - CUSTOS HORÁRIOS DE MÁQUINAS E EQUIPAMENTOS",null,"H",1,17.149999999999999,17.149999999999999]
["Insumo"," 00037730 ","SINAPI","CARROCERIA FIXA ABERTA DE MADEIRA PARA TRANSPORTE GERAL DE CARGA SECA DIMENSOES APROXIMADAS 2,5 X 6,5 X 0,50 M (INCLUI MONTAGEM, NAO INCLUI CAMINHAO)","Material",null,"UN",5.5099999999999998E-5,15409.09,0.84]
["Insumo"," 00037754 ","SINAPI","CAMINHAO TOCO, PESO BRUTO TOTAL 14300 KG, CARGA UTIL MAXIMA 9480 KG, DISTANCIA ENTRE EIXOS 4,80 M, POTENCIA 185 CV (INCLUI CABINE E CHASSI, NAO INCLUI CARROCERIA)","Equipamento",null,"UN",3.43E-5,475581.99,16.309999999999999]
[]
[]
[]
[null,"Código","Banco","Descrição","Tipo",null,"Und","Quant.","Valor Unit","Total"]
["Composição"," 91392 ","SINAPI","CAMINHÃO TOCO, PBT 14.300 KG, CARGA ÚTIL MÁX. 9.710 KG, DIST. ENTRE EIXOS 3,56 M, POTÊNCIA 185 CV, INCLUSIVE CARROCERIA FIXA ABERTA DE MADEIRA P/ TRANSPORTE GERAL DE CARGA SECA, DIMEN. APROX. 2,50 X 6,50 X 0,50 M - IMPOSTOS E SEGUROS. AF_06/2014","CHOR - CUSTOS HORÁRIOS DE MÁQUINAS E EQUIPAMENTOS",null,"H",1,2.79,2.79]
["Insumo"," 00037730 ","SINAPI","CARROCERIA FIXA ABERTA DE MADEIRA PARA TRANSPORTE GERAL DE CARGA SECA DIMENSOES APROXIMADAS 2,5 X 6,5 X 0,50 M (INCLUI MONTAGEM, NAO INCLUI CAMINHAO)","Material",null,"UN",5.8000000000000004E-6,15409.09,0.08]
["Insumo"," 00037754 ","SINAPI","CAMINHAO TOCO, PESO BRUTO TOTAL 14300 KG, CARGA UTIL MAXIMA 9480 KG, DISTANCIA ENTRE EIXOS 4,80 M, POTENCIA 185 CV (INCLUI CABINE E CHASSI, NAO INCLUI CARROCERIA)","Equipamento",null,"UN",5.6999999999999996E-6,475581.99,2.71]
[]
[]
[]
[null,"Código","Banco","Descrição","Tipo",null,"Und","Quant.","Valor Unit","Total"]
["Composição"," 91391 ","SINAPI","CAMINHÃO TOCO, PBT 14.300 KG, CARGA ÚTIL MÁX. 9.710 KG, DIST. ENTRE EIXOS 3,56 M, POTÊNCIA 185 CV, INCLUSIVE CARROCERIA FIXA ABERTA DE MADEIRA P/ TRANSPORTE GERAL DE CARGA SECA, DIMEN. APROX. 2,50 X 6,50 X 0,50 M - JUROS. AF_06/2014","CHOR - CUSTOS HORÁRIOS DE MÁQUINAS E EQUIPAMENTOS",null,"H",1,6.92,6.92]
["Insumo"," 00037730 ","SINAPI","CARROCERIA FIXA ABERTA DE MADEIRA PARA TRANSPORTE GERAL DE CARGA SECA DIMENSOES APROXIMADAS 2,5 X 6,5 X 0,50 M (INCLUI MONTAGEM, NAO INCLUI CAMINHAO)","Material",null,"UN",1.4399999999999999E-5,15409.09,0.22]
["Insumo"," 00037754 ","SINAPI","CAMINHAO TOCO, PESO BRUTO TOTAL 14300 KG, CARGA UTIL MAXIMA 9480 KG, DISTANCIA ENTRE EIXOS 4,80 M, POTENCIA 185 CV (INCLUI CABINE E CHASSI, NAO INCLUI CARROCERIA)","Equipamento",null,"UN",1.4100000000000001E-5,475581.99,6.7]
[]
[]
[]
[null,"Código","Banco","Descrição","Tipo",null,"Und","Quant.","Valor Unit","Total"]
["Composição"," 73335 ","SINAPI","CAMINHÃO TOCO, PBT 14.300 KG, CARGA ÚTIL MÁX. 9.710 KG, DIST. ENTRE EIXOS 3,56 M, POTÊNCIA 185 CV, INCLUSIVE CARROCERIA FIXA ABERTA DE MADEIRA P/ TRANSPORTE GERAL DE CARGA SECA, DIMEN. APROX. 2,50 X 6,50 X 0,50 M - MANUTENÇÃO. AF_06/2014","CHOR - CUSTOS HORÁRIOS DE MÁQUINAS E EQUIPAMENTOS",null,"H",1,31.63,31.63]
["Insumo"," 00037730 ","SINAPI","CARROCERIA FIXA ABERTA DE MADEIRA PARA TRANSPORTE GERAL DE CARGA SECA DIMENSOES APROXIMADAS 2,5 X 6,5 X 0,50 M (INCLUI MONTAGEM, NAO INCLUI CAMINHAO)","Material",null,"UN",6.8899999999999994E-5,15409.09,1.06]
["Insumo"," 00037754 ","SINAPI","CAMINHAO TOCO, PESO BRUTO TOTAL 14300 KG, CARGA UTIL MAXIMA 9480 KG, DISTANCIA ENTRE EIXOS 4,80 M, POTENCIA 185 CV (INCLUI CABINE E CHASSI, NAO INCLUI CARROCERIA)","Equipamento",null,"UN",6.4300000000000004E-5,475581.99,30.57]
[]
[]
[]
[null,"Código","Banco","Descrição","Tipo",null,"Und","Quant.","Valor Unit","Total"]
["Composição"," 73340 ","SINAPI","CAMINHÃO TOCO, PBT 14.300 KG, CARGA ÚTIL MÁX. 9.710 KG, DIST. ENTRE EIXOS 3,56 M, POTÊNCIA 185 CV, INCLUSIVE CARROCERIA FIXA ABERTA DE MADEIRA P/ TRANSPORTE GERAL DE CARGA SECA, DIMEN. APROX. 2,50 X 6,50 X 0,50 M - MATERIAIS NA OPERAÇÃO. AF_06/2014","CHOR - CUSTOS HORÁRIOS DE MÁQUINAS E EQUIPAMENTOS",null,"H",1,147.44999999999999,147.44999999999999]
["Insumo"," 00004221 ","SINAPI","OLEO DIESEL COMBUSTIVEL COMUM","Material",null,"L",25.87,5.7,147.44999999999999]
[]
[]
[]
[null,"Código","Banco","Descrição","Tipo",null,"Und","Quant.","Valor Unit","Total"]
["Composição"," 88262 ","SINAPI","CARPINTEIRO DE FORMAS COM ENCARGOS COMPLEMENTARES","SEDI - SERVIÇOS DIVERSOS",null,"H",1,25.8,25.8]
["Composição Auxiliar"," 95330 ","SINAPI","CURSO DE CAPACITAÇÃO PARA CARPINTEIRO DE FÔRMAS (ENCARGOS COMPLEMENTARES) - HORISTA","SEDI - SERVIÇOS DIVERSOS",null,"H",1,0.25,0.25]
["Insumo"," 00001213 ","SINAPI","CARPINTEIRO DE FORMAS","Mão de Obra",null,"H",1,19.12,19.12]
["Insumo"," 00037370 ","SINAPI","ALIMENTACAO - HORISTA (COLETADO CAIXA)","Outros",null,"H",1,2.39,2.39]
["Insumo"," 00037371 ","SINAPI","TRANSPORTE - HORISTA (COLETADO CAIXA)","Serviços",null,"H",1,0.74,0.74]
["Insumo"," 00037372 ","SINAPI","EXAMES - HORISTA (COLETADO CAIXA)","Outros",null,"H",1,1.34,1.34]
["Insumo"," 00037373 ","SINAPI","SEGURO - HORISTA (COLETADO CAIXA)","Taxas",null,"H",1,0.04,0.04]
["Insumo"," 00043459 ","SINAPI","FERRAMENTAS - FAMILIA CARPINTEIRO DE FORMAS - HORISTA (ENCARGOS COMPLEMENTARES - COLETADO CAIXA)","Equipamento",null,"H",1,0.49,0.49]
["Insumo"," 00043483 ","SINAPI","EPI - FAMILIA CARPINTEIRO DE FORMAS - HORISTA (ENCARGOS COMPLEMENTARES - COLETADO CAIXA)","Equipamento",null,"H",1,1.43,1.43]
[]
[]
[]
[null,"Código","Banco","Descrição","Tipo",null,"Und","Quant.","Valor Unit","Total"]
["Composição"," 91533 ","SINAPI","COMPACTADOR DE SOLOS DE PERCUSSÃO (SOQUETE) COM MOTOR A GASOLINA 4 TEMPOS, POTÊNCIA 4 CV - CHP DIURNO. AF_08/2015","CHOR - CUSTOS HORÁRIOS DE MÁQUINAS E EQUIPAMENTOS",null,"CHP",1,37.53,37.53]
["Composição Auxiliar"," 88297 ","SINAPI","OPERADOR DE MÁQUINAS E EQUIPAMENTOS COM ENCARGOS COMPLEMENTARES","SEDI - SERVIÇOS DIVERSOS",null,"H",1,28.86,28.86]
["Composição Auxiliar"," 91529 ","SINAPI","COMPACTADOR DE SOLOS DE PERCUSSÃO (SOQUETE) COM MOTOR A GASOLINA 4 TEMPOS, POTÊNCIA 4 CV - DEPRECIAÇÃO. AF_08/2015","CHOR - CUSTOS HORÁRIOS DE MÁQUINAS E EQUIPAMENTOS",null,"H",1,0.82,0.82]
["Composição Auxiliar"," 91530 ","SINAPI","COMPACTADOR DE SOLOS DE PERCUSSÃO (SOQUETE) COM MOTOR A GASOLINA 4 TEMPOS, POTÊNCIA 4 CV - JUROS. AF_08/2015","CHOR - CUSTOS HORÁRIOS DE MÁQUINAS E EQUIPAMENTOS",null,"H",1,0.22,0.22]
["Composição Auxiliar"," 91531 ","SINAPI","COMPACTADOR DE SOLOS DE PERCUSSÃO (SOQUETE) COM MOTOR A GASOLINA 4 TEMPOS, POTÊNCIA 4 CV - MANUTENÇÃO. AF_08/2015","CHOR - CUSTOS HORÁRIOS DE MÁQUINAS E EQUIPAMENTOS",null,"H",1,1.03,1.03]
["Composição Auxiliar"," 91532 ","SINAPI","COMPACTADOR DE SOLOS DE PERCUSSÃO (SOQUETE) COM MOTOR A GASOLINA 4 TEMPOS, POTÊNCIA 4 CV - MATERIAIS NA OPERAÇÃO. AF_08/2015","CHOR - CUSTOS HORÁRIOS DE MÁQUINAS E EQUIPAMENTOS",null,"H",1,6.6,6.6]
[]
[]
[]
[null,"Código","Banco","Descrição","Tipo",null,"Und","Quant.","Valor Unit","Total"]
["Composição"," 91529 ","SINAPI","COMPACTADOR DE SOLOS DE PERCUSSÃO (SOQUETE) COM MOTOR A GASOLINA 4 TEMPOS, POTÊNCIA 4 CV - DEPRECIAÇÃO. AF_08/2015","CHOR - CUSTOS HORÁRIOS DE MÁQUINAS E EQUIPAMENTOS",null,"H",1,0.82,0.82]
["Insumo"," 00013458 ","SINAPI","COMPACTADOR DE SOLOS DE PERCURSAO (SOQUETE) COM MOTOR A GASOLINA 4 TEMPOS DE 4 HP (4 CV)","Equipamento",null,"UN",5.3300000000000001E-5,15517.01,0.82]
[]
[]
[]
[null,"Código","Banco","Descrição","Tipo",null,"Und","Quant.","Valor Unit","Total"]
["Composição"," 91530 ","SINAPI","COMPACTADOR DE SOLOS DE PERCUSSÃO (SOQUETE) COM MOTOR A GASOLINA 4 TEMPOS, POTÊNCIA 4 CV - JUROS. AF_08/2015","CHOR - CUSTOS HORÁRIOS DE MÁQUINAS E EQUIPAMENTOS",null,"H",1,0.22,0.22]
["Insumo"," 00013458 ","SINAPI","COMPACTADOR DE SOLOS DE PERCURSAO (SOQUETE) COM MOTOR A GASOLINA 4 TEMPOS DE 4 HP (4 CV)","Equipamento",null,"UN",1.43E-5,15517.01,0.22]
[]
[]
[]
[null,"Código","Banco","Descrição","Tipo",null,"Und","Quant.","Valor Unit","Total"]
["Composição"," 91531 ","SINAPI","COMPACTADOR DE SOLOS DE PERCUSSÃO (SOQUETE) COM MOTOR A GASOLINA 4 TEMPOS, POTÊNCIA 4 CV - MANUTENÇÃO. AF_08/2015","CHOR - CUSTOS HORÁRIOS DE MÁQUINAS E EQUIPAMENTOS",null,"H",1,1.03,1.03]
["Insumo"," 00013458 ","SINAPI","COMPACTADOR DE SOLOS DE PERCURSAO (SOQUETE) COM MOTOR A GASOLINA 4 TEMPOS DE 4 HP (4 CV)","Equipamento",null,"UN",6.6699999999999995E-5,15517.01,1.03]
[]
[]
[]
[null,"Código","Banco","Descrição","Tipo",null,"Und","Quant.","Valor Unit","Total"]
["Composição"," 91532 ","SINAPI","COMPACTADOR DE SOLOS DE PERCUSSÃO (SOQUETE) COM MOTOR A GASOLINA 4 TEMPOS, POTÊNCIA 4 CV - MATERIAIS NA OPERAÇÃO. AF_08/2015","CHOR - CUSTOS HORÁRIOS DE MÁQUINAS E EQUIPAMENTOS",null,"H",1,6.6,6.6]
["Insumo"," 00004222 ","SINAPI","GASOLINA COMUM","Material",null,"L",1.03,6.41,6.6]
[]
[]
[]
[null,"Código","Banco","Descrição","Tipo",null,"Und","Quant.","Valor Unit","Total"]
["Composição"," 94963 ","SINAPI","CONCRETO FCK = 15MPA, TRAÇO 1:3,4:3,5 (EM MASSA SECA DE CIMENTO/ AREIA MÉDIA/ BRITA 1) - PREPARO MECÂNICO COM BETONEIRA 400 L. AF_05/2021","FUES - FUNDAÇÕES E ESTRUTURAS",null,"m³",1,449.63,449.63]
["Composição Auxiliar"," 88316 ","SINAPI","SERVENTE COM ENCARGOS COMPLEMENTARES","SEDI - SERVIÇOS DIVERSOS",null,"H",2.3275000000000001,20.420000000000002,47.52]
["Composição Auxiliar"," 88377 ","SINAPI","OPERADOR DE BETONEIRA ESTACIONÁRIA/MISTURADOR COM ENCARGOS COMPLEMENTARES","SEDI - SERVIÇOS DIVERSOS",null,"H",1.4695,23.84,35.03]
["Composição Auxiliar"," 88830 ","SINAPI","BETONEIRA CAPACIDADE NOMINAL DE 400 L, CAPACIDADE DE MISTURA 280 L, MOTOR ELÉTRICO TRIFÁSICO POTÊNCIA DE 2 CV, SEM CARREGADOR - CHP DIURNO. AF_10/2014","CHOR - CUSTOS HORÁRIOS DE MÁQUINAS E EQUIPAMENTOS",null,"CHP",0.75629999999999997,1.88,1.42]
["Composição Auxiliar"," 88831 ","SINAPI","BETONEIRA CAPACIDADE NOMINAL DE 400 L, CAPACIDADE DE MISTURA 280 L, MOTOR ELÉTRICO TRIFÁSICO POTÊNCIA DE 2 CV, SEM CARREGADOR - CHI DIURNO. AF_10/2014","CHOR - CUSTOS HORÁRIOS DE MÁQUINAS E EQUIPAMENTOS",null,"CHI",0.71309999999999996,0.43,0.3]
["Insumo"," 00000370 ","SINAPI","AREIA MEDIA - POSTO JAZIDA/FORNECEDOR (RETIRADO NA JAZIDA, SEM TRANSPORTE)","Material",null,"m³",0.80459999999999998,110,88.5]
["Insumo"," 00001379 ","SINAPI","CIMENTO PORTLAND COMPOSTO CP II-32","Material",null,"KG",273.06299999999999,0.76,207.52]
["Insumo"," 00004721 ","SINAPI","PEDRA BRITADA N. 1 (9,5 a 19 MM) POSTO PEDREIRA/FORNECEDOR, SEM FRETE","Material",null,"m³",0.57920000000000005,119.72,69.34]
[]
[]
[]
[null,"Código","Banco","Descrição","Tipo",null,"Und","Quant.","Valor Unit","Total"]
["Composição"," 94964 ","SINAPI","CONCRETO FCK = 20MPA, TRAÇO 1:2,7:3 (EM MASSA SECA DE CIMENTO/ AREIA MÉDIA/ BRITA 1) - PREPARO MECÂNICO COM BETONEIRA 400 L. AF_05/2021","FUES - FUNDAÇÕES E ESTRUTURAS",null,"m³",1,490.73,490.73]
["Composição Auxiliar"," 88316 ","SINAPI","SERVENTE COM ENCARGOS COMPLEMENTARES","SEDI - SERVIÇOS DIVERSOS",null,"H",2.5333000000000001,20.420000000000002,51.72]
["Composição Auxiliar"," 88377 ","SINAPI","OPERADOR DE BETONEIRA ESTACIONÁRIA/MISTURADOR COM ENCARGOS COMPLEMENTARES","SEDI - SERVIÇOS DIVERSOS",null,"H",1.6046,23.84,38.25]
["Composição Auxiliar"," 88830 ","SINAPI","BETONEIRA CAPACIDADE NOMINAL DE 400 L, CAPACIDADE DE MISTURA 280 L, MOTOR ELÉTRICO TRIFÁSICO POTÊNCIA DE 2 CV, SEM CARREGADOR - CHP DIURNO. AF_10/2014","CHOR - CUSTOS HORÁRIOS DE MÁQUINAS E EQUIPAMENTOS",null,"CHP",0.82589999999999997,1.88,1.55]
["Composição Auxiliar"," 88831 ","SINAPI","BETONEIRA CAPACIDADE NOMINAL DE 400 L, CAPACIDADE DE MISTURA 280 L, MOTOR ELÉTRICO TRIFÁSICO POTÊNCIA DE 2 CV, SEM CARREGADOR - CHI DIURNO. AF_10/2014","CHOR - CUSTOS HORÁRIOS DE MÁQUINAS E EQUIPAMENTOS",null,"CHI",0.77869999999999995,0.43,0.33]
["Insumo"," 00000370 ","SINAPI","AREIA MEDIA - POSTO JAZIDA/FORNECEDOR (RETIRADO NA JAZIDA, SEM TRANSPORTE)","Material",null,"m³",0.75580000000000003,110,83.13]
["Insumo"," 00001379 ","SINAPI","CIMENTO PORTLAND COMPOSTO CP II-32","Material",null,"KG",322.97770000000003,0.76,245.46]
["Insumo"," 00004721 ","SINAPI","PEDRA BRITADA N. 1 (9,5 a 19 MM) POSTO PEDREIRA/FORNECEDOR, SEM FRETE","Material",null,"m³",0.58720000000000006,119.72,70.290000000000006]
[]
[]
[]
[null,"Código","Banco","Descrição","Tipo",null,"Und","Quant.","Valor Unit","Total"]
["Composição"," 94970 ","SINAPI","CONCRETO FCK = 20MPA, TRAÇO 1:2,7:3 (EM MASSA SECA DE CIMENTO/ AREIA MÉDIA/ BRITA 1) - PREPARO MECÂNICO COM BETONEIRA 600 L. AF_05/2021","FUES - FUNDAÇÕES E ESTRUTURAS",null,"m³",1,478.11,478.11]
["Composição Auxiliar"," 88316 ","SINAPI","SERVENTE COM ENCARGOS COMPLEMENTARES","SEDI - SERVIÇOS DIVERSOS",null,"H",2.0266999999999999,20.420000000000002,41.38]
["Composição Auxiliar"," 88377 ","SINAPI","OPERADOR DE BETONEIRA ESTACIONÁRIA/MISTURADOR COM ENCARGOS COMPLEMENTARES","SEDI - SERVIÇOS DIVERSOS",null,"H",1.2767999999999999,23.84,30.43]
["Composição Auxiliar"," 89225 ","SINAPI","BETONEIRA CAPACIDADE NOMINAL DE 600 L, CAPACIDADE DE MISTURA 360 L, MOTOR ELÉTRICO TRIFÁSICO POTÊNCIA DE 4 CV, SEM CARREGADOR - CHP DIURNO. AF_11/2014","CHOR - CUSTOS HORÁRIOS DE MÁQUINAS E EQUIPAMENTOS",null,"CHP",0.65720000000000001,5.53,3.63]
["Composição Auxiliar"," 89226 ","SINAPI","BETONEIRA CAPACIDADE NOMINAL DE 600 L, CAPACIDADE DE MISTURA 360 L, MOTOR ELÉTRICO TRIFÁSICO POTÊNCIA DE 4 CV, SEM CARREGADOR - CHI DIURNO. AF_11/2014","CHOR - CUSTOS HORÁRIOS DE MÁQUINAS E EQUIPAMENTOS",null,"CHI",0.61970000000000003,1.77,1.0900000000000001]
["Insumo"," 00000370 ","SINAPI","AREIA MEDIA - POSTO JAZIDA/FORNECEDOR (RETIRADO NA JAZIDA, SEM TRANSPORTE)","Material",null,"m³",0.76090000000000002,110,83.69]
["Insumo"," 00001379 ","SINAPI","CIMENTO PORTLAND COMPOSTO CP II-32","Material",null,"KG",325.15890000000002,0.76,247.12]
["Insumo"," 00004721 ","SINAPI","PEDRA BRITADA N. 1 (9,5 a 19 MM) POSTO PEDREIRA/FORNECEDOR, SEM FRETE","Material",null,"m³",0.59119999999999995,119.72,70.77]
[]
[]
[]
[null,"Código","Banco","Descrição","Tipo",null,"Und","Quant.","Valor Unit","Total"]
["Composição"," 104749 ","SINAPI","CONECTOR GRAMPO METÁLICO TIPO OLHAL, PARA SPDA, PARA HASTE DE ATERRAMENTO DE 3/4'' E CABOS DE 10 A 50 MM2 - FORNECIMENTO E INSTALAÇÃO. AF_08/2023","INEL - INSTALAÇÃO ELÉTRICA/ELETRIFICAÇÃO E ILUMINAÇÃO EXTERNA",null,"UN",1,20.65,20.65]
["Composição Auxiliar"," 88247 ","SINAPI","AUXILIAR DE ELETRICISTA COM ENCARGOS COMPLEMENTARES","SEDI - SERVIÇOS DIVERSOS",null,"H",0.18629999999999999,21.09,3.92]
["Composição Auxiliar"," 88264 ","SINAPI","ELETRICISTA COM ENCARGOS COMPLEMENTARES","SEDI - SERVIÇOS DIVERSOS",null,"H",0.18629999999999999,26.5,4.93]
["Insumo"," 00000416 ","SINAPI","GRAMPO METALICO TIPO OLHAL PARA HASTE DE ATERRAMENTO DE 3/4\", CONDUTOR DE *10* A 50 MM2","Material",null,"UN",1,11.8,11.8]
[]
[]
[]
[null,"Código","Banco","Descrição","Tipo",null,"Und","Quant.","Valor Unit","Total"]
["Composição"," 96977 ","SINAPI","CORDOALHA DE COBRE NU 50 MM², ENTERRADA, SEM ISOLADOR - FORNECIMENTO E INSTALAÇÃO. AF_12/2017","INEL - INSTALAÇÃO ELÉTRICA/ELETRIFICAÇÃO E ILUMINAÇÃO EXTERNA",null,"M",1,57.22,57.22]
["Composição Auxiliar"," 88247 ","SINAPI","AUXILIAR DE ELETRICISTA COM ENCARGOS COMPLEMENTARES","SEDI - SERVIÇOS DIVERSOS",null,"H",3.3099999999999997E-2,21.09,0.69]
["Composição Auxiliar"," 88264 ","SINAPI","ELETRICISTA COM ENCARGOS COMPLEMENTARES","SEDI - SERVIÇOS DIVERSOS",null,"H",3.3099999999999997E-2,26.5,0.87]
["Insumo"," 00000867 ","SINAPI","CABO DE COBRE NU 50 MM2 MEIO-DURO","Material",null,"M",1.05,53.01,55.66]
[]
[]
[]
[null,"Código","Banco","Descrição","Tipo",null,"Und","Quant.","Valor Unit","Total"]
["Composição"," 92803 ","SINAPI","CORTE E DOBRA DE AÇO CA-50, DIÂMETRO DE 10,0 MM. AF_06/2022","FUES - FUNDAÇÕES E ESTRUTURAS",null,"KG",1,10.76,10.76]
["Composição Auxiliar"," 88238 ","SINAPI","AJUDANTE DE ARMADOR COM ENCARGOS COMPLEMENTARES","SEDI - SERVIÇOS DIVERSOS",null,"H",1.4E-3,20.69,0.02]
["Composição Auxiliar"," 88245 ","SINAPI","ARMADOR COM ENCARGOS COMPLEMENTARES","SEDI - SERVIÇOS DIVERSOS",null,"H",8.8000000000000005E-3,25.94,0.22]
["Insumo"," 00000034 ","SINAPI","ACO CA-50, 10,0 MM, VERGALHAO","Material",null,"KG",1.1100000000000001,9.48,10.52]
[]
[]
[]
[null,"Código","Banco","Descrição","Tipo",null,"Und","Quant.","Valor Unit","Total"]
["Composição"," 92801 ","SINAPI","CORTE E DOBRA DE AÇO CA-50, DIÂMETRO DE 6,3 MM. AF_06/2022","FUES - FUNDAÇÕES E ESTRUTURAS",null,"KG",1,11.6,11.6]
["Composição Auxiliar"," 88238 ","SINAPI","AJUDANTE DE ARMADOR COM ENCARGOS COMPLEMENTARES","SEDI - SERVIÇOS DIVERSOS",null,"H",5.1000000000000004E-3,20.69,0.1]
["Composição Auxiliar"," 88245 ","SINAPI","ARMADOR COM ENCARGOS COMPLEMENTARES","SEDI - SERVIÇOS DIVERSOS",null,"H",3.1E-2,25.94,0.8]
["Insumo"," 00000032 ","SINAPI","ACO CA-50, 6,3 MM, VERGALHAO","Material",null,"KG",1.07,10,10.7]
[]
[]
[]
[null,"Código","Banco","Descrição","Tipo",null,"Und","Quant.","Valor Unit","Total"]
["Composição"," 92800 ","SINAPI","CORTE E DOBRA DE AÇO CA-60, DIÂMETRO DE 5,0 MM. AF_06/2022","FUES - FUNDAÇÕES E ESTRUTURAS",null,"KG",1,11.28,11.28]
["Composição Auxiliar"," 88238 ","SINAPI","AJUDANTE DE ARMADOR COM ENCARGOS COMPLEMENTARES","SEDI - SERVIÇOS DIVERSOS",null,"H",9.4999999999999998E-3,20.69,0.19]
["Composição Auxiliar"," 88245 ","SINAPI","ARMADOR COM ENCARGOS COMPLEMENTARES","SEDI - SERVIÇOS DIVERSOS",null,"H",5.8099999999999999E-2,25.94,1.5]
["Insumo"," 00043059 ","SINAPI","ACO CA-60, 4,2 MM, OU 5,0 MM, OU 6,0 MM, OU 7,0 MM, VERGALHAO","Material",null,"KG",1.07,8.9700000000000006,9.59]
[]
[]
[]
[null,"Código","Banco","Descrição","Tipo",null,"Und","Quant.","Valor Unit","Total"]
["Composição"," 95308 ","SINAPI","CURSO DE CAPACITAÇÃO PARA AJUDANTE DE ARMADOR (ENCARGOS COMPLEMENTARES) - HORISTA","SEDI - SERVIÇOS DIVERSOS",null,"H",1,0.18,0.18]
["Insumo"," 00006114 ","SINAPI","AJUDANTE DE ARMADOR","Mão de Obra",null,"H",1.328E-2,13.94,0.18]
[]
[]
[]
[null,"Código","Banco","Descrição","Tipo",null,"Und","Quant.","Valor Unit","Total"]
["Composição"," 95309 ","SINAPI","CURSO DE CAPACITAÇÃO PARA AJUDANTE DE CARPINTEIRO (ENCARGOS COMPLEMENTARES) - HORISTA","SEDI - SERVIÇOS DIVERSOS",null,"H",1,0.23,0.23]
["Insumo"," 00006117 ","SINAPI","CARPINTEIRO AUXILIAR","Mão de Obra",null,"H",1.6990000000000002E-2,13.94,0.23]
[]
[]
[]
[null,"Código","Banco","Descrição","Tipo",null,"Und","Quant.","Valor Unit","Total"]
["Composição"," 95314 ","SINAPI","CURSO DE CAPACITAÇÃO PARA ARMADOR (ENCARGOS COMPLEMENTARES) - HORISTA","SEDI - SERVIÇOS DIVERSOS",null,"H",1,0.25,0.25]
["Insumo"," 00000378 ","SINAPI","ARMADOR","Mão de Obra",null,"H",1.328E-2,19.12,0.25]
[]
[]
[]
[null,"Código","Banco","Descrição","Tipo",null,"Und","Quant.","Valor Unit","Total"]
["Composição"," 95316 ","SINAPI","CURSO DE CAPACITAÇÃO PARA AUXILIAR DE ELETRICISTA (ENCARGOS COMPLEMENTARES) - HORISTA","SEDI - SERVIÇOS DIVERSOS",null,"H",1,0.59,0.59]
["Insumo"," 00000247 ","SINAPI","AJUDANTE DE ELETRICISTA","Mão de Obra",null,"H",4.2970000000000001E-2,13.94,0.59]
[]
[]
[]
[null,"Código","Banco","Descrição","Tipo",null,"Und","Quant.","Valor Unit","Total"]
["Composição"," 95317 ","SINAPI","CURSO DE CAPACITAÇÃO PARA AUXILIAR DE ENCANADOR OU BOMBEIRO HIDRÁULICO (ENCARGOS COMPLEMENTARES) - HORISTA","SEDI - SERVIÇOS DIVERSOS",null,"H",1,0.28000000000000003,0.28000000000000003]
["Insumo"," 00000246 ","SINAPI","AUXILIAR DE ENCANADOR OU BOMBEIRO HIDRAULICO","Mão de Obra",null,"H",2.07E-2,13.94,0.28000000000000003]
[]
[]
[]
[null,"Código","Banco","Descrição","Tipo",null,"Und","Quant.","Valor Unit","Total"]
["Composição"," 95330 ","SINAPI","CURSO DE CAPACITAÇÃO PARA CARPINTEIRO DE FÔRMAS (ENCARGOS COMPLEMENTARES) - HORISTA","SEDI - SERVIÇOS DIVERSOS",null,"H",1,0.25,0.25]
["Insumo"," 00001213 ","SINAPI","CARPINTEIRO DE FORMAS","Mão de Obra",null,"H",1.328E-2,19.12,0.25]
[]
[]
[]
[null,"Código","Banco","Descrição","Tipo",null,"Und","Quant.","Valor Unit","Total"]
["Composição"," 95332 ","SINAPI","CURSO DE CAPACITAÇÃO PARA ELETRICISTA (ENCARGOS COMPLEMENTARES) - HORISTA","SEDI - SERVIÇOS DIVERSOS",null,"H",1,0.82,0.82]
["Insumo"," 00002436 ","SINAPI","ELETRICISTA","Mão de Obra",null,"H",4.2970000000000001E-2,19.12,0.82]
[]
[]
[]
[null,"Código","Banco","Descrição","Tipo",null,"Und","Quant.","Valor Unit","Total"]
["Composição"," 95335 ","SINAPI","CURSO DE CAPACITAÇÃO PARA ENCANADOR OU BOMBEIRO HIDRÁULICO (ENCARGOS COMPLEMENTARES) - HORISTA","SEDI - SERVIÇOS DIVERSOS",null,"H",1,0.39,0.39]
["Insumo"," 00002696 ","SINAPI","ENCANADOR OU BOMBEIRO HIDRAULICO","Mão de Obra",null,"H",2.07E-2,19.12,0.39]
[]
[]
[]
[null,"Código","Banco","Descrição","Tipo",null,"Und","Quant.","Valor Unit","Total"]
["Composição"," 95401 ","SINAPI","CURSO DE CAPACITAÇÃO PARA ENCARREGADO GERAL (ENCARGOS COMPLEMENTARES) - HORISTA","SEDI - SERVIÇOS DIVERSOS",null,"H",1,0.69,0.69]
["Insumo"," 00004083 ","SINAPI","ENCARREGADO GERAL DE OBRAS","Mão de Obra",null,"H",2.4420000000000001E-2,28.5,0.69]
[]
[]
[]
[null,"Código","Banco","Descrição","Tipo",null,"Und","Quant.","Valor Unit","Total"]
["Composição"," 95402 ","SINAPI","CURSO DE CAPACITAÇÃO PARA ENGENHEIRO CIVIL DE OBRA JÚNIOR (ENCARGOS COMPLEMENTARES) - HORISTA","SEDI - SERVIÇOS DIVERSOS",null,"H",1,1.96,1.96]
["Insumo"," 00002706 ","SINAPI","ENGENHEIRO CIVIL DE OBRA JUNIOR","Mão de Obra",null,"H",1.6990000000000002E-2,115.94,1.96]
[]
[]
[]
[null,"Código","Banco","Descrição","Tipo",null,"Und","Quant.","Valor Unit","Total"]
["Composição"," 95346 ","SINAPI","CURSO DE CAPACITAÇÃO PARA MOTORISTA DE BASCULANTE (ENCARGOS COMPLEMENTARES) - HORISTA","SEDI - SERVIÇOS DIVERSOS",null,"H",1,0.14000000000000001,0.14000000000000001]
["Insumo"," 00020020 ","SINAPI","MOTORISTA DE CAMINHAO-BASCULANTE","Mão de Obra",null,"H",5.8599999999999998E-3,25.07,0.14000000000000001]
[]
[]
[]
[null,"Código","Banco","Descrição","Tipo",null,"Und","Quant.","Valor Unit","Total"]
["Composição"," 95347 ","SINAPI","CURSO DE CAPACITAÇÃO PARA MOTORISTA DE CAMINHÃO (ENCARGOS COMPLEMENTARES) - HORISTA","SEDI - SERVIÇOS DIVERSOS",null,"H",1,0.14000000000000001,0.14000000000000001]
["Insumo"," 00004093 ","SINAPI","MOTORISTA DE CAMINHAO","Mão de Obra",null,"H",5.8599999999999998E-3,24.14,0.14000000000000001]
[]
[]
[]
[null,"Código","Banco","Descrição","Tipo",null,"Und","Quant.","Valor Unit","Total"]
["Composição"," 95351 ","SINAPI","CURSO DE CAPACITAÇÃO PARA MOTORISTA OPERADOR DE MUNCK (ENCARGOS COMPLEMENTARES) - HORISTA","SEDI - SERVIÇOS DIVERSOS",null,"H",1,0.47,0.47]
["Insumo"," 00004096 ","SINAPI","MOTORISTA OPERADOR DE CAMINHAO COM MUNCK","Mão de Obra",null,"H",1.8849999999999999E-2,25.37,0.47]
[]
[]
[]
[null,"Código","Banco","Descrição","Tipo",null,"Und","Quant.","Valor Unit","Total"]
["Composição"," 95389 ","SINAPI","CURSO DE CAPACITAÇÃO PARA OPERADOR DE BETONEIRA ESTACIONÁRIA/MISTURADOR (ENCARGOS COMPLEMENTARES) - HORISTA","SEDI - SERVIÇOS DIVERSOS",null,"H",1,0.17,0.17]
["Insumo"," 00037666 ","SINAPI","OPERADOR DE BETONEIRA ESTACIONARIA / MISTURADOR","Mão de Obra",null,"H",9.5700000000000004E-3,18.29,0.17]
[]
[]
[]
[null,"Código","Banco","Descrição","Tipo",null,"Und","Quant.","Valor Unit","Total"]
["Composição"," 95360 ","SINAPI","CURSO DE CAPACITAÇÃO PARA OPERADOR DE MÁQUINAS E EQUIPAMENTOS (ENCARGOS COMPLEMENTARES) - HORISTA","SEDI - SERVIÇOS DIVERSOS",null,"H",1,0.3,0.3]
["Insumo"," 00004230 ","SINAPI","OPERADOR DE MAQUINAS E TRATORES DIVERSOS (TERRAPLANAGEM)","Mão de Obra",null,"H",1.328E-2,23.18,0.3]
[]
[]
[]
[null,"Código","Banco","Descrição","Tipo",null,"Und","Quant.","Valor Unit","Total"]
["Composição"," 95371 ","SINAPI","CURSO DE CAPACITAÇÃO PARA PEDREIRO (ENCARGOS COMPLEMENTARES) - HORISTA","SEDI - SERVIÇOS DIVERSOS",null,"H",1,0.46,0.46]
["Insumo"," 00004750 ","SINAPI","PEDREIRO","Mão de Obra",null,"H",2.4420000000000001E-2,19.12,0.46]
[]
[]
[]
[null,"Código","Banco","Descrição","Tipo",null,"Und","Quant.","Valor Unit","Total"]
["Composição"," 95372 ","SINAPI","CURSO DE CAPACITAÇÃO PARA PINTOR (ENCARGOS COMPLEMENTARES) - HORISTA","SEDI - SERVIÇOS DIVERSOS",null,"H",1,0.32,0.32]
["Insumo"," 00004783 ","SINAPI","PINTOR","Mão de Obra",null,"H",1.6990000000000002E-2,19.12,0.32]
[]
[]
[]
[null,"Código","Banco","Descrição","Tipo",null,"Und","Quant.","Valor Unit","Total"]
["Composição"," 95378 ","SINAPI","CURSO DE CAPACITAÇÃO PARA SERVENTE (ENCARGOS COMPLEMENTARES) - HORISTA","SEDI - SERVIÇOS DIVERSOS",null,"H",1,0.33,0.33]
["Insumo"," 00006111 ","SINAPI","SERVENTE DE OBRAS","Mão de Obra",null,"H",2.4420000000000001E-2,13.64,0.33]
[]
[]
[]
[null,"Código","Banco","Descrição","Tipo",null,"Und","Quant.","Valor Unit","Total"]
["Composição"," 95379 ","SINAPI","CURSO DE CAPACITAÇÃO PARA SOLDADOR (ENCARGOS COMPLEMENTARES) - HORISTA","SEDI - SERVIÇOS DIVERSOS",null,"H",1,0.25,0.25]
["Insumo"," 00006160 ","SINAPI","SOLDADOR","Mão de Obra",null,"H",1.328E-2,19.12,0.25]
[]
[]
[]
[null,"Código","Banco","Descrição","Tipo",null,"Und","Quant.","Valor Unit","Total"]
["Composição"," 91922 ","SINAPI","CURVA 180 GRAUS PARA ELETRODUTO, PVC, ROSCÁVEL, DN 40 MM (1 1/4\"), PARA CIRCUITOS TERMINAIS, INSTALADA EM PAREDE - FORNECIMENTO E INSTALAÇÃO. AF_12/2015","INEL - INSTALAÇÃO ELÉTRICA/ELETRIFICAÇÃO E ILUMINAÇÃO EXTERNA",null,"UN",1,21.14,21.14]
["Composição Auxiliar"," 88247 ","SINAPI","AUXILIAR DE ELETRICISTA COM ENCARGOS COMPLEMENTARES","SEDI - SERVIÇOS DIVERSOS",null,"H",0.36499999999999999,21.09,7.69]
["Composição Auxiliar"," 88264 ","SINAPI","ELETRICISTA COM ENCARGOS COMPLEMENTARES","SEDI - SERVIÇOS DIVERSOS",null,"H",0.36499999999999999,26.5,9.67]
["Insumo"," 00040408 ","SINAPI","CURVA 180 GRAUS, DE PVC RIGIDO ROSCAVEL, DE 1 1/4\", PARA ELETRODUTO","Material",null,"UN",1,3.78,3.78]
[]
[]
[]
[null,"Código","Banco","Descrição","Tipo",null,"Und","Quant.","Valor Unit","Total"]
["Composição"," 91920 ","SINAPI","CURVA 90 GRAUS PARA ELETRODUTO, PVC, ROSCÁVEL, DN 40 MM (1 1/4\"), PARA CIRCUITOS TERMINAIS, INSTALADA EM PAREDE - FORNECIMENTO E INSTALAÇÃO. AF_12/2015","INEL - INSTALAÇÃO ELÉTRICA/ELETRIFICAÇÃO E ILUMINAÇÃO EXTERNA",null,"UN",1,19.95,19.95]
["Composição Auxiliar"," 88247 ","SINAPI","AUXILIAR DE ELETRICISTA COM ENCARGOS COMPLEMENTARES","SEDI - SERVIÇOS DIVERSOS",null,"H",0.36499999999999999,21.09,7.69]
["Composição Auxiliar"," 88264 ","SINAPI","ELETRICISTA COM ENCARGOS COMPLEMENTARES","SEDI - SERVIÇOS DIVERSOS",null,"H",0.36499999999999999,26.5,9.67]
["Insumo"," 00001874 ","SINAPI","CURVA 90 GRAUS, LONGA, DE PVC RIGIDO ROSCAVEL, DE 1 1/4\", PARA ELETRODUTO","Material",null,"UN",1,2.59,2.59]
[]
[]
[]
[null,"Código","Banco","Descrição","Tipo",null,"Und","Quant.","Valor Unit","Total"]
["Composição"," 124 ","ORSE","Concreto simples fabricado na obra, fck=13,5 mpa (b1/b2), sem lançamento e adensamento","Concreto Simples",null,"m³",1,517.72,517.72]
["Composição Auxiliar"," 10549 ","ORSE","Encargos Complementares - Servente","Provisórios",null,"h",6,3.79,22.74]
["Insumo"," 00000367/SINAPI ","ORSE","Areia grossa - posto jazida/fornecedor (retirado na jazida,sem transporte)","Material",null,"m³",0.94299999999999995,111.43,105.07]
["Insumo"," 00001379/SINAPI ","ORSE","Cimento portland composto cp ii-32","Material",null,"kg",255,0.78,198.9]
["Insumo"," 00004718/SINAPI ","ORSE","Pedra britada n. 2 (19 a 38 mm) posto pedreira/fornecedor, sem frete","Material",null,"m³",0.627,130.69999999999999,81.94]
["Insumo"," 00004721/SINAPI ","ORSE","Pedra britada n. 1 (9,5 a 19 mm) posto pedreira/fornecedor,sem frete","Material",null,"m³",0.20899999999999999,130.01,27.17]
["Insumo"," 00006111/SINAPI ","ORSE","Servente de obras (horista)","Mão de Obra",null,"h",6,13.65,81.900000000000006]
[]
[]
[]
[null,"Código","Banco","Descrição","Tipo",null,"Und","Quant.","Valor Unit","Total"]
["Composição"," 95 ","ORSE","Concreto simples fabricado na obra, fck=13,5 mpa, lançado e adensado","Alvenarias de Pedra e Concretos para Fundações",null,"m³",1,566.41999999999996,566.41999999999996]
["Composição Auxiliar"," 124 ","ORSE","Concreto simples fabricado na obra, fck=13,5 mpa (b1/b2), sem lançamento e adensamento","Concreto Simples",null,"m³",1,517.72,517.72]
["Composição Auxiliar"," 7692 ","ORSE","Lançamento de concreto simples fabricado na obra, inclusive adensamento e acabamento em peças da superestrutura","Concreto Simples",null,"m³",1,48.7,48.7]
[]
[]
[]
[null,"Código","Banco","Descrição","Tipo",null,"Und","Quant.","Valor Unit","Total"]
["Composição"," 9398 ","ORSE","Concreto simples fck= 25 MPA (b1/b2), fabricado na obra, sem lançamento e adensamento","Concreto Simples",null,"m³",1,578.07000000000005,578.07000000000005]
["Composição Auxiliar"," 10549 ","ORSE","Encargos Complementares - Servente","Provisórios",null,"h",6,3.79,22.74]
["Insumo"," 00000367/SINAPI ","ORSE","Areia grossa - posto jazida/fornecedor (retirado na jazida,sem transporte)","Material",null,"m³",0.59,111.43,65.739999999999995]
["Insumo"," 00001379/SINAPI ","ORSE","Cimento portland composto cp ii-32","Material",null,"kg",390,0.78,304.2]
["Insumo"," 00004718/SINAPI ","ORSE","Pedra britada n. 2 (19 a 38 mm) posto pedreira/fornecedor, sem frete","Material",null,"m³",0.39700000000000002,130.69999999999999,51.88]
["Insumo"," 00004721/SINAPI ","ORSE","Pedra britada n. 1 (9,5 a 19 mm) posto pedreira/fornecedor,sem frete","Material",null,"m³",0.39700000000000002,130.01,51.61]
["Insumo"," 00006111/SINAPI ","ORSE","Servente de obras (horista)","Mão de Obra",null,"h",6,13.65,81.900000000000006]
[]
[]
[]
[null,"Código","Banco","Descrição","Tipo",null,"Und","Quant.","Valor Unit","Total"]
["Composição"," 96 ","ORSE","Concreto simples usinado fck=15mpa, bombeado, lançado e adensado em superestrura","Alvenarias de Pedra e Concretos para Fundações",null,"m³",1,526.79999999999995,526.79999999999995]
["Composição Auxiliar"," 128 ","ORSE","Lançamento de concreto usinado, bombeado, em peças armadas da superestrutura, inclusive colocação, adensamento e acabamento","Concreto Simples",null,"m³",1,48.7,48.7]
["Insumo"," 00044535/SINAPI ","ORSE","Servico de bombeamento de concreto com consumo minimo de 40m3, (disponibilizacao de bomba), sem o lancamento","Material",null,"m³",1,46.26,46.26]
["Insumo"," 634 ","ORSE","Concreto usinado bombeavel b0-b1 fck=15mpa","Material",null,"m³",1,431.84,431.84]
[]
[]
[]
[null,"Código","Banco","Descrição","Tipo",null,"Und","Quant.","Valor Unit","Total"]
["Composição"," 93659 ","SINAPI","DISJUNTOR MONOPOLAR TIPO DIN, CORRENTE NOMINAL DE 50A - FORNECIMENTO E INSTALAÇÃO. AF_10/2020","INEL - INSTALAÇÃO ELÉTRICA/ELETRIFICAÇÃO E ILUMINAÇÃO EXTERNA",null,"UN",1,22.27,22.27]
["Composição Auxiliar"," 88247 ","SINAPI","AUXILIAR DE ELETRICISTA COM ENCARGOS COMPLEMENTARES","SEDI - SERVIÇOS DIVERSOS",null,"H",0.18920000000000001,21.09,3.99]
["Composição Auxiliar"," 88264 ","SINAPI","ELETRICISTA COM ENCARGOS COMPLEMENTARES","SEDI - SERVIÇOS DIVERSOS",null,"H",0.18920000000000001,26.5,5.01]
["Insumo"," 00001575 ","SINAPI","TERMINAL A COMPRESSAO EM COBRE ESTANHADO PARA CABO 16 MM2, 1 FURO E 1 COMPRESSAO, PARA PARAFUSO DE FIXACAO M6","Material",null,"UN",1,1.82,1.82]
["Insumo"," 00034686 ","SINAPI","DISJUNTOR TIPO DIN / IEC, MONOPOLAR DE 40  ATE 50A","Material",null,"UN",1,11.45,11.45]
[]
[]
[]
[null,"Código","Banco","Descrição","Tipo",null,"Und","Quant.","Valor Unit","Total"]
["Composição"," 88264 ","SINAPI","ELETRICISTA COM ENCARGOS COMPLEMENTARES","SEDI - SERVIÇOS DIVERSOS",null,"H",1,26.5,26.5]
["Composição Auxiliar"," 95332 ","SINAPI","CURSO DE CAPACITAÇÃO PARA ELETRICISTA (ENCARGOS COMPLEMENTARES) - HORISTA","SEDI - SERVIÇOS DIVERSOS",null,"H",1,0.82,0.82]
["Insumo"," 00002436 ","SINAPI","ELETRICISTA","Mão de Obra",null,"H",1,19.12,19.12]
["Insumo"," 00037370 ","SINAPI","ALIMENTACAO - HORISTA (COLETADO CAIXA)","Outros",null,"H",1,2.39,2.39]
["Insumo"," 00037371 ","SINAPI","TRANSPORTE - HORISTA (COLETADO CAIXA)","Serviços",null,"H",1,0.74,0.74]
["Insumo"," 00037372 ","SINAPI","EXAMES - HORISTA (COLETADO CAIXA)","Outros",null,"H",1,1.34,1.34]
["Insumo"," 00037373 ","SINAPI","SEGURO - HORISTA (COLETADO CAIXA)","Taxas",null,"H",1,0.04,0.04]
["Insumo"," 00043460 ","SINAPI","FERRAMENTAS - FAMILIA ELETRICISTA - HORISTA (ENCARGOS COMPLEMENTARES - COLETADO CAIXA)","Equipamento",null,"H",1,0.85,0.85]
["Insumo"," 00043484 ","SINAPI","EPI - FAMILIA ELETRICISTA - HORISTA (ENCARGOS COMPLEMENTARES - COLETADO CAIXA)","Equipamento",null,"H",1,1.2,1.2]
[]
[]
[]
[null,"Código","Banco","Descrição","Tipo",null,"Und","Quant.","Valor Unit","Total"]
["Composição"," 91873 ","SINAPI","ELETRODUTO RÍGIDO ROSCÁVEL, PVC, DN 40 MM (1 1/4\"), PARA CIRCUITOS TERMINAIS, INSTALADO EM PAREDE - FORNECIMENTO E INSTALAÇÃO. AF_12/2015","INEL - INSTALAÇÃO ELÉTRICA/ELETRIFICAÇÃO E ILUMINAÇÃO EXTERNA",null,"M",1,19.100000000000001,19.100000000000001]
["Composição Auxiliar"," 88247 ","SINAPI","AUXILIAR DE ELETRICISTA COM ENCARGOS COMPLEMENTARES","SEDI - SERVIÇOS DIVERSOS",null,"H",0.219,21.09,4.6100000000000003]
["Composição Auxiliar"," 88264 ","SINAPI","ELETRICISTA COM ENCARGOS COMPLEMENTARES","SEDI - SERVIÇOS DIVERSOS",null,"H",0.219,26.5,5.8]
["Insumo"," 00002684 ","SINAPI","ELETRODUTO DE PVC RIGIDO ROSCAVEL DE 1 1/4 \", SEM LUVA","Material",null,"M",1.0169999999999999,8.5500000000000007,8.69]
[]
[]
[]
[null,"Código","Banco","Descrição","Tipo",null,"Und","Quant.","Valor Unit","Total"]
["Composição"," 88267 ","SINAPI","ENCANADOR OU BOMBEIRO HIDRÁULICO COM ENCARGOS COMPLEMENTARES","SEDI - SERVIÇOS DIVERSOS",null,"H",1,25.39,25.39]
["Composição Auxiliar"," 95335 ","SINAPI","CURSO DE CAPACITAÇÃO PARA ENCANADOR OU BOMBEIRO HIDRÁULICO (ENCARGOS COMPLEMENTARES) - HORISTA","SEDI - SERVIÇOS DIVERSOS",null,"H",1,0.39,0.39]
["Insumo"," 00002696 ","SINAPI","ENCANADOR OU BOMBEIRO HIDRAULICO","Mão de Obra",null,"H",1,19.12,19.12]
["Insumo"," 00037370 ","SINAPI","ALIMENTACAO - HORISTA (COLETADO CAIXA)","Outros",null,"H",1,2.39,2.39]
["Insumo"," 00037371 ","SINAPI","TRANSPORTE - HORISTA (COLETADO CAIXA)","Serviços",null,"H",1,0.74,0.74]
["Insumo"," 00037372 ","SINAPI","EXAMES - HORISTA (COLETADO CAIXA)","Outros",null,"H",1,1.34,1.34]
["Insumo"," 00037373 ","SINAPI","SEGURO - HORISTA (COLETADO CAIXA)","Taxas",null,"H",1,0.04,0.04]
["Insumo"," 00043461 ","SINAPI","FERRAMENTAS - FAMILIA ENCANADOR - HORISTA (ENCARGOS COMPLEMENTARES - COLETADO CAIXA)","Equipamento",null,"H",1,0.31,0.31]
["Insumo"," 00043485 ","SINAPI","EPI - FAMILIA ENCANADOR - HORISTA (ENCARGOS COMPLEMENTARES - COLETADO CAIXA)","Equipamento",null,"H",1,1.06,1.06]
[]
[]
[]
[null,"Código","Banco","Descrição","Tipo",null,"Und","Quant.","Valor Unit","Total"]
["Composição"," 90776 ","SINAPI","ENCARREGADO GERAL COM ENCARGOS COMPLEMENTARES","SEDI - SERVIÇOS DIVERSOS",null,"H",1,31.92,31.92]
["Composição Auxiliar"," 95401 ","SINAPI","CURSO DE CAPACITAÇÃO PARA ENCARREGADO GERAL (ENCARGOS COMPLEMENTARES) - HORISTA","SEDI - SERVIÇOS DIVERSOS",null,"H",1,0.69,0.69]
["Insumo"," 00004083 ","SINAPI","ENCARREGADO GERAL DE OBRAS","Mão de Obra",null,"H",1,28.5,28.5]
["Insumo"," 00037372 ","SINAPI","EXAMES - HORISTA (COLETADO CAIXA)","Outros",null,"H",1,1.34,1.34]
["Insumo"," 00037373 ","SINAPI","SEGURO - HORISTA (COLETADO CAIXA)","Taxas",null,"H",1,0.04,0.04]
["Insumo"," 00043463 ","SINAPI","FERRAMENTAS - FAMILIA ENCARREGADO GERAL - HORISTA (ENCARGOS COMPLEMENTARES - COLETADO CAIXA)","Equipamento",null,"H",1,0.1,0.1]
["Insumo"," 00043487 ","SINAPI","EPI - FAMILIA ENCARREGADO GERAL - HORISTA (ENCARGOS COMPLEMENTARES - COLETADO CAIXA)","Equipamento",null,"H",1,1.25,1.25]
[]
[]
[]
[null,"Código","Banco","Descrição","Tipo",null,"Und","Quant.","Valor Unit","Total"]
["Composição"," 90777 ","SINAPI","ENGENHEIRO CIVIL DE OBRA JUNIOR COM ENCARGOS COMPLEMENTARES","SEDI - SERVIÇOS DIVERSOS",null,"H",1,120.03,120.03]
["Composição Auxiliar"," 95402 ","SINAPI","CURSO DE CAPACITAÇÃO PARA ENGENHEIRO CIVIL DE OBRA JÚNIOR (ENCARGOS COMPLEMENTARES) - HORISTA","SEDI - SERVIÇOS DIVERSOS",null,"H",1,1.96,1.96]
["Insumo"," 00002706 ","SINAPI","ENGENHEIRO CIVIL DE OBRA JUNIOR","Mão de Obra",null,"H",1,115.94,115.94]
["Insumo"," 00037372 ","SINAPI","EXAMES - HORISTA (COLETADO CAIXA)","Outros",null,"H",1,1.34,1.34]
["Insumo"," 00037373 ","SINAPI","SEGURO - HORISTA (COLETADO CAIXA)","Taxas",null,"H",1,0.04,0.04]
["Insumo"," 00043462 ","SINAPI","FERRAMENTAS - FAMILIA ENGENHEIRO CIVIL - HORISTA (ENCARGOS COMPLEMENTARES - COLETADO CAIXA)","Equipamento",null,"H",1,0.01,0.01]
["Insumo"," 00043486 ","SINAPI","EPI - FAMILIA ENGENHEIRO CIVIL - HORISTA (ENCARGOS COMPLEMENTARES - COLETADO CAIXA)","Equipamento",null,"H",1,0.74,0.74]
[]
[]
[]
[null,"Código","Banco","Descrição","Tipo",null,"Und","Quant.","Valor Unit","Total"]
["Composição"," 10555 ","ORSE","Encargos Complementares - Armador","Provisórios",null,"h",1,3.63,3.63]
["Insumo"," 158 ","ORSE","Almoço (Participação do empregador)","Material",null,"un",0.1018,14,1.42]
["Insumo"," 941 ","ORSE","Fardamento com mangas curta","Material",null,"un",1.5E-3,190.35,0.28000000000000003]
["Insumo"," 1651 ","ORSE","Óculos branco proteção","Material",null,"pr",8.0000000000000004E-4,6.35,0]
["Insumo"," 2378 ","ORSE","Vale transporte","Material",null,"un",6.54E-2,4.5,0.28999999999999998]
["Insumo"," 10362 ","ORSE","Seguro de vida e acidente em grupo","Serviços",null,"un",4.4999999999999997E-3,12.54,0.05]
["Insumo"," 10492 ","ORSE","Cesta Básica","Material",null,"un",4.4999999999999997E-3,190,0.85]
["Insumo"," 10517 ","ORSE","Exames admissionais/demissionais (checkup)","Serviços",null,"cj",4.0000000000000002E-4,300,0.12]
["Insumo"," 10585 ","ORSE","Arco de serra","Material",null,"un",2.0000000000000001E-4,19.899999999999999,0]
["Insumo"," 10586 ","ORSE","Torquesa","Material",null,"un",2.0000000000000001E-4,36.9,0]
["Insumo"," 10596 ","ORSE","Protetor auricular","Material",null,"un",4.4999999999999997E-3,4.9000000000000004,0.02]
["Insumo"," 10599 ","ORSE","Protetor solar fps 30 com 120ml","Material",null,"un",1.8E-3,18,0.03]
["Insumo"," 10761 ","ORSE","Refeição - café da manhã ( café com leite e dois pães com manteiga)","Serviços",null,"un",0.1018,5,0.5]
["Insumo"," 00012892/SINAPI ","ORSE","Luva raspa de couro, cano curto (punho *7* cm)","Material",null,"par",2.3E-3,12.15,0.02]
["Insumo"," 00012893/SINAPI ","ORSE","Bota de seguranca com biqueira de aco e colarinho acolchoado","Material",null,"par",8.0000000000000004E-4,64.8,0.05]
["Insumo"," 00012894/SINAPI ","ORSE","Capa para chuva em pvc com forro de poliester, com capuz (amarela ou azul)","Material",null,"un",2.0000000000000001E-4,17.55,0]
["Insumo"," 00012895/SINAPI ","ORSE","Capacete de seguranca aba frontal com suspensao de polietileno, sem jugular (classe b)","Material",null,"un",5.9999999999999995E-4,13.5,0]
[]
[]
[]
[null,"Código","Banco","Descrição","Tipo",null,"Und","Quant.","Valor Unit","Total"]
["Composição"," 10551 ","ORSE","Encargos Complementares - Carpinteiro","Provisórios",null,"h",1,3.69,3.69]
["Insumo"," 158 ","ORSE","Almoço (Participação do empregador)","Material",null,"un",0.1018,14,1.42]
["Insumo"," 941 ","ORSE","Fardamento com mangas curta","Material",null,"un",1.5E-3,190.35,0.28000000000000003]
["Insumo"," 1651 ","ORSE","Óculos branco proteção","Material",null,"pr",6.9999999999999999E-4,6.35,0]
["Insumo"," 2378 ","ORSE","Vale transporte","Material",null,"un",6.54E-2,4.5,0.28999999999999998]
["Insumo"," 10362 ","ORSE","Seguro de vida e acidente em grupo","Serviços",null,"un",4.4999999999999997E-3,12.54,0.05]
["Insumo"," 10492 ","ORSE","Cesta Básica","Material",null,"un",4.4999999999999997E-3,190,0.85]
["Insumo"," 10517 ","ORSE","Exames admissionais/demissionais (checkup)","Serviços",null,"cj",4.0000000000000002E-4,300,0.12]
["Insumo"," 10577 ","ORSE","Serrote 40cm","Material",null,"un",1E-4,29.9,0]
["Insumo"," 10578 ","ORSE","Formão grande","Material",null,"un",2.0000000000000001E-4,15.15,0]
["Insumo"," 10579 ","ORSE","Chave de fenda chata 30 cm","Material",null,"un",2.0000000000000001E-4,26.89,0]
["Insumo"," 10596 ","ORSE","Protetor auricular","Material",null,"un",4.4999999999999997E-3,4.9000000000000004,0.02]
["Insumo"," 10599 ","ORSE","Protetor solar fps 30 com 120ml","Material",null,"un",1.8E-3,18,0.03]
["Insumo"," 10761 ","ORSE","Refeição - café da manhã ( café com leite e dois pães com manteiga)","Serviços",null,"un",0.1018,5,0.5]
["Insumo"," 11244 ","ORSE","Martelo com unha","Material",null,"un",2.0000000000000001E-4,48.95,0]
["Insumo"," 11248 ","ORSE","Furadeira e Parafusadeira eletrica Bosch ou Similar profissional","Equipamento",null,"un",1E-4,246,0.02]
["Insumo"," 11249 ","ORSE","Serra circular eletrica portatil","Equipamento",null,"un",1E-4,518,0.05]
["Insumo"," 00012892/SINAPI ","ORSE","Luva raspa de couro, cano curto (punho *7* cm)","Material",null,"par",2.3E-3,12.15,0.02]
["Insumo"," 00012893/SINAPI ","ORSE","Bota de seguranca com biqueira de aco e colarinho acolchoado","Material",null,"par",6.9999999999999999E-4,64.8,0.04]
["Insumo"," 00012894/SINAPI ","ORSE","Capa para chuva em pvc com forro de poliester, com capuz (amarela ou azul)","Material",null,"un",2.0000000000000001E-4,17.55,0]
["Insumo"," 00012895/SINAPI ","ORSE","Capacete de seguranca aba frontal com suspensao de polietileno, sem jugular (classe b)","Material",null,"un",5.9999999999999995E-4,13.5,0]
[]
[]
[]
[null,"Código","Banco","Descrição","Tipo",null,"Und","Quant.","Valor Unit","Total"]
["Composição"," 10552 ","ORSE","Encargos Complementares - Eletricista","Provisórios",null,"h",1,3.65,3.65]
["Insumo"," 158 ","ORSE","Almoço (Participação do empregador)","Material",null,"un",0.1018,14,1.42]
["Insumo"," 941 ","ORSE","Fardamento com mangas curta","Material",null,"un",1.5E-3,190.35,0.28000000000000003]
["Insumo"," 1651 ","ORSE","Óculos branco proteção","Material",null,"pr",8.0000000000000004E-4,6.35,0]
["Insumo"," 2378 ","ORSE","Vale transporte","Material",null,"un",6.54E-2,4.5,0.28999999999999998]
["Insumo"," 10362 ","ORSE","Seguro de vida e acidente em grupo","Serviços",null,"un",4.4999999999999997E-3,12.54,0.05]
["Insumo"," 10492 ","ORSE","Cesta Básica","Material",null,"un",4.4999999999999997E-3,190,0.85]
["Insumo"," 10517 ","ORSE","Exames admissionais/demissionais (checkup)","Serviços",null,"cj",4.0000000000000002E-4,300,0.12]
["Insumo"," 10579 ","ORSE","Chave de fenda chata 30 cm","Material",null,"un",2.0000000000000001E-4,26.89,0]
["Insumo"," 10596 ","ORSE","Protetor auricular","Material",null,"un",4.4999999999999997E-3,4.9000000000000004,0.02]
["Insumo"," 10599 ","ORSE","Protetor solar fps 30 com 120ml","Material",null,"un",1.8E-3,18,0.03]
["Insumo"," 10761 ","ORSE","Refeição - café da manhã ( café com leite e dois pães com manteiga)","Serviços",null,"un",0.1018,5,0.5]
["Insumo"," 11240 ","ORSE","Alicate com isolamento","Material",null,"un",2.0000000000000001E-4,47.69,0]
["Insumo"," 11241 ","ORSE","Alicate volt-amperimetro","Material",null,"un",2.0000000000000001E-4,163,0.03]
["Insumo"," 11242 ","ORSE","Chave inglesa 12\"","Material",null,"un",1E-4,34,0]
["Insumo"," 00012892/SINAPI ","ORSE","Luva raspa de couro, cano curto (punho *7* cm)","Material",null,"par",2.3E-3,12.15,0.02]
["Insumo"," 00012893/SINAPI ","ORSE","Bota de seguranca com biqueira de aco e colarinho acolchoado","Material",null,"par",6.9999999999999999E-4,64.8,0.04]
["Insumo"," 00012894/SINAPI ","ORSE","Capa para chuva em pvc com forro de poliester, com capuz (amarela ou azul)","Material",null,"un",2.0000000000000001E-4,17.55,0]
["Insumo"," 00012895/SINAPI ","ORSE","Capacete de seguranca aba frontal com suspensao de polietileno, sem jugular (classe b)","Material",null,"un",5.9999999999999995E-4,13.5,0]
[]
[]
[]
[null,"Código","Banco","Descrição","Tipo",null,"Und","Quant.","Valor Unit","Total"]
["Composição"," 10550 ","ORSE","Encargos Complementares - Pedreiro","Provisórios",null,"h",1,3.66,3.66]
["Insumo"," 158 ","ORSE","Almoço (Participação do empregador)","Material",null,"un",0.1018,14,1.42]
["Insumo"," 941 ","ORSE","Fardamento com mangas curta","Material",null,"un",1.5E-3,190.35,0.28000000000000003]
["Insumo"," 1651 ","ORSE","Óculos branco proteção","Material",null,"pr",8.0000000000000004E-4,6.35,0]
["Insumo"," 2378 ","ORSE","Vale transporte","Material",null,"un",6.54E-2,4.5,0.28999999999999998]
["Insumo"," 4174 ","ORSE","Desempenadeira de aço lisa, cabo madeira, ref:143, Atlas ou similar","Material",null,"un",5.0000000000000001E-4,10.8,0]
["Insumo"," 4722 ","ORSE","Colher de pedreiro","Material",null,"un",4.0000000000000002E-4,18.8,0]
["Insumo"," 10282 ","ORSE","Regua de alumínio c/ 2,00m (para pedreiro)","Material",null,"un",2.0000000000000001E-4,40.799999999999997,0]
["Insumo"," 10362 ","ORSE","Seguro de vida e acidente em grupo","Serviços",null,"un",4.4999999999999997E-3,12.54,0.05]
["Insumo"," 10492 ","ORSE","Cesta Básica","Material",null,"un",4.4999999999999997E-3,190,0.85]
["Insumo"," 10517 ","ORSE","Exames admissionais/demissionais (checkup)","Serviços",null,"cj",4.0000000000000002E-4,300,0.12]
["Insumo"," 10596 ","ORSE","Protetor auricular","Material",null,"un",4.4999999999999997E-3,4.9000000000000004,0.02]
["Insumo"," 10599 ","ORSE","Protetor solar fps 30 com 120ml","Material",null,"un",1.8E-3,18,0.03]
["Insumo"," 10761 ","ORSE","Refeição - café da manhã ( café com leite e dois pães com manteiga)","Serviços",null,"un",0.1018,5,0.5]
["Insumo"," 10789 ","ORSE","Nível de bolha de madeira","Material",null,"un",2.0000000000000001E-4,15.4,0]
["Insumo"," 10790 ","ORSE","Prumo de face","Material",null,"un",1E-4,25.95,0]
["Insumo"," 11243 ","ORSE","Martelo sem unha","Material",null,"un",1E-4,28,0]
["Insumo"," 11245 ","ORSE","Desempoladeira de madeira 12x22","Material",null,"un",6.9999999999999999E-4,11.6,0]
["Insumo"," 11246 ","ORSE","Escala métrica de bambú","Material",null,"Un",6.9999999999999999E-4,10.220000000000001,0]
["Insumo"," 11247 ","ORSE","Serra mármore Serra marmore","Material",null,"un",1E-4,327.8,0.03]
["Insumo"," 11264 ","ORSE","Marreta de 1/2 kg com cabo","Material",null,"un",2.0000000000000001E-4,13.52,0]
["Insumo"," 11265 ","ORSE","Martelo de borracha com cabo","Material",null,"un",4.0000000000000002E-4,18.75,0]
["Insumo"," 00012892/SINAPI ","ORSE","Luva raspa de couro, cano curto (punho *7* cm)","Material",null,"par",2.3E-3,12.15,0.02]
["Insumo"," 00012893/SINAPI ","ORSE","Bota de seguranca com biqueira de aco e colarinho acolchoado","Material",null,"par",8.0000000000000004E-4,64.8,0.05]
["Insumo"," 00012894/SINAPI ","ORSE","Capa para chuva em pvc com forro de poliester, com capuz (amarela ou azul)","Material",null,"un",2.0000000000000001E-4,17.55,0]
["Insumo"," 00012895/SINAPI ","ORSE","Capacete de seguranca aba frontal com suspensao de polietileno, sem jugular (classe b)","Material",null,"un",5.9999999999999995E-4,13.5,0]
[]
[]
[]
[null,"Código","Banco","Descrição","Tipo",null,"Und","Quant.","Valor Unit","Total"]
["Composição"," 10594 ","ORSE","Encargos Complementares - Serralheiro ou Operador de Equipamento Leve","Provisórios",null,"h",1,3.63,3.63]
["Insumo"," 00012892/SINAPI ","ORSE","Luva raspa de couro, cano curto (punho *7* cm)","Material",null,"par",2.3E-3,12.15,0.02]
["Insumo"," 00012893/SINAPI ","ORSE","Bota de seguranca com biqueira de aco e colarinho acolchoado","Material",null,"par",8.0000000000000004E-4,64.8,0.05]
["Insumo"," 00012894/SINAPI ","ORSE","Capa para chuva em pvc com forro de poliester, com capuz (amarela ou azul)","Material",null,"un",2.0000000000000001E-4,17.55,0]
["Insumo"," 00012895/SINAPI ","ORSE","Capacete de seguranca aba frontal com suspensao de polietileno, sem jugular (classe b)","Material",null,"un",5.9999999999999995E-4,13.5,0]
["Insumo"," 10362 ","ORSE","Seguro de vida e acidente em grupo","Serviços",null,"un",4.4999999999999997E-3,12.54,0.05]
["Insumo"," 10492 ","ORSE","Cesta Básica","Material",null,"un",4.4999999999999997E-3,190,0.85]
["Insumo"," 10517 ","ORSE","Exames admissionais/demissionais (checkup)","Serviços",null,"cj",4.0000000000000002E-4,300,0.12]
["Insumo"," 10585 ","ORSE","Arco de serra","Material",null,"un",2.0000000000000001E-4,19.899999999999999,0]
["Insumo"," 10586 ","ORSE","Torquesa","Material",null,"un",2.0000000000000001E-4,36.9,0]
["Insumo"," 10596 ","ORSE","Protetor auricular","Material",null,"un",4.4999999999999997E-3,4.9000000000000004,0.02]
["Insumo"," 10599 ","ORSE","Protetor solar fps 30 com 120ml","Material",null,"un",1.8E-3,18,0.03]
["Insumo"," 10761 ","ORSE","Refeição - café da manhã ( café com leite e dois pães com manteiga)","Serviços",null,"un",0.1018,5,0.5]
["Insumo"," 158 ","ORSE","Almoço (Participação do empregador)","Material",null,"un",0.1018,14,1.42]
["Insumo"," 1651 ","ORSE","Óculos branco proteção","Material",null,"pr",8.0000000000000004E-4,6.35,0]
["Insumo"," 2378 ","ORSE","Vale transporte","Material",null,"un",6.54E-2,4.5,0.28999999999999998]
["Insumo"," 941 ","ORSE","Fardamento com mangas curta","Material",null,"un",1.5E-3,190.35,0.28000000000000003]
[]
[]
[]
[null,"Código","Banco","Descrição","Tipo",null,"Und","Quant.","Valor Unit","Total"]
["Composição"," 10549 ","ORSE","Encargos Complementares - Servente","Provisórios",null,"h",1,3.79,3.79]
["Insumo"," 158 ","ORSE","Almoço (Participação do empregador)","Material",null,"un",0.1018,14,1.42]
["Insumo"," 941 ","ORSE","Fardamento com mangas curta","Material",null,"un",1.5E-3,190.35,0.28000000000000003]
["Insumo"," 1651 ","ORSE","Óculos branco proteção","Material",null,"pr",8.0000000000000004E-4,6.35,0]
["Insumo"," 2378 ","ORSE","Vale transporte","Material",null,"un",9.4100000000000003E-2,4.5,0.42]
["Insumo"," 4728 ","ORSE","Talhadeira chata 10\" Talhadeira chara 10\"","Material",null,"un",2.9999999999999997E-4,18.579999999999998,0]
["Insumo"," 4729 ","ORSE","Marreta 1 kg com cabo","Material",null,"un",1E-4,31.5,0]
["Insumo"," 10362 ","ORSE","Seguro de vida e acidente em grupo","Serviços",null,"un",4.4999999999999997E-3,12.54,0.05]
["Insumo"," 10492 ","ORSE","Cesta Básica","Material",null,"un",4.4999999999999997E-3,190,0.85]
["Insumo"," 10517 ","ORSE","Exames admissionais/demissionais (checkup)","Serviços",null,"cj",4.0000000000000002E-4,300,0.12]
["Insumo"," 10596 ","ORSE","Protetor auricular","Material",null,"un",4.4999999999999997E-3,4.9000000000000004,0.02]
["Insumo"," 10599 ","ORSE","Protetor solar fps 30 com 120ml","Material",null,"un",1.8E-3,18,0.03]
["Insumo"," 10761 ","ORSE","Refeição - café da manhã ( café com leite e dois pães com manteiga)","Serviços",null,"un",0.1018,5,0.5]
["Insumo"," 10788 ","ORSE","Pá quadrada","Material",null,"un",2.0000000000000001E-4,36.9,0]
["Insumo"," 00002711/SINAPI ","ORSE","Carrinho de mao de aco capacidade 50 a 60 l, pneu com camara","Material",null,"un",2.0000000000000001E-4,180,0.03]
["Insumo"," 00012892/SINAPI ","ORSE","Luva raspa de couro, cano curto (punho *7* cm)","Material",null,"par",2.3E-3,12.15,0.02]
["Insumo"," 00012893/SINAPI ","ORSE","Bota de seguranca com biqueira de aco e colarinho acolchoado","Material",null,"par",8.0000000000000004E-4,64.8,0.05]
["Insumo"," 00012894/SINAPI ","ORSE","Capa para chuva em pvc com forro de poliester, com capuz (amarela ou azul)","Material",null,"un",2.0000000000000001E-4,17.55,0]
["Insumo"," 00012895/SINAPI ","ORSE","Capacete de seguranca aba frontal com suspensao de polietileno, sem jugular (classe b)","Material",null,"un",5.9999999999999995E-4,13.5,0]
[]
[]
[]
[null,"Código","Banco","Descrição","Tipo",null,"Und","Quant.","Valor Unit","Total"]
["Composição"," 10603 ","ORSE","Encargos Complementares - Soldador","Provisórios",null,"h",1,4.34,4.34]
["Insumo"," 00012892/SINAPI ","ORSE","Luva raspa de couro, cano curto (punho *7* cm)","Material",null,"par",2.3E-3,12.15,0.02]
["Insumo"," 00012893/SINAPI ","ORSE","Bota de seguranca com biqueira de aco e colarinho acolchoado","Material",null,"par",8.0000000000000004E-4,64.8,0.05]
["Insumo"," 00012894/SINAPI ","ORSE","Capa para chuva em pvc com forro de poliester, com capuz (amarela ou azul)","Material",null,"un",2.0000000000000001E-4,17.55,0]
["Insumo"," 00012895/SINAPI ","ORSE","Capacete de seguranca aba frontal com suspensao de polietileno, sem jugular (classe b)","Material",null,"un",5.9999999999999995E-4,13.5,0]
["Insumo"," 10362 ","ORSE","Seguro de vida e acidente em grupo","Serviços",null,"un",4.4999999999999997E-3,12.54,0.05]
["Insumo"," 10492 ","ORSE","Cesta Básica","Material",null,"un",4.4999999999999997E-3,190,0.85]
["Insumo"," 10517 ","ORSE","Exames admissionais/demissionais (checkup)","Serviços",null,"cj",4.0000000000000002E-4,300,0.12]
["Insumo"," 10596 ","ORSE","Protetor auricular","Material",null,"un",4.4999999999999997E-3,4.9000000000000004,0.02]
["Insumo"," 10599 ","ORSE","Protetor solar fps 30 com 120ml","Material",null,"un",1.8E-3,18,0.03]
["Insumo"," 10761 ","ORSE","Refeição - café da manhã ( café com leite e dois pães com manteiga)","Serviços",null,"un",0.1018,5,0.5]
["Insumo"," 11270 ","ORSE","Martelo de solda do tipo picareta, cabo de madeira, 300x0,4x0,5mm","Material",null,"un",2.9999999999999997E-4,28.65,0]
["Insumo"," 11271 ","ORSE","Talhadeira com punho de proteção 22 x225mm ref.207206BR Belzer","Material",null,"un",1E-4,29.21,0]
["Insumo"," 11272 ","ORSE","Alicate Climpador ( cripador )","Material",null,"un",1E-4,102.6,0.01]
["Insumo"," 11273 ","ORSE","Esquadro de alumínio para soldagem de peças, com duas morsas, 35 x 35 x 4,5cm, marca Black Jack","Material",null,"un",2.0000000000000001E-4,218.54,0.04]
["Insumo"," 11274 ","ORSE","Grampo de de aperto rápido 16\" Ref. 60987 Beltools","Material",null,"un",2.9999999999999997E-4,18.75,0]
["Insumo"," 11275 ","ORSE","Alicate de pressão 11\"","Material",null,"un",2.0000000000000001E-4,62.08,0.01]
["Insumo"," 11276 ","ORSE","Alicate de pressão para solda tipo U, para apertar chapas, tiras e qualquer tipo de perfil. Niquelado, mordentes reforçados em aço laminadao. Corpo em chapa dobrada  extra-reforçada e rebites de aço, 11\" (280mm). Ref. 138 Gedore.","Material",null,"un",2.0000000000000001E-4,68.31,0.01]
["Insumo"," 11277 ","ORSE","Alicate de pressão para solda de chapa 18\" (460mm), Ref.138 Z Gedore","Material",null,"un",2.0000000000000001E-4,110.32,0.02]
["Insumo"," 11278 ","ORSE","Alicate diagonal para corte rente 5\" a 8\"","Material",null,"un",2.0000000000000001E-4,37.6,0]
["Insumo"," 11279 ","ORSE","Alicate para anéis de pistão capacidade 50-100mm. ref.44044101 Tramontina ou similar","Material",null,"un",2.0000000000000001E-4,88.71,0.01]
["Insumo"," 11280 ","ORSE","Chave Inglesa 15\" ref. 012418012 carbografite","Material",null,"un",2.0000000000000001E-4,60.5,0.01]
["Insumo"," 11281 ","ORSE","Bolsa de lona para ferramentas 40 x 30 x 20cm","Material",null,"un",8.0000000000000004E-4,357.49,0.28000000000000003]
["Insumo"," 11282 ","ORSE","Esmerilhadeira angular elétrico portátil 4 1/2\" - 1000 watts  - ref. G1000kB2Black e Decker","Material",null,"un",2.0000000000000001E-4,362,7.0000000000000007E-2]
["Insumo"," 11283 ","ORSE","Selador horizontal para fita de aço 1\"","Material",null,"un",1E-4,483.81,0.04]
["Insumo"," 11284 ","ORSE","Cavalete de ferro nº 1","Material",null,"un",2.0000000000000001E-4,120.51,0.02]
["Insumo"," 11285 ","ORSE","Fonte inversora de solda WMI 140ED 220V - BAMBOZZI - WMI- 140ED","Material",null,"un",1E-4,899.9,0.08]
["Insumo"," 11286 ","ORSE","Macariço de solda Ref. CG201 código 010414410 carbografite","Material",null,"un",2.9999999999999997E-4,397.98,0.11]
["Insumo"," 158 ","ORSE","Almoço (Participação do empregador)","Material",null,"un",0.1018,14,1.42]
["Insumo"," 1651 ","ORSE","Óculos branco proteção","Material",null,"pr",8.0000000000000004E-4,6.35,0]
["Insumo"," 2378 ","ORSE","Vale transporte","Material",null,"un",6.54E-2,4.5,0.28999999999999998]
["Insumo"," 941 ","ORSE","Fardamento com mangas curta","Material",null,"un",1.5E-3,190.35,0.28000000000000003]
[]
[]
[]
[null,"Código","Banco","Descrição","Tipo",null,"Und","Quant.","Valor Unit","Total"]
["Composição"," 5928 ","SINAPI","GUINDAUTO HIDRÁULICO, CAPACIDADE MÁXIMA DE CARGA 6200 KG, MOMENTO MÁXIMO DE CARGA 11,7 TM, ALCANCE MÁXIMO HORIZONTAL 9,70 M, INCLUSIVE CAMINHÃO TOCO PBT 16.000 KG, POTÊNCIA DE 189 CV - CHP DIURNO. AF_06/2014","CHOR - CUSTOS HORÁRIOS DE MÁQUINAS E EQUIPAMENTOS",null,"CHP",1,264.56,264.56]
["Composição Auxiliar"," 88286 ","SINAPI","MOTORISTA OPERADOR DE MUNCK COM ENCARGOS COMPLEMENTARES","SEDI - SERVIÇOS DIVERSOS",null,"H",1,31.22,31.22]
["Composição Auxiliar"," 89259 ","SINAPI","GUINDAUTO HIDRÁULICO, CAPACIDADE MÁXIMA DE CARGA 6200 KG, MOMENTO MÁXIMO DE CARGA 11,7 TM, ALCANCE MÁXIMO HORIZONTAL 9,70 M, INCLUSIVE CAMINHÃO TOCO PBT 16.000 KG, POTÊNCIA DE 189 CV - DEPRECIAÇÃO. AF_06/2014","CHOR - CUSTOS HORÁRIOS DE MÁQUINAS E EQUIPAMENTOS",null,"H",1,25.89,25.89]
["Composição Auxiliar"," 89260 ","SINAPI","GUINDAUTO HIDRÁULICO, CAPACIDADE MÁXIMA DE CARGA 6200 KG, MOMENTO MÁXIMO DE CARGA 11,7 TM, ALCANCE MÁXIMO HORIZONTAL 9,70 M, INCLUSIVE CAMINHÃO TOCO PBT 16.000 KG, POTÊNCIA DE 189 CV - JUROS. AF_06/2014","CHOR - CUSTOS HORÁRIOS DE MÁQUINAS E EQUIPAMENTOS",null,"H",1,9.44,9.44]
["Composição Auxiliar"," 89262 ","SINAPI","GUINDAUTO HIDRÁULICO, CAPACIDADE MÁXIMA DE CARGA 6200 KG, MOMENTO MÁXIMO DE CARGA 11,7 TM, ALCANCE MÁXIMO HORIZONTAL 9,70 M, INCLUSIVE CAMINHÃO TOCO PBT 16.000 KG, POTÊNCIA DE 189 CV - MANUTENÇÃO. AF_06/2014","CHOR - CUSTOS HORÁRIOS DE MÁQUINAS E EQUIPAMENTOS",null,"H",1,43.55,43.55]
["Composição Auxiliar"," 91466 ","SINAPI","GUINDAUTO HIDRÁULICO, CAPACIDADE MÁXIMA DE CARGA 6200 KG, MOMENTO MÁXIMO DE CARGA 11,7 TM, ALCANCE MÁXIMO HORIZONTAL 9,70 M, INCLUSIVE CAMINHÃO TOCO PBT 16.000 KG, POTÊNCIA DE 189 CV - IMPOSTOS E SEGUROS. AF_08/2015","CHOR - CUSTOS HORÁRIOS DE MÁQUINAS E EQUIPAMENTOS",null,"H",1,3.81,3.81]
["Composição Auxiliar"," 91467 ","SINAPI","GUINDAUTO HIDRÁULICO, CAPACIDADE MÁXIMA DE CARGA 6200 KG, MOMENTO MÁXIMO DE CARGA 11,7 TM, ALCANCE MÁXIMO HORIZONTAL 9,70 M, INCLUSIVE CAMINHÃO TOCO PBT 16.000 KG, POTÊNCIA DE 189 CV - MATERIAIS NA OPERAÇÃO. AF_08/2015","CHOR - CUSTOS HORÁRIOS DE MÁQUINAS E EQUIPAMENTOS",null,"H",1,150.65,150.65]
[]
[]
[]
[null,"Código","Banco","Descrição","Tipo",null,"Und","Quant.","Valor Unit","Total"]
["Composição"," 89259 ","SINAPI","GUINDAUTO HIDRÁULICO, CAPACIDADE MÁXIMA DE CARGA 6200 KG, MOMENTO MÁXIMO DE CARGA 11,7 TM, ALCANCE MÁXIMO HORIZONTAL 9,70 M, INCLUSIVE CAMINHÃO TOCO PBT 16.000 KG, POTÊNCIA DE 189 CV - DEPRECIAÇÃO. AF_06/2014","CHOR - CUSTOS HORÁRIOS DE MÁQUINAS E EQUIPAMENTOS",null,"H",1,25.89,25.89]
["Insumo"," 00003363 ","SINAPI","GUINDAUTO HIDRAULICO, CAPACIDADE MAXIMA DE CARGA 6200 KG, MOMENTO MAXIMO DE CARGA 11,7 TM , ALCANCE MAXIMO HORIZONTAL  9,70 M, PARA MONTAGEM SOBRE CHASSI DE CAMINHAO PBT MINIMO 13000 KG (INCLUI MONTAGEM, NAO INCLUI CAMINHAO)","Equipamento",null,"UN",5.5099999999999998E-5,144875,7.98]
["Insumo"," 00037752 ","SINAPI","CAMINHAO TOCO, PESO BRUTO TOTAL 16000 KG, CARGA UTIL MAXIMA 11130 KG, DISTANCIA ENTRE EIXOS 5,36 M, POTENCIA 185 CV (INCLUI CABINE E CHASSI, NAO INCLUI CARROCERIA)","Equipamento",null,"UN",3.43E-5,522162.14,17.91]
[]
[]
[]
[null,"Código","Banco","Descrição","Tipo",null,"Und","Quant.","Valor Unit","Total"]
["Composição"," 91466 ","SINAPI","GUINDAUTO HIDRÁULICO, CAPACIDADE MÁXIMA DE CARGA 6200 KG, MOMENTO MÁXIMO DE CARGA 11,7 TM, ALCANCE MÁXIMO HORIZONTAL 9,70 M, INCLUSIVE CAMINHÃO TOCO PBT 16.000 KG, POTÊNCIA DE 189 CV - IMPOSTOS E SEGUROS. AF_08/2015","CHOR - CUSTOS HORÁRIOS DE MÁQUINAS E EQUIPAMENTOS",null,"H",1,3.81,3.81]
["Insumo"," 00003363 ","SINAPI","GUINDAUTO HIDRAULICO, CAPACIDADE MAXIMA DE CARGA 6200 KG, MOMENTO MAXIMO DE CARGA 11,7 TM , ALCANCE MAXIMO HORIZONTAL  9,70 M, PARA MONTAGEM SOBRE CHASSI DE CAMINHAO PBT MINIMO 13000 KG (INCLUI MONTAGEM, NAO INCLUI CAMINHAO)","Equipamento",null,"UN",5.8000000000000004E-6,144875,0.84]
["Insumo"," 00037752 ","SINAPI","CAMINHAO TOCO, PESO BRUTO TOTAL 16000 KG, CARGA UTIL MAXIMA 11130 KG, DISTANCIA ENTRE EIXOS 5,36 M, POTENCIA 185 CV (INCLUI CABINE E CHASSI, NAO INCLUI CARROCERIA)","Equipamento",null,"UN",5.6999999999999996E-6,522162.14,2.97]
[]
[]
[]
[null,"Código","Banco","Descrição","Tipo",null,"Und","Quant.","Valor Unit","Total"]
["Composição"," 89260 ","SINAPI","GUINDAUTO HIDRÁULICO, CAPACIDADE MÁXIMA DE CARGA 6200 KG, MOMENTO MÁXIMO DE CARGA 11,7 TM, ALCANCE MÁXIMO HORIZONTAL 9,70 M, INCLUSIVE CAMINHÃO TOCO PBT 16.000 KG, POTÊNCIA DE 189 CV - JUROS. AF_06/2014","CHOR - CUSTOS HORÁRIOS DE MÁQUINAS E EQUIPAMENTOS",null,"H",1,9.44,9.44]
["Insumo"," 00003363 ","SINAPI","GUINDAUTO HIDRAULICO, CAPACIDADE MAXIMA DE CARGA 6200 KG, MOMENTO MAXIMO DE CARGA 11,7 TM , ALCANCE MAXIMO HORIZONTAL  9,70 M, PARA MONTAGEM SOBRE CHASSI DE CAMINHAO PBT MINIMO 13000 KG (INCLUI MONTAGEM, NAO INCLUI CAMINHAO)","Equipamento",null,"UN",1.4399999999999999E-5,144875,2.08]
["Insumo"," 00037752 ","SINAPI","CAMINHAO TOCO, PESO BRUTO TOTAL 16000 KG, CARGA UTIL MAXIMA 11130 KG, DISTANCIA ENTRE EIXOS 5,36 M, POTENCIA 185 CV (INCLUI CABINE E CHASSI, NAO INCLUI CARROCERIA)","Equipamento",null,"UN",1.4100000000000001E-5,522162.14,7.36]
[]
[]
[]
[null,"Código","Banco","Descrição","Tipo",null,"Und","Quant.","Valor Unit","Total"]
["Composição"," 89262 ","SINAPI","GUINDAUTO HIDRÁULICO, CAPACIDADE MÁXIMA DE CARGA 6200 KG, MOMENTO MÁXIMO DE CARGA 11,7 TM, ALCANCE MÁXIMO HORIZONTAL 9,70 M, INCLUSIVE CAMINHÃO TOCO PBT 16.000 KG, POTÊNCIA DE 189 CV - MANUTENÇÃO. AF_06/2014","CHOR - CUSTOS HORÁRIOS DE MÁQUINAS E EQUIPAMENTOS",null,"H",1,43.55,43.55]
["Insumo"," 00003363 ","SINAPI","GUINDAUTO HIDRAULICO, CAPACIDADE MAXIMA DE CARGA 6200 KG, MOMENTO MAXIMO DE CARGA 11,7 TM , ALCANCE MAXIMO HORIZONTAL  9,70 M, PARA MONTAGEM SOBRE CHASSI DE CAMINHAO PBT MINIMO 13000 KG (INCLUI MONTAGEM, NAO INCLUI CAMINHAO)","Equipamento",null,"UN",6.8899999999999994E-5,144875,9.98]
["Insumo"," 00037752 ","SINAPI","CAMINHAO TOCO, PESO BRUTO TOTAL 16000 KG, CARGA UTIL MAXIMA 11130 KG, DISTANCIA ENTRE EIXOS 5,36 M, POTENCIA 185 CV (INCLUI CABINE E CHASSI, NAO INCLUI CARROCERIA)","Equipamento",null,"UN",6.4300000000000004E-5,522162.14,33.57]
[]
[]
[]
[null,"Código","Banco","Descrição","Tipo",null,"Und","Quant.","Valor Unit","Total"]
["Composição"," 91467 ","SINAPI","GUINDAUTO HIDRÁULICO, CAPACIDADE MÁXIMA DE CARGA 6200 KG, MOMENTO MÁXIMO DE CARGA 11,7 TM, ALCANCE MÁXIMO HORIZONTAL 9,70 M, INCLUSIVE CAMINHÃO TOCO PBT 16.000 KG, POTÊNCIA DE 189 CV - MATERIAIS NA OPERAÇÃO. AF_08/2015","CHOR - CUSTOS HORÁRIOS DE MÁQUINAS E EQUIPAMENTOS",null,"H",1,150.65,150.65]
["Insumo"," 00004221 ","SINAPI","OLEO DIESEL COMBUSTIVEL COMUM","Material",null,"L",26.43,5.7,150.65]
[]
[]
[]
[null,"Código","Banco","Descrição","Tipo",null,"Und","Quant.","Valor Unit","Total"]
["Composição"," 96986 ","SINAPI","HASTE DE ATERRAMENTO 3/4  PARA SPDA - FORNECIMENTO E INSTALAÇÃO. AF_12/2017","INEL - INSTALAÇÃO ELÉTRICA/ELETRIFICAÇÃO E ILUMINAÇÃO EXTERNA",null,"UN",1,132.58000000000001,132.58000000000001]
["Composição Auxiliar"," 88247 ","SINAPI","AUXILIAR DE ELETRICISTA COM ENCARGOS COMPLEMENTARES","SEDI - SERVIÇOS DIVERSOS",null,"H",0.38819999999999999,21.09,8.18]
["Composição Auxiliar"," 88264 ","SINAPI","ELETRICISTA COM ENCARGOS COMPLEMENTARES","SEDI - SERVIÇOS DIVERSOS",null,"H",0.38819999999999999,26.5,10.28]
["Insumo"," 00003378 ","SINAPI","!EM PROCESSO DE DESATIVACAO! HASTE DE ATERRAMENTO EM ACO COM 3,00 M DE COMPRIMENTO E DN = 3/4\", REVESTIDA COM BAIXA CAMADA DE COBRE, SEM CONECTOR","Material",null,"UN",1,114.12,114.12]
[]
[]
[]
[null,"Código","Banco","Descrição","Tipo",null,"Und","Quant.","Valor Unit","Total"]
["Composição"," 91886 ","SINAPI","LUVA PARA ELETRODUTO, PVC, ROSCÁVEL, DN 40 MM (1 1/4\"), PARA CIRCUITOS TERMINAIS, INSTALADA EM PAREDE - FORNECIMENTO E INSTALAÇÃO. AF_12/2015","INEL - INSTALAÇÃO ELÉTRICA/ELETRIFICAÇÃO E ILUMINAÇÃO EXTERNA",null,"UN",1,13.03,13.03]
["Composição Auxiliar"," 88247 ","SINAPI","AUXILIAR DE ELETRICISTA COM ENCARGOS COMPLEMENTARES","SEDI - SERVIÇOS DIVERSOS",null,"H",0.24399999999999999,21.09,5.14]
["Composição Auxiliar"," 88264 ","SINAPI","ELETRICISTA COM ENCARGOS COMPLEMENTARES","SEDI - SERVIÇOS DIVERSOS",null,"H",0.24399999999999999,26.5,6.46]
["Insumo"," 00001902 ","SINAPI","LUVA EM PVC RIGIDO ROSCAVEL, DE 1 1/4\", PARA ELETRODUTO","Material",null,"UN",1,1.43,1.43]
[]
[]
[]
[null,"Código","Banco","Descrição","Tipo",null,"Und","Quant.","Valor Unit","Total"]
["Composição"," 7692 ","ORSE","Lançamento de concreto simples fabricado na obra, inclusive adensamento e acabamento em peças da superestrutura","Concreto Simples",null,"m³",1,48.7,48.7]
["Composição Auxiliar"," 10549 ","ORSE","Encargos Complementares - Servente","Provisórios",null,"h",1.62,3.79,6.13]
["Composição Auxiliar"," 10550 ","ORSE","Encargos Complementares - Pedreiro","Provisórios",null,"h",0.36,3.66,1.31]
["Composição Auxiliar"," 10551 ","ORSE","Encargos Complementares - Carpinteiro","Provisórios",null,"h",0.36,3.69,1.32]
["Composição Auxiliar"," 10555 ","ORSE","Encargos Complementares - Armador","Provisórios",null,"h",0.18,3.63,0.65]
["Insumo"," 00000378/SINAPI ","ORSE","Armador (horista)","Mão de Obra",null,"h",0.18,19.11,3.43]
["Insumo"," 00001213/SINAPI ","ORSE","Carpinteiro de formas (horista)","Mão de Obra",null,"h",0.36,19.13,6.88]
["Insumo"," 00004750/SINAPI ","ORSE","Pedreiro (horista)","Mão de Obra",null,"h",0.36,19.11,6.87]
["Insumo"," 00006111/SINAPI ","ORSE","Servente de obras (horista)","Mão de Obra",null,"h",1.62,13.65,22.11]
[]
[]
[]
[null,"Código","Banco","Descrição","Tipo",null,"Und","Quant.","Valor Unit","Total"]
["Composição"," 128 ","ORSE","Lançamento de concreto usinado, bombeado, em peças armadas da superestrutura, inclusive colocação, adensamento e acabamento","Concreto Simples",null,"m³",1,48.7,48.7]
["Composição Auxiliar"," 10549 ","ORSE","Encargos Complementares - Servente","Provisórios",null,"h",1.62,3.79,6.13]
["Composição Auxiliar"," 10550 ","ORSE","Encargos Complementares - Pedreiro","Provisórios",null,"h",0.36,3.66,1.31]
["Composição Auxiliar"," 10551 ","ORSE","Encargos Complementares - Carpinteiro","Provisórios",null,"h",0.36,3.69,1.32]
["Composição Auxiliar"," 10555 ","ORSE","Encargos Complementares - Armador","Provisórios",null,"h",0.18,3.63,0.65]
["Insumo"," 00000378/SINAPI ","ORSE","Armador (horista)","Mão de Obra",null,"h",0.18,19.11,3.43]
["Insumo"," 00001213/SINAPI ","ORSE","Carpinteiro de formas (horista)","Mão de Obra",null,"h",0.36,19.13,6.88]
["Insumo"," 00004750/SINAPI ","ORSE","Pedreiro (horista)","Mão de Obra",null,"h",0.36,19.11,6.87]
["Insumo"," 00006111/SINAPI ","ORSE","Servente de obras (horista)","Mão de Obra",null,"h",1.62,13.65,22.11]
[]
[]
[]
[null,"Código","Banco","Descrição","Tipo",null,"Und","Quant.","Valor Unit","Total"]
["Composição"," 88281 ","SINAPI","MOTORISTA DE BASCULANTE COM ENCARGOS COMPLEMENTARES","SEDI - SERVIÇOS DIVERSOS",null,"H",1,30.59,30.59]
["Composição Auxiliar"," 95346 ","SINAPI","CURSO DE CAPACITAÇÃO PARA MOTORISTA DE BASCULANTE (ENCARGOS COMPLEMENTARES) - HORISTA","SEDI - SERVIÇOS DIVERSOS",null,"H",1,0.14000000000000001,0.14000000000000001]
["Insumo"," 00020020 ","SINAPI","MOTORISTA DE CAMINHAO-BASCULANTE","Mão de Obra",null,"H",1,25.07,25.07]
["Insumo"," 00037370 ","SINAPI","ALIMENTACAO - HORISTA (COLETADO CAIXA)","Outros",null,"H",1,2.39,2.39]
["Insumo"," 00037371 ","SINAPI","TRANSPORTE - HORISTA (COLETADO CAIXA)","Serviços",null,"H",1,0.74,0.74]
["Insumo"," 00037372 ","SINAPI","EXAMES - HORISTA (COLETADO CAIXA)","Outros",null,"H",1,1.34,1.34]
["Insumo"," 00037373 ","SINAPI","SEGURO - HORISTA (COLETADO CAIXA)","Taxas",null,"H",1,0.04,0.04]
["Insumo"," 00043464 ","SINAPI","FERRAMENTAS - FAMILIA OPERADOR ESCAVADEIRA - HORISTA (ENCARGOS COMPLEMENTARES - COLETADO CAIXA)","Equipamento",null,"H",1,0.01,0.01]
["Insumo"," 00043488 ","SINAPI","EPI - FAMILIA OPERADOR ESCAVADEIRA - HORISTA (ENCARGOS COMPLEMENTARES - COLETADO CAIXA)","Equipamento",null,"H",1,0.86,0.86]
[]
[]
[]
[null,"Código","Banco","Descrição","Tipo",null,"Und","Quant.","Valor Unit","Total"]
["Composição"," 88282 ","SINAPI","MOTORISTA DE CAMINHÃO COM ENCARGOS COMPLEMENTARES","SEDI - SERVIÇOS DIVERSOS",null,"H",1,29.66,29.66]
["Composição Auxiliar"," 95347 ","SINAPI","CURSO DE CAPACITAÇÃO PARA MOTORISTA DE CAMINHÃO (ENCARGOS COMPLEMENTARES) - HORISTA","SEDI - SERVIÇOS DIVERSOS",null,"H",1,0.14000000000000001,0.14000000000000001]
["Insumo"," 00004093 ","SINAPI","MOTORISTA DE CAMINHAO","Mão de Obra",null,"H",1,24.14,24.14]
["Insumo"," 00037370 ","SINAPI","ALIMENTACAO - HORISTA (COLETADO CAIXA)","Outros",null,"H",1,2.39,2.39]
["Insumo"," 00037371 ","SINAPI","TRANSPORTE - HORISTA (COLETADO CAIXA)","Serviços",null,"H",1,0.74,0.74]
["Insumo"," 00037372 ","SINAPI","EXAMES - HORISTA (COLETADO CAIXA)","Outros",null,"H",1,1.34,1.34]
["Insumo"," 00037373 ","SINAPI","SEGURO - HORISTA (COLETADO CAIXA)","Taxas",null,"H",1,0.04,0.04]
["Insumo"," 00043464 ","SINAPI","FERRAMENTAS - FAMILIA OPERADOR ESCAVADEIRA - HORISTA (ENCARGOS COMPLEMENTARES - COLETADO CAIXA)","Equipamento",null,"H",1,0.01,0.01]
["Insumo"," 00043488 ","SINAPI","EPI - FAMILIA OPERADOR ESCAVADEIRA - HORISTA (ENCARGOS COMPLEMENTARES - COLETADO CAIXA)","Equipamento",null,"H",1,0.86,0.86]
[]
[]
[]
[null,"Código","Banco","Descrição","Tipo",null,"Und","Quant.","Valor Unit","Total"]
["Composição"," 88286 ","SINAPI","MOTORISTA OPERADOR DE MUNCK COM ENCARGOS COMPLEMENTARES","SEDI - SERVIÇOS DIVERSOS",null,"H",1,31.22,31.22]
["Composição Auxiliar"," 95351 ","SINAPI","CURSO DE CAPACITAÇÃO PARA MOTORISTA OPERADOR DE MUNCK (ENCARGOS COMPLEMENTARES) - HORISTA","SEDI - SERVIÇOS DIVERSOS",null,"H",1,0.47,0.47]
["Insumo"," 00004096 ","SINAPI","MOTORISTA OPERADOR DE CAMINHAO COM MUNCK","Mão de Obra",null,"H",1,25.37,25.37]
["Insumo"," 00037370 ","SINAPI","ALIMENTACAO - HORISTA (COLETADO CAIXA)","Outros",null,"H",1,2.39,2.39]
["Insumo"," 00037371 ","SINAPI","TRANSPORTE - HORISTA (COLETADO CAIXA)","Serviços",null,"H",1,0.74,0.74]
["Insumo"," 00037372 ","SINAPI","EXAMES - HORISTA (COLETADO CAIXA)","Outros",null,"H",1,1.34,1.34]
["Insumo"," 00037373 ","SINAPI","SEGURO - HORISTA (COLETADO CAIXA)","Taxas",null,"H",1,0.04,0.04]
["Insumo"," 00043464 ","SINAPI","FERRAMENTAS - FAMILIA OPERADOR ESCAVADEIRA - HORISTA (ENCARGOS COMPLEMENTARES - COLETADO CAIXA)","Equipamento",null,"H",1,0.01,0.01]
["Insumo"," 00043488 ","SINAPI","EPI - FAMILIA OPERADOR ESCAVADEIRA - HORISTA (ENCARGOS COMPLEMENTARES - COLETADO CAIXA)","Equipamento",null,"H",1,0.86,0.86]
[]
[]
[]
[null,"Código","Banco","Descrição","Tipo",null,"Und","Quant.","Valor Unit","Total"]
["Composição"," 88377 ","SINAPI","OPERADOR DE BETONEIRA ESTACIONÁRIA/MISTURADOR COM ENCARGOS COMPLEMENTARES","SEDI - SERVIÇOS DIVERSOS",null,"H",1,23.84,23.84]
["Composição Auxiliar"," 95389 ","SINAPI","CURSO DE CAPACITAÇÃO PARA OPERADOR DE BETONEIRA ESTACIONÁRIA/MISTURADOR (ENCARGOS COMPLEMENTARES) - HORISTA","SEDI - SERVIÇOS DIVERSOS",null,"H",1,0.17,0.17]
["Insumo"," 00037370 ","SINAPI","ALIMENTACAO - HORISTA (COLETADO CAIXA)","Outros",null,"H",1,2.39,2.39]
["Insumo"," 00037371 ","SINAPI","TRANSPORTE - HORISTA (COLETADO CAIXA)","Serviços",null,"H",1,0.74,0.74]
["Insumo"," 00037372 ","SINAPI","EXAMES - HORISTA (COLETADO CAIXA)","Outros",null,"H",1,1.34,1.34]
["Insumo"," 00037373 ","SINAPI","SEGURO - HORISTA (COLETADO CAIXA)","Taxas",null,"H",1,0.04,0.04]
["Insumo"," 00037666 ","SINAPI","OPERADOR DE BETONEIRA ESTACIONARIA / MISTURADOR","Mão de Obra",null,"H",1,18.29,18.29]
["Insumo"," 00043464 ","SINAPI","FERRAMENTAS - FAMILIA OPERADOR ESCAVADEIRA - HORISTA (ENCARGOS COMPLEMENTARES - COLETADO CAIXA)","Equipamento",null,"H",1,0.01,0.01]
["Insumo"," 00043488 ","SINAPI","EPI - FAMILIA OPERADOR ESCAVADEIRA - HORISTA (ENCARGOS COMPLEMENTARES - COLETADO CAIXA)","Equipamento",null,"H",1,0.86,0.86]
[]
[]
[]
[null,"Código","Banco","Descrição","Tipo",null,"Und","Quant.","Valor Unit","Total"]
["Composição"," 88297 ","SINAPI","OPERADOR DE MÁQUINAS E EQUIPAMENTOS COM ENCARGOS COMPLEMENTARES","SEDI - SERVIÇOS DIVERSOS",null,"H",1,28.86,28.86]
["Composição Auxiliar"," 95360 ","SINAPI","CURSO DE CAPACITAÇÃO PARA OPERADOR DE MÁQUINAS E EQUIPAMENTOS (ENCARGOS COMPLEMENTARES) - HORISTA","SEDI - SERVIÇOS DIVERSOS",null,"H",1,0.3,0.3]
["Insumo"," 00004230 ","SINAPI","OPERADOR DE MAQUINAS E TRATORES DIVERSOS (TERRAPLANAGEM)","Mão de Obra",null,"H",1,23.18,23.18]
["Insumo"," 00037370 ","SINAPI","ALIMENTACAO - HORISTA (COLETADO CAIXA)","Outros",null,"H",1,2.39,2.39]
["Insumo"," 00037371 ","SINAPI","TRANSPORTE - HORISTA (COLETADO CAIXA)","Serviços",null,"H",1,0.74,0.74]
["Insumo"," 00037372 ","SINAPI","EXAMES - HORISTA (COLETADO CAIXA)","Outros",null,"H",1,1.34,1.34]
["Insumo"," 00037373 ","SINAPI","SEGURO - HORISTA (COLETADO CAIXA)","Taxas",null,"H",1,0.04,0.04]
["Insumo"," 00043464 ","SINAPI","FERRAMENTAS - FAMILIA OPERADOR ESCAVADEIRA - HORISTA (ENCARGOS COMPLEMENTARES - COLETADO CAIXA)","Equipamento",null,"H",1,0.01,0.01]
["Insumo"," 00043488 ","SINAPI","EPI - FAMILIA OPERADOR ESCAVADEIRA - HORISTA (ENCARGOS COMPLEMENTARES - COLETADO CAIXA)","Equipamento",null,"H",1,0.86,0.86]
[]
[]
[]
[null,"Código","Banco","Descrição","Tipo",null,"Und","Quant.","Valor Unit","Total"]
["Composição"," 88309 ","SINAPI","PEDREIRO COM ENCARGOS COMPLEMENTARES","SEDI - SERVIÇOS DIVERSOS",null,"H",1,26.15,26.15]
["Composição Auxiliar"," 95371 ","SINAPI","CURSO DE CAPACITAÇÃO PARA PEDREIRO (ENCARGOS COMPLEMENTARES) - HORISTA","SEDI - SERVIÇOS DIVERSOS",null,"H",1,0.46,0.46]
["Insumo"," 00004750 ","SINAPI","PEDREIRO","Mão de Obra",null,"H",1,19.12,19.12]
["Insumo"," 00037370 ","SINAPI","ALIMENTACAO - HORISTA (COLETADO CAIXA)","Outros",null,"H",1,2.39,2.39]
["Insumo"," 00037371 ","SINAPI","TRANSPORTE - HORISTA (COLETADO CAIXA)","Serviços",null,"H",1,0.74,0.74]
["Insumo"," 00037372 ","SINAPI","EXAMES - HORISTA (COLETADO CAIXA)","Outros",null,"H",1,1.34,1.34]
["Insumo"," 00037373 ","SINAPI","SEGURO - HORISTA (COLETADO CAIXA)","Taxas",null,"H",1,0.04,0.04]
["Insumo"," 00043465 ","SINAPI","FERRAMENTAS - FAMILIA PEDREIRO - HORISTA (ENCARGOS COMPLEMENTARES - COLETADO CAIXA)","Equipamento",null,"H",1,0.82,0.82]
["Insumo"," 00043489 ","SINAPI","EPI - FAMILIA PEDREIRO - HORISTA (ENCARGOS COMPLEMENTARES - COLETADO CAIXA)","Equipamento",null,"H",1,1.24,1.24]
[]
[]
[]
[null,"Código","Banco","Descrição","Tipo",null,"Und","Quant.","Valor Unit","Total"]
["Composição"," 88310 ","SINAPI","PINTOR COM ENCARGOS COMPLEMENTARES","SEDI - SERVIÇOS DIVERSOS",null,"H",1,27.65,27.65]
["Composição Auxiliar"," 95372 ","SINAPI","CURSO DE CAPACITAÇÃO PARA PINTOR (ENCARGOS COMPLEMENTARES) - HORISTA","SEDI - SERVIÇOS DIVERSOS",null,"H",1,0.32,0.32]
["Insumo"," 00004783 ","SINAPI","PINTOR","Mão de Obra",null,"H",1,19.12,19.12]
["Insumo"," 00037370 ","SINAPI","ALIMENTACAO - HORISTA (COLETADO CAIXA)","Outros",null,"H",1,2.39,2.39]
["Insumo"," 00037371 ","SINAPI","TRANSPORTE - HORISTA (COLETADO CAIXA)","Serviços",null,"H",1,0.74,0.74]
["Insumo"," 00037372 ","SINAPI","EXAMES - HORISTA (COLETADO CAIXA)","Outros",null,"H",1,1.34,1.34]
["Insumo"," 00037373 ","SINAPI","SEGURO - HORISTA (COLETADO CAIXA)","Taxas",null,"H",1,0.04,0.04]
["Insumo"," 00043466 ","SINAPI","FERRAMENTAS - FAMILIA PINTOR - HORISTA (ENCARGOS COMPLEMENTARES - COLETADO CAIXA)","Equipamento",null,"H",1,1.97,1.97]
["Insumo"," 00043490 ","SINAPI","EPI - FAMILIA PINTOR - HORISTA (ENCARGOS COMPLEMENTARES - COLETADO CAIXA)","Equipamento",null,"H",1,1.73,1.73]
[]
[]
[]
[null,"Código","Banco","Descrição","Tipo",null,"Und","Quant.","Valor Unit","Total"]
["Composição"," 91278 ","SINAPI","PLACA VIBRATÓRIA REVERSÍVEL COM MOTOR 4 TEMPOS A GASOLINA, FORÇA CENTRÍFUGA DE 25 KN (2500 KGF), POTÊNCIA 5,5 CV - CHI DIURNO. AF_08/2015","CHOR - CUSTOS HORÁRIOS DE MÁQUINAS E EQUIPAMENTOS",null,"CHI",1,0.71,0.71]
["Composição Auxiliar"," 91273 ","SINAPI","PLACA VIBRATÓRIA REVERSÍVEL COM MOTOR 4 TEMPOS A GASOLINA, FORÇA CENTRÍFUGA DE 25 KN (2500 KGF), POTÊNCIA 5,5 CV - DEPRECIAÇÃO. AF_08/2015","CHOR - CUSTOS HORÁRIOS DE MÁQUINAS E EQUIPAMENTOS",null,"H",1,0.56000000000000005,0.56000000000000005]
["Composição Auxiliar"," 91274 ","SINAPI","PLACA VIBRATÓRIA REVERSÍVEL COM MOTOR 4 TEMPOS A GASOLINA, FORÇA CENTRÍFUGA DE 25 KN (2500 KGF), POTÊNCIA 5,5 CV - JUROS. AF_08/2015","CHOR - CUSTOS HORÁRIOS DE MÁQUINAS E EQUIPAMENTOS",null,"H",1,0.15,0.15]
[]
[]
[]
[null,"Código","Banco","Descrição","Tipo",null,"Und","Quant.","Valor Unit","Total"]
["Composição"," 91277 ","SINAPI","PLACA VIBRATÓRIA REVERSÍVEL COM MOTOR 4 TEMPOS A GASOLINA, FORÇA CENTRÍFUGA DE 25 KN (2500 KGF), POTÊNCIA 5,5 CV - CHP DIURNO. AF_08/2015","CHOR - CUSTOS HORÁRIOS DE MÁQUINAS E EQUIPAMENTOS",null,"CHP",1,10.64,10.64]
["Composição Auxiliar"," 91273 ","SINAPI","PLACA VIBRATÓRIA REVERSÍVEL COM MOTOR 4 TEMPOS A GASOLINA, FORÇA CENTRÍFUGA DE 25 KN (2500 KGF), POTÊNCIA 5,5 CV - DEPRECIAÇÃO. AF_08/2015","CHOR - CUSTOS HORÁRIOS DE MÁQUINAS E EQUIPAMENTOS",null,"H",1,0.56000000000000005,0.56000000000000005]
["Composição Auxiliar"," 91274 ","SINAPI","PLACA VIBRATÓRIA REVERSÍVEL COM MOTOR 4 TEMPOS A GASOLINA, FORÇA CENTRÍFUGA DE 25 KN (2500 KGF), POTÊNCIA 5,5 CV - JUROS. AF_08/2015","CHOR - CUSTOS HORÁRIOS DE MÁQUINAS E EQUIPAMENTOS",null,"H",1,0.15,0.15]
["Composição Auxiliar"," 91275 ","SINAPI","PLACA VIBRATÓRIA REVERSÍVEL COM MOTOR 4 TEMPOS A GASOLINA, FORÇA CENTRÍFUGA DE 25 KN (2500 KGF), POTÊNCIA 5,5 CV - MANUTENÇÃO. AF_08/2015","CHOR - CUSTOS HORÁRIOS DE MÁQUINAS E EQUIPAMENTOS",null,"H",1,0.7,0.7]
["Composição Auxiliar"," 91276 ","SINAPI","PLACA VIBRATÓRIA REVERSÍVEL COM MOTOR 4 TEMPOS A GASOLINA, FORÇA CENTRÍFUGA DE 25 KN (2500 KGF), POTÊNCIA 5,5 CV - MATERIAIS NA OPERAÇÃO. AF_08/2015","CHOR - CUSTOS HORÁRIOS DE MÁQUINAS E EQUIPAMENTOS",null,"H",1,9.23,9.23]
[]
[]
[]
[null,"Código","Banco","Descrição","Tipo",null,"Und","Quant.","Valor Unit","Total"]
["Composição"," 91273 ","SINAPI","PLACA VIBRATÓRIA REVERSÍVEL COM MOTOR 4 TEMPOS A GASOLINA, FORÇA CENTRÍFUGA DE 25 KN (2500 KGF), POTÊNCIA 5,5 CV - DEPRECIAÇÃO. AF_08/2015","CHOR - CUSTOS HORÁRIOS DE MÁQUINAS E EQUIPAMENTOS",null,"H",1,0.56000000000000005,0.56000000000000005]
["Insumo"," 00001442 ","SINAPI","COMPACTADOR DE SOLO TIPO PLACA VIBRATORIA REVERSIVEL, A GASOLINA 4 TEMPOS, PESO 125 A 150 KG, FORCA CENTRIF. 2500 A 2800 KGF, LARG. TRABALHO 400 A 450 MM, FREQ. VIBRACAO 4300 A 4500 RPM, VELOC. TRABALHO 15 A 20 M/MIN, POT. 5,5 A 6,0 HP","Equipamento para Aquisição Permanente",null,"UN",5.3300000000000001E-5,10512.54,0.56000000000000005]
[]
[]
[]
[null,"Código","Banco","Descrição","Tipo",null,"Und","Quant.","Valor Unit","Total"]
["Composição"," 91274 ","SINAPI","PLACA VIBRATÓRIA REVERSÍVEL COM MOTOR 4 TEMPOS A GASOLINA, FORÇA CENTRÍFUGA DE 25 KN (2500 KGF), POTÊNCIA 5,5 CV - JUROS. AF_08/2015","CHOR - CUSTOS HORÁRIOS DE MÁQUINAS E EQUIPAMENTOS",null,"H",1,0.15,0.15]
["Insumo"," 00001442 ","SINAPI","COMPACTADOR DE SOLO TIPO PLACA VIBRATORIA REVERSIVEL, A GASOLINA 4 TEMPOS, PESO 125 A 150 KG, FORCA CENTRIF. 2500 A 2800 KGF, LARG. TRABALHO 400 A 450 MM, FREQ. VIBRACAO 4300 A 4500 RPM, VELOC. TRABALHO 15 A 20 M/MIN, POT. 5,5 A 6,0 HP","Equipamento para Aquisição Permanente",null,"UN",1.43E-5,10512.54,0.15]
[]
[]
[]
[null,"Código","Banco","Descrição","Tipo",null,"Und","Quant.","Valor Unit","Total"]
["Composição"," 91275 ","SINAPI","PLACA VIBRATÓRIA REVERSÍVEL COM MOTOR 4 TEMPOS A GASOLINA, FORÇA CENTRÍFUGA DE 25 KN (2500 KGF), POTÊNCIA 5,5 CV - MANUTENÇÃO. AF_08/2015","CHOR - CUSTOS HORÁRIOS DE MÁQUINAS E EQUIPAMENTOS",null,"H",1,0.7,0.7]
["Insumo"," 00001442 ","SINAPI","COMPACTADOR DE SOLO TIPO PLACA VIBRATORIA REVERSIVEL, A GASOLINA 4 TEMPOS, PESO 125 A 150 KG, FORCA CENTRIF. 2500 A 2800 KGF, LARG. TRABALHO 400 A 450 MM, FREQ. VIBRACAO 4300 A 4500 RPM, VELOC. TRABALHO 15 A 20 M/MIN, POT. 5,5 A 6,0 HP","Equipamento para Aquisição Permanente",null,"UN",6.6699999999999995E-5,10512.54,0.7]
[]
[]
[]
[null,"Código","Banco","Descrição","Tipo",null,"Und","Quant.","Valor Unit","Total"]
["Composição"," 91276 ","SINAPI","PLACA VIBRATÓRIA REVERSÍVEL COM MOTOR 4 TEMPOS A GASOLINA, FORÇA CENTRÍFUGA DE 25 KN (2500 KGF), POTÊNCIA 5,5 CV - MATERIAIS NA OPERAÇÃO. AF_08/2015","CHOR - CUSTOS HORÁRIOS DE MÁQUINAS E EQUIPAMENTOS",null,"H",1,9.23,9.23]
["Insumo"," 00004222 ","SINAPI","GASOLINA COMUM","Material",null,"L",1.44,6.41,9.23]
[]
[]
[]
[null,"Código","Banco","Descrição","Tipo",null,"Und","Quant.","Valor Unit","Total"]
["Composição"," 88316 ","SINAPI","SERVENTE COM ENCARGOS COMPLEMENTARES","SEDI - SERVIÇOS DIVERSOS",null,"H",1,20.420000000000002,20.420000000000002]
["Composição Auxiliar"," 95378 ","SINAPI","CURSO DE CAPACITAÇÃO PARA SERVENTE (ENCARGOS COMPLEMENTARES) - HORISTA","SEDI - SERVIÇOS DIVERSOS",null,"H",1,0.33,0.33]
["Insumo"," 00006111 ","SINAPI","SERVENTE DE OBRAS","Mão de Obra",null,"H",1,13.64,13.64]
["Insumo"," 00037370 ","SINAPI","ALIMENTACAO - HORISTA (COLETADO CAIXA)","Outros",null,"H",1,2.39,2.39]
["Insumo"," 00037371 ","SINAPI","TRANSPORTE - HORISTA (COLETADO CAIXA)","Serviços",null,"H",1,0.74,0.74]
["Insumo"," 00037372 ","SINAPI","EXAMES - HORISTA (COLETADO CAIXA)","Outros",null,"H",1,1.34,1.34]
["Insumo"," 00037373 ","SINAPI","SEGURO - HORISTA (COLETADO CAIXA)","Taxas",null,"H",1,0.04,0.04]
["Insumo"," 00043467 ","SINAPI","FERRAMENTAS - FAMILIA SERVENTE - HORISTA (ENCARGOS COMPLEMENTARES - COLETADO CAIXA)","Equipamento",null,"H",1,0.61,0.61]
["Insumo"," 00043491 ","SINAPI","EPI - FAMILIA SERVENTE - HORISTA (ENCARGOS COMPLEMENTARES - COLETADO CAIXA)","Equipamento",null,"H",1,1.33,1.33]
[]
[]
[]
[null,"Código","Banco","Descrição","Tipo",null,"Und","Quant.","Valor Unit","Total"]
["Composição"," 98746 ","SINAPI","SOLDA DE TOPO EM CHAPA/PERFIL/TUBO DE AÇO CHANFRADO, ESPESSURA=1/4''. AF_06/2018","FUES - FUNDAÇÕES E ESTRUTURAS",null,"M",1,74.02,74.02]
["Composição Auxiliar"," 88317 ","SINAPI","SOLDADOR COM ENCARGOS COMPLEMENTARES","SEDI - SERVIÇOS DIVERSOS",null,"H",1.56,26.9,41.96]
["Insumo"," 00010998 ","SINAPI","ELETRODO REVESTIDO AWS - E-6010, DIAMETRO IGUAL A 4,00 MM","Material",null,"KG",0.59,54.34,32.06]
[]
[]
[]
[null,"Código","Banco","Descrição","Tipo",null,"Und","Quant.","Valor Unit","Total"]
["Composição"," 88317 ","SINAPI","SOLDADOR COM ENCARGOS COMPLEMENTARES","SEDI - SERVIÇOS DIVERSOS",null,"H",1,26.9,26.9]
["Composição Auxiliar"," 95379 ","SINAPI","CURSO DE CAPACITAÇÃO PARA SOLDADOR (ENCARGOS COMPLEMENTARES) - HORISTA","SEDI - SERVIÇOS DIVERSOS",null,"H",1,0.25,0.25]
["Insumo"," 00006160 ","SINAPI","SOLDADOR","Mão de Obra",null,"H",1,19.12,19.12]
["Insumo"," 00037370 ","SINAPI","ALIMENTACAO - HORISTA (COLETADO CAIXA)","Outros",null,"H",1,2.39,2.39]
["Insumo"," 00037371 ","SINAPI","TRANSPORTE - HORISTA (COLETADO CAIXA)","Serviços",null,"H",1,0.74,0.74]
["Insumo"," 00037372 ","SINAPI","EXAMES - HORISTA (COLETADO CAIXA)","Outros",null,"H",1,1.34,1.34]
["Insumo"," 00037373 ","SINAPI","SEGURO - HORISTA (COLETADO CAIXA)","Taxas",null,"H",1,0.04,0.04]
["Insumo"," 00043468 ","SINAPI","FERRAMENTAS - FAMILIA SOLDADOR - HORISTA (ENCARGOS COMPLEMENTARES - COLETADO CAIXA)","Equipamento",null,"H",1,1.23,1.23]
["Insumo"," 00043492 ","SINAPI","EPI - FAMILIA SOLDADOR - HORISTA (ENCARGOS COMPLEMENTARES - COLETADO CAIXA)","Equipamento",null,"H",1,1.79,1.79]
[]
[]
[]
[null,"Código","Banco","Descrição","Tipo",null,"Und","Quant.","Valor Unit","Total"]
["Composição"," 91946 ","SINAPI","SUPORTE PARAFUSADO COM PLACA DE ENCAIXE 4\" X 2\" MÉDIO (1,30 M DO PISO) PARA PONTO ELÉTRICO - FORNECIMENTO E INSTALAÇÃO. AF_03/2023","INEL - INSTALAÇÃO ELÉTRICA/ELETRIFICAÇÃO E ILUMINAÇÃO EXTERNA",null,"UN",1,9.68,9.68]
["Composição Auxiliar"," 88247 ","SINAPI","AUXILIAR DE ELETRICISTA COM ENCARGOS COMPLEMENTARES","SEDI - SERVIÇOS DIVERSOS",null,"H",0.128,21.09,2.69]
["Composição Auxiliar"," 88264 ","SINAPI","ELETRICISTA COM ENCARGOS COMPLEMENTARES","SEDI - SERVIÇOS DIVERSOS",null,"H",0.128,26.5,3.39]
["Insumo"," 00038094 ","SINAPI","ESPELHO / PLACA DE 3 POSTOS 4\" X 2\", PARA INSTALACAO DE TOMADAS E INTERRUPTORES","Material",null,"UN",1,2.37,2.37]
["Insumo"," 00038099 ","SINAPI","SUPORTE DE FIXACAO PARA ESPELHO / PLACA 4\" X 2\", PARA 3 MODULOS, PARA INSTALACAO DE TOMADAS E INTERRUPTORES (SOMENTE SUPORTE)","Material",null,"UN",1,1.23,1.23]
[]
[]
[]
[null,"Código","Banco","Descrição","Tipo",null,"Und","Quant.","Valor Unit","Total"]
["Composição"," 91999 ","SINAPI","TOMADA BAIXA DE EMBUTIR (1 MÓDULO), 2P+T 20 A, SEM SUPORTE E SEM PLACA - FORNECIMENTO E INSTALAÇÃO. AF_03/2023","INEL - INSTALAÇÃO ELÉTRICA/ELETRIFICAÇÃO E ILUMINAÇÃO EXTERNA",null,"UN",1,19.670000000000002,19.670000000000002]
["Composição Auxiliar"," 88247 ","SINAPI","AUXILIAR DE ELETRICISTA COM ENCARGOS COMPLEMENTARES","SEDI - SERVIÇOS DIVERSOS",null,"H",0.24199999999999999,21.09,5.0999999999999996]
["Composição Auxiliar"," 88264 ","SINAPI","ELETRICISTA COM ENCARGOS COMPLEMENTARES","SEDI - SERVIÇOS DIVERSOS",null,"H",0.24199999999999999,26.5,6.41]
["Insumo"," 00038102 ","SINAPI","TOMADA 2P+T 20A, 250V (APENAS MODULO)","Material",null,"UN",1,8.16,8.16]

{"sheet":"Memória de cálculo","index":7,"n_rows":98,"n_cols":15,"rows_kept":98,"cut":false,"hidden":false,"merged":[[9,0,9,8],[17,0,17,3],[17,5,17,6],[17,7,17,8],[5,0,5,3],[5,5,5,9],[6,0,6,3],[6,5,6,6],[6,7,6,8],[7,0,7,3],[7,5,7,6],[7,7,7,8],[11,0,11,4],[0,2,0,9],[1,2,1,9],[2,0,2,1],[2,2,2,9],[3,0,3,9],[4,1,4,7],[4,8,4,9],[8,0,8,3],[8,5,8,6],[8,7,8,8],[11,6,11,9],[14,0,14,4],[14,6,14,9],[15,0,15,4],[15,6,15,9],[16,0,16,9],[12,0,12,4],[12,6,12,9],[13,0,13,4],[13,6,13,9],[19,0,19,8],[20,0,20,3],[21,0,21,3],[18,0,18,3],[18,5,18,6],[18,7,18,8],[29,0,29,3],[46,0,46,8],[30,0,30,8],[32,0,32,2],[33,0,37,0],[33,1,33,2],[34,1,34,2],[38,0,40,2],[22,0,22,8],[23,0,23,9],[35,1,35,2],[36,1,36,2],[37,1,37,2],[24,0,24,3],[25,0,25,3],[26,0,26,8],[28,0,28,3],[53,0,53,9],[54,0,54,3],[42,0,42,3],[43,0,43,3],[44,0,44,3],[45,0,45,3],[52,0,52,8],[49,0,49,3],[49,5,49,8],[50,0,50,3],[50,5,50,8],[51,0,51,3],[51,5,51,8],[48,0,48,3],[48,5,48,8],[60,0,60,9],[61,0,61,3],[62,0,62,3],[55,0,55,3],[56,0,56,8],[58,0,58,3],[59,0,59,3],[70,0,70,3],[71,0,71,3],[63,0,63,3],[64,0,64,8],[66,0,66,3],[67,0,67,3],[68,0,68,8],[95,0,95,3],[97,0,97,8],[85,0,85,3],[86,0,86,3],[91,0,91,3],[92,0,92,8],[94,0,94,3],[88,0,88,3],[72,0,72,3],[89,0,89,3],[90,0,90,3],[75,0,75,3],[76,0,76,3],[77,0,77,8],[82,0,82,3],[83,0,83,3],[79,0,79,3],[80,0,80,3],[78,0,78,9],[73,0,73,3],[96,0,96,3]]}
[null,null,"Ministério da Integração e do Desenvolvimento Regional - MIDR"]
[null,null,"Companhia de Desenvovimento dos Vales do São Francisco e do Parnaíba"]
[null,null,"4ª Gerência Regional de Infraestrutura "]
["MEMÓRIA DE CÁLCULOS DOS QUANTITATIVOS "]
["OBRA:","CONSTRUÇÃO DE 01 (UM) ESPAÇO MULTIUSO"]
["DESCRIÇÃO DOS SERVIÇOS",null,null,null,"UNID","C Á L C U L O",{"$nulls":5},"DIMENSÕES","COMPRIMENTO\n M","LARGURA\n M","ÁREA\nM2"]
["LIMPEZA/REGULARIZAÇÃO",null,null,null,"M2",null,null,"ESPAÇO",null,"TOTAL",null,"TERRENO",36.43,26.57,{"$f":"M7*N7","v":967.94510000000002}]
["ÁREA CONSTRUÍDA",null,null,null,"M2",null,null,967.95,null,{"$f":"F8+H8","v":967.95},null,"QUADRA",32.130000000000003,20.170000000000002,{"$f":"M8*N8","v":648.0621000000001}]
[]
["TOTAL LIMPEZA/REGULARIZAÇÃO",{"$nulls":8},{"$f":"ROUND(SUM(J8:J9),2)","v":967.95}]
[]
["MOVIMENTAÇÃO DE TERRA",{"$nulls":4},"UNIDADE","QUANTIDADE"]
["VOLUME ATERRO",{"$nulls":4},"M³",{"$f":"J8*0.1","v":96.795000000000016},{"$nulls":4},106.47]
["EMPRESTIMO DE JAZIDA ",{"$nulls":4},"M³",{"$f":"G13*1.1","v":106.47450000000002}]
["COMPACTAÇÃO TERRENO",{"$nulls":4},"M³",{"$f":"G13","v":96.795000000000016}]
["TRANSPORTE (DMT=5KM)",{"$nulls":4},"M³xKM",{"$f":"G14*1.2*15","v":1916.5410000000002}]
[]
["LOCAÇÃO",null,null,null,"M","COMPRIMENTO",null,"LARGURA",null,"TOTAL"]
["PERÍMETRO PARA LOCAÇÃO",null,null,null,"M",1,null,134.4,null,{"$f":"ROUND(F19*H19,2)","v":134.4}]
[]
["ESCAVAÇÃO MANUAL",null,null,null,"M3","EXTENSÃO","LARGURA","PROFUND","VEZES","VOLUME"]
["SAPATA - MURETA",null,null,null,"M3",{"$f":"(0.5+0.1)","v":0.6},{"$f":"(0.5+0.1)","v":0.6},{"$f":"0.05+0.5+0.3","v":0.85000000000000009},{"$f":"7+12+7+12","v":38},{"$f":"ROUND(F22*G22*H22*I22,2)","v":11.63}]
["TOTAL ESCAVAÇÃO MANUAL",{"$nulls":8},{"$f":"ROUND(SUM(J22:J22),2)","v":11.63}]
[]
["CONCRETO MAGRO",null,null,null,"M3","EXTENSÃO ","LARGURA","PROFUND","VEZES","VOLUME"]
["SAPATA - MURETA",null,null,null,"M3",0.5,0.5,0.05,{"$f":"7+12+7+12","v":38},{"$f":"F26*G26*H26*I26","v":0.47500000000000003}]
["TOTAL CONCRETO MAGRO",{"$nulls":8},{"$f":"SUM(J26:J26)","v":0.47500000000000003}]
[]
["FORMAS PARA CONCRETO ARMADO",null,null,null,"M2","EXTENSÃO","LARGURA","VOLUME","QUANT","ÁREA"]
["FORMA DE MADEIRA (11M² POR M³ DE CONCRETO)",null,null,null,"M2",null,null,{"$f":"J47","v":7.25},11,{"$f":"H30*I30","v":79.75}]
["TOTAL FORMAS PARA CONCRETO ARMADO",{"$nulls":8},{"$f":"ROUND(SUM(J30:J30),2)","v":79.75}]
[]
[" FERRAGEM",null,null,"FERRO","KG","QUANT","COMP","VEZES","PESO/M","PESO",null,null,"FERRO","PESO"]
["MURETA","SAPATA",null,5,"KG",10,0.75,{"$f":"7+12+7+12","v":38},{"$f":"VLOOKUP(D34,$M$34:$N$36,2,FALSE)","v":0.154},{"$f":"ROUND(F34*G34*H34*I34,2)","v":43.89},null,null,5,0.154]
[null,"CINTAMENTO",null,"6.3","KG",4,{"$f":"32.43+20.47+32.43+20.47","v":105.8},1,{"$f":"VLOOKUP(D35,$M$34:$N$36,2,FALSE)","v":0.245},{"$f":"ROUND(F35*G35*H35*I35,2)","v":103.68},null,null,"6.3",0.245]
[null,"CINTAMENTO",null,5,"KG",{"$f":"(G35/0.2)+1","v":530},0.75,1,0.154,61.22,null,null,8,0.39500000000000002]
[null,"PILAR",null,"6.3","KG",4,1.4,{"$f":"7+12+7+12","v":38},0.245,52.14]
[null,"PILAR",null,5,"KG",{"$f":"G37/0.2","v":6.9999999999999991},0.45,{"$f":"7+12+7+12","v":38},0.154,18.43]
["TOTAL  FERRAGEM",null,null,5,"KG",{"$nulls":4},{"$f":"SUMIF($D$34:$D$38,D39,$J$34:$J$38)","v":123.53999999999999}]
[null,null,null,"6.3","KG",{"$nulls":4},{"$f":"SUMIF($D$34:$D$38,D40,$J$34:$J$38)","v":155.82}]
[null,null,null,10,"KG",{"$nulls":4},{"$f":"SUMIF($D$34:$D$38,D41,$J$34:$J$38)","v":0}]
[]
["CONCRETO ESTRUTURAL FCK= 25MPA",null,null,null,"M3","EXTENSÃO / VOLUME","LARGURA","PROFUND","VEZES","VOLUME"]
["SAPATA - MURETA",null,null,null,"M3",{"$f":"0.5","v":0.5},0.5,0.15,{"$f":"7+12+7+12","v":38},{"$f":"F44*G44*H44*I44","v":1.425}]
["CINTAMENTO - MURETA",null,null,null,"M3",{"$f":"G35","v":105.8},0.15,0.3,1,{"$f":"F45*G45*H45*I45","v":4.7609999999999992}]
["PILAR - MURETA",null,null,null,"M3",0.15,0.15,1.25,{"$f":"7+12+7+12","v":38},1.0687499999999999]
["TOTAL CONCRETO ESTRUTURAL FCK= 25MPA",{"$nulls":8},{"$f":"ROUND(SUM(J44:J46),2)","v":7.25}]
[]
["REATERRO",null,null,null,"UNI","DESCRIÇÃO",null,null,null,"VOLUME"]
["VOLUME ESCAVADO",null,null,null,"M3","Total escavação manual, intem acima",null,null,null,{"$f":"J23","v":11.63}]
["VOLUME CONCRETO FUNDAÇÃO - ATÉ O TERRENO NATURAL",null,null,null,"M3"," Total volume concreto fundações",null,null,null,{"$f":"J44+J45","v":6.1859999999999991}]
["VOLUME CONCRETO MAGRO",null,null,null,"M3","total concreto magro, item abaixo",null,null,null,{"$f":"J27","v":0.47500000000000003}]
["TOTAL REATERRO",{"$nulls":8},{"$f":"J50-J51-J52","v":4.9690000000000021}]
[]
["ALVENARIA, 1/2 VEZ, EM TIJOLO CERÂMICO",null,null,null,"M2","EXTENSÃO ","ALTURA","PROFUND","VEZES","ÁREA"]
["MURETA",null,null,null,"M2",{"$f":"(32.43+20.47+32.43+20.47)","v":105.8},0.6,null,1,{"$f":"F56*G56*I56","v":63.48}]
["TOTAL ALVENARIA EM TIJOLO CERÂMICO",{"$nulls":8},{"$f":"ROUND(SUM(J56:J56),2)","v":63.48}]
[]
["TUBO PVC DN 75 MM PARA DRENAGEM",null,null,null,"M","EXTENSÃO ",null,null,"VEZES","EXTENSÃO\nTOTAL"]
["TUBO PVC DN 75 MM PARA DRENAGEM",null,null,null,"M",0.15,null,null,9,{"$f":"F60*I60","v":1.3499999999999999}]
[]
["CHAPISCO ",null,null,null,"M2","EXTENSÃO","LARGURA","DESCONTO","VEZES","ÁREA"]
["MURETA",null,null,null,"M2",{"$f":"$F$56","v":105.8},0.6,null,2,{"$f":"F63*G63*I63-H63","v":126.96}]
["MURETA",null,null,null,"M2",{"$f":"$F$56","v":105.8},0.15,null,1,{"$f":"F64*G64*I64","v":15.87}]
["TOTAL CHAPISCO ",{"$nulls":8},{"$f":"ROUND(SUM(J63:J64),2)","v":142.83000000000001}]
[]
["REBOCO",null,null,null,"M2","EXTENSÃO ","LARGURA","PROFUND","VEZES","ÁREA"]
["ÁREA DE CHAPISCO",null,null,null,"M2",{"$nulls":4},{"$f":"J65","v":142.83000000000001}]
["TOTAL REBOCO",{"$nulls":8},{"$f":"ROUND(SUM(J68:J68),2)","v":142.83000000000001}]
[]
["PISOS",{"$nulls":4},"QUANT","ÁREA","PROFUND","VEZES","VOLUME / ÁREA"]
["LASTRO DE BRITA 2 - QUADRA MULTIEVENTOS",null,null,null,"M3",1,{"$f":"O8","v":648.0621000000001},0.05,1,{"$f":"ROUND(F72*G72*H72*I72,2)","v":32.4}]
["PISO EM CONCRETO, e=8cm - QUADRA MULTIEVENTOS",null,null,null,"M2",1,{"$f":"G72","v":648.0621000000001},null,1,{"$f":"ROUND(F73*G73*I73,2)","v":648.05999999999995}]
["ACABAMENTO MECÂNICO",null,null,null,"M2",1,{"$f":"G73","v":648.0621000000001},null,1,{"$f":"ROUND(F74*G74*I74,2)","v":648.05999999999995}]
[]
["MEIO-FIO",null,null,null,"M",{"$nulls":4},"EXTENSÃO "]
["CONTORNO CALÇADA",null,null,null,"M",{"$nulls":4},126.38]
["TOTAL MEIO-FIO",{"$nulls":8},{"$f":"SUM(J77:J77)","v":126.38}]
[]
["PISOS",{"$nulls":4},"QUANT","ÁREA","PROFUND","VEZES","VOLUME / ÁREA"]
["CALÇADA EM CONCRETO 15 MPA, E=5CM - ÁREA EXTERNA",null,null,null,"M3",1,311.23,0.05,1,{"$f":"ROUND(G81*H81*I81,2)","v":15.56}]
[]
["BICICLETÁRIO EM TUBO DE AÇO GALVANIZADO DN 50mm",null,null,null,"UN ",{"$nulls":4},"UNIDADE"]
["BICICLETÁRIO EM TUBO DE AÇO GALVANIZADO DN 50mm",null,null,null,"UN ",{"$nulls":4},10]
[]
["GUARDA CORPO EM TUBO DE AÇO",null,null,null,"UN ",{"$nulls":4},"EXTENSÃO "]
["CORRIMÃO DUPLA ALTURA",null,null,null,"M",{"$nulls":4},{"$f":"(2.88+2+2.88)+(4.96+1.5)*2","v":20.68}]
[]
["PINTURA LATEX ACRILICO",null,null,null,"M2","EXTENSÃO ","LARGURA","DESCONTO","VEZES","ÁREA"]
["MURETA  (LATERAL)",null,null,null,"M2",{"$f":"$F$56","v":105.8},0.6,{"$f":"7.75*0.6*2","v":9.2999999999999989},2,{"$f":"F90*G90*I90-H90","v":117.66}]
["MURETA (HORIZONTAL)",null,null,null,"M2",{"$f":"$F$56","v":105.8},0.15,null,1,{"$f":"F91*G91*I91","v":15.87}]
["DEMARCAÇÃO ACESSO CADEIRANTES",null,null,null,"M2",{"$f":"(2.25+1.25)/2","v":1.75},1.51,null,2,5.2850000000000001]
["TOTAL PINTURA LATEX ACRILICO",{"$nulls":8},{"$f":"SUM(J90:J92)","v":138.815}]
[]
["PINTURA ESMALTE",null,null,null,"M2","ÁREA",null,"DESCONTO","VEZES","ÁREA \nTOTAL"]
["BICICLETÁRIO (10 UNIDADES)",null,null,null,"M2",{"$f":"(50/1000)*3.14*(0.75+1+0.75)","v":0.39250000000000007},null,null,10,{"$f":"F96*I96","v":3.9250000000000007}]
["CORRIMÃO DUPLA ALTURA",null,null,null,"M2",{"$f":"(40/1000)*3.14*(4.96+1.5)*2*2+(60/1000)*(2.88+2+2.88)*2","v":4.176704},null,null,null,{"$f":"F97","v":4.176704}]
["TOTAL ESMALTE",{"$nulls":8},{"$f":"SUM(J96:J97)","v":8.1017040000000016}]